Workbook

Sheet LDC Info
AA3: Algoma Power Inc.
AA4: Atikokan Hydro Inc.
AA5: Attawapiskat Power Corporation
AA6: Bluewater Power Distribution Corp.
AA7: Brant County Power
AA8: Brantford Power Inc.
AA9: Burlington Hydro Inc.
AA10: Cambridge and North Dumfries Hydro
AA11: Canadian Niagara Power Inc. – Eastern Ontario Power/Fort Erie/Port Colborne
AA12: Centre Wellington Hydro Ltd.
N13: Version 1.1 | AA13: Chapleau Public Utilities Corporation
D14: Utility Name | E14: Brantford Power Inc. | AA14: COLLUS Power Corp.
AA15: Cooperative Hydro Embrun Inc.
D16: Service Territory | E16: Brantford ON | AA16: E.L.K. Energy Inc.
AA17: Enersource Hydro Mississauga Inc.
D18: Assigned EB Number | E18: EB-2012-0109 | AA18: Entegrus Powerlines Inc.
AA19: ENWIN Utilities Ltd.
D20: Name of Contact and Title | E20: Heather Wyatt, Director of Regulatory Affairs, Board Secretary | AA20: Erie Thames Powerlines Corp.
AA21: Espanola Regional Hydro Distribution Corporation
D22: Phone Number | E22: 519-751-3522 X 3269 | AA22: Essex Powerlines Corporation
AA23: Festival Hydro Inc.
D24: Email Address | E24: Hwyatt@brantford.ca | AA24: Fort Albany Power Corporation
AA25: Fort Frances Power Corporation
D26: Bridge Year | E26: 2012 | AA26: Greater Sudbury Hydro Inc.
AA27: Grimsby Power Inc.
D28: Test Year | E28: 2013 | AA28: Guelph Hydro Electric Systems Inc.
AA29: Haldimand County Hydro Inc.
D30: Last Rebasing Year | E30: 2008 | AA30: Guelph Hydro Electric Systems Inc.
AA31: Halton Hills Hydro Inc.
B32: Notes | AA32: Hearst Power Distribution Co. Ltd.
AA33: Horizon Utilities Corporation
C34: Pale green cells represent input cells. | AA34: Hydro 2000 Inc.
AA35: Hydro Hawkesbury Inc.
C36: Pale blue cells represent drop-down lists. The applicant should select the appropriate item from the drop-down list. | AA36: Hydro One Brampton Networks Inc.
AA37: Hydro One Networks Inc.
C38: White cells contain fixed values, automatically generated values or formulae. | AA38: Hydro One Remote Communities Inc.
AA39: Hydro Ottawa Limited
AA40: Innisfil Hydro Dist. Systems Limited
AA41: Kashechewan Power Corporation
AA42: Kenora Hydro Electric Corporation Ltd.
AA43: Kingston Hydro Corporation
AA44: Kitchener-Wilmot Hydro Inc.
AA45: Lakefront Utilities Inc.
AA46: Lakeland Power Distribution Ltd.
AA47: London Hydro Inc.
AA48: Midland Power Utility Corporation
AA49: Milton Hydro Distribution Inc.
AA50: Newmarket – Tay Power Distribution Ltd.
AA51: Niagara Peninsula Energy Inc.
AA52: Niagara-on-the-Lake Hydro Inc.
AA53: Norfolk Power Distribution Ltd.
AA54: North Bay Hydro Distribution Limited
AA55: Northern Ontario Wires Inc.
AA56: Oakville Hydro Distribution Inc.
AA57: Orangeville Hydro Limited
AA58: Orillia Power Distribution Corp.
AA59: Oshawa PUC Networks Inc.
AA60: Ottawa River Power Corporation
AA61: Parry Sound Power Corporation
AA62: Peterborough Distribution Inc.
AA63: PowerStream Inc.
AA64: PUC Distribution Inc.
AA65: Renfrew Hydro Inc.
AA66: Rideau St. Lawrence Distribution Inc.
AA67: St. Thomas Energy Inc.
AA68: Sioux Lookout Hydro Inc.
AA69: Thunder Bay Hydro Electricity Distribution
AA70: Tillsonburg Hydro Inc.
AA71: Toronto Hydro-Electric System Limited
AA72: Veridian Connections Inc.
AA73: Wasaga Distribution Inc.
AA74: Waterloo North Hydro Inc.
AA75: Welland Hydro Electric System Corp.
AA76: Wellington North Power Inc.
AA77: West Coast Huron Energy Inc.
AA78: Westario Power Inc.
AA79: Whitby Hydro Electric Corporation
AA80: Woodstock Hydro Services Inc.

Sheet Index
A15: 1 | B15: LDC Information Sheet | E15: 19 | F15: Appendix 2-H OM&A Detailed Analysis
A16: 2 | B16: Index | E16: 20 | F16: Appendix 2-I OM&A Summary Analysis
A17: 3 | B17: Appendix 2-A Capital Projects | E17: 21 | F17: Appendix 2-J OM&A Cost Drivers
A18: 4 | B18: Appendix 2-B Fixed Asset Continuity | E18: 22 | F18: Appendix 2-K Employee Costs
A19: 5 | B19: Appendix 2-CA CGAAP Depreciation Expense 2011 | E19: 23 | F19: Appendix 2-L OM&A per Cust FTEE
A20: 6 | B20: Appendix 2-CB MIFRS Depreciation Expense 2011 | E20: 24 | F20: Appendix 2-M Regulatory Costs
A21: 7 | B21: Appendix 2-CC MIFRS Depreciation Expense 2012 | E21: 25 | F21: Appendix 2-N Corp Cost Allocation
A22: 8 | B22: Appendix 2-CD MIFRS Depreciation Expense 2013 | E22: 26 | F22: Appendix 2-OA Capital Structure and Cost of Capital
A23: 9 | B23: Appendix 2-CE CGAAP Depreciation Expense 2011 | E23: 27 | F23: Appendix 2-OB Debt Instruments
A24: 10 | B24: Appendix 2-CF CGAAP Depreciation Expense 2012 | E24: 28 | F24: Appendix 2-P Cost Allocation
A25: 11 | B25: Appendix 2-CG MIFRS Depreciation Expense 2012 | E25: 29 | F25: Appendix 2-Q Cost of Service Embedded Distributor
A26: 12 | B26: Appendix 2-CH MIFRS Depreciation Expense 2013 | E26: 30 | F26: Appendix 2-R Loss Factors
A27: 13 | B27: Appendix 2-CI Alternative Accounting Standards Depreciation Expense | E27: 31 | F27: Appendix 2-S Stranded Meters
A28: 14 | B28: Appendix 2-D Overhead | E28: 32 | F28: Appendix 2-T 1592 Tax Variance
A29: 15 | B29: Appendix 2-EA PP&E Deferral Account - 2012 IFRS Adopters | E29: 33 | F29: Appendix 2-U IFRS Transition Costs
A30: 16 | B30: Appendix 2-EB PP&E Deferral Account - 2013 IFRS Adopters | E30: 34 | F30: Appendix 2-V Rev Reconciliation
A31: 17 | B31: Appendix 2-F Other Operating Revenue | E31: 35 | F31: Appendix 2-W Bill Impacts
A32: 18 | B32: Appendix 2-G Detailed OM&A Expenses | E32: 36 | F32: Appendix 2-X CoS Flowchart

Sheet App.2-A_Capital Projects
K1: File Number: | M1: EB-2012-0109
K2: Exhibit: | M2: 2
K3: Tab: | M3: 3
K4: Schedule: | M4: 2
K5: Page: | M5: 1
K7: Date: | M7: July 17,2013
B9: Appendix 2-A
B10: Capital Projects Table
B13: Projects | C13: 2008 | D13: Projects | E13: 2009 | F13: Projects | G13: 2010 | H13: Projects | I13: 2011 | J13: Projects | K13: 2012 Bridge Year | L13: Projects | M13: 2013 Test Year
B14: Reporting Basis | C14: CGAP | E14: CGAP | G14: CGAP | I14: CGAP | K14: CGAP | M14: Modified CGAP
B16: Capital Project #1- Residential Seconary Services | C16: 93448 | D16: Capital Project #1- Residential Seconary Services | E16: 112524 | F16: Capital Project #1- Residential Seconary Services | G16: 156047 | H16: Capital Project #1- Residential Seconary Services | I16: 118230 | J16: Capital Project #1- Residential Seconary Services | K16: 134156 | L16: Capital Project #1- Residential Seconary Services | M16: 110000
B17: Capital Project #2 - Overhead Line Extensions | C17: 263594 | D17: Capital Project #2 - Overhead Line Extensions | E17: 206127 | F17: Capital Project #2 - Overhead Line Extensions | G17: 354061 | H17: Capital Project #2 - Overhead Line Extensions | I17: 352871 | J17: Capital Project #2 - Overhead Line Extensions | K17: 179453 | L17: Capital Project #2 - Overhead Line Extensions | M17: 265000
B18: Capital Project #3 - Underground Line Extensions | C18: 330157 | D18: Capital Project #3 - Underground Line Extensions | E18: 236335 | F18: Capital Project #3 - Underground Line Extensions | G18: 483721 | H18: Capital Project #3 - Underground Line Extensions | I18: 327251 | J18: Capital Project #3 - Underground Line Extensions | K18: 351833 | L18: Capital Project #3 - Underground Line Extensions | M18: 280000
B19: Capital Project #4 -Overhead Transformers | C19: 314189 | D19: Capital Project #4 -Overhead Transformers | E19: 202555 | F19: Capital Project #4- Underground Transformers | G19: 593583 | H19: Capital Project #4 -Overhead Transformers | I19: 83450 | J19: Capital Project #4 -Overhead Transformers | K19: 156725 | L19: Capital Project #4 -Overhead Transformers | M19: 45000
B20: Capital Project #5 - Underground Transformers | C20: 617980 | D20: Capital Project #5 - Underground Transformers | E20: 277149 | F20: Capital Project #5- Powerline Feeder Upgrades | G20: 524514 | H20: Capital Project #5 - Underground Transformers | I20: 508860 | J20: Capital Project #5 - Underground Transformers | K20: 210587 | L20: Capital Project #5 - Underground Transformers | M20: 360000
B21: Capital Project #6- New Subdivisions and Townhomes | C21: 838213 | D21: Capital Project #6 - Powerline Feeder Upgrades | E21: 353641 | F21: Capital Projects #6 - New Subdivisions and Townhomes | G21: 265408 | H21: Capital Project #6 - Powerline Feeder Upgrades | I21: 489849 | J21: Capital Project #6 - Powerline Feeder Upgrades | K21: 692218 | L21: Capital Project #6 - Powerline Feeder Upgrades | M21: 450000
B22: Capital Project #7City/Ministry of Transportation Relocates | C22: 103262 | D22: Capital Project #7 - New Subdivisions and Townhomes | E22: 1654016 | F22: Capital Project #7 - Scada & Distribution/ System Upgrade to Windows | G22: 246707 | H22: Capital Projects #7 -New Subdivisions and Townhomes | I22: 328556 | J22: Capital Project #7 New Subdivisions and Townhomes | K22: 841872 | L22: Capital Project #7 New Subdivisions and Townhomes | M22: 446100
B23: Capital Project #8 - Scada & Distribution Automation/Brantford General Hospital Automatic Load Transfer System | C23: 179175 | D23: Capital Project #8 - Scada & Distribution Automation/Reloser Installation | E23: 96919 | F23: Capital Project #8 - Annual Pole Replacements - General Yearly Rebuilds | G23: 432011 | H23: Capital Project #8 - Annual Pole Replacements - General Yearly Rebuilds | I23: 613691 | J23: Capital Project #8 - Annual Pole Replacements - General Yearly Rebuilds | K23: 660709.0358 | L23: Capital Project #8- Scada & Distribution Automation | M23: 150000
B24: Capital Project #9- Conversion of Lines from 4 & 8 Kv to 27 KvSystem - Applewood & Brier Park Subdivision | C24: =1832275+100639+27717 -> 1960631 | D24: Capital Project #9 - Conversion of Lines from 4 & 8 Kv to 27 Kv System - Tranquility, Rosewood, etc. | E24: 1402272 | F24: Capital Project #9 - Annual Pole Replacements - General Yearly Rebuilds - Brantwood Park | G24: 1537546 | H24: Capital Project #9 - Annual Pole Replacements - General Yearly Rebuilds - Brantwood Park/Dunsdon Rebuild | I24: 1468877 | J24: Capital Project #9 - Annual Pole Replacements - General Yearly Rebuilds - Lynden Hill Estates | K24: 1096018.733 | L24: Capital Project #9- Capacitor Study/Installation of Line Banks | M24: 120000
B25: Capital Project #10- Annual Pole Replacements - General Yearly Rebuilds | C25: 471404 | D25: Capital Project #10 - Annual Pole Replacements - General Yearly Rebuilds | E25: 512324 | F25: Capital Project #10-- Metering | G25: =208889+146480 -> 355369 | H25: Capital Project #10 - Asset Management & Consultancy Software | I25: 219196 | J25: Capital Project #10 - Asset Management & Consultancy Software | K25: 230987 | L25: Capital Project #10- Ownership Transfers - Primary Services and older 27.6Kv Townhome Sites | M25: 110000
B26: Capital Project #11 - AM/FM GIS System Upgrade | C26: 241944 | D26: Capital Project #11 - Testing of G-Technology Version 9.4 | E26: 70814 | F26: Capital Project #11-- Wholesale Metering (Brantford TS) | G26: 769365 | H26: Capital Project #11 Upgrade to G-Technology Version 10 | I26: 75249 | J26: Capital Project #11 - Replacement of Vehicles | K26: 123836 | L26: Capital Project #11 Annual Pole Replacements - General Yearly Rebuilds | M26: 390000
B27: Capital Project #12 - Metering | C27: 229050 | D27: Capital Project #12 - Metering | E27: =274178+75339 -> 349517 | F27: Capital Project #12- Replacement of Vehicles | G27: 248832 | H27: Capital Project #12 - Metering | I27: =179949-29710 -> 150239 | J27: Capital Project #12 - Office Furniture & Computer Equipment | K27: 106553 | L27: Capital Project #12 - Asset Management Consultancy &Software | M27: 150000
B28: Capital Project #13 -Replacement of Vehicles | C28: 165750 | D28: Capital Project #13 - Replacement of Vehicles | E28: 312919 | H28: Capital Project #13-- Wholesale Metering (Brantford TS) | I28: 26781 | J28: Capital Project #13 - Metering | K28: =64728+64886 -> 129614 | L28: Capital Project #13 - Metering | M28: 205000
H29: Capital Project #14 - Replacement of Vehicles | I29: 309767 | L29: Capital Project #14 - Replacement of Vehicles | M29: 200000
L30: Capital Project #15 - Customer Services (CS) Requirements | M30: 200000
B31: Capital Contributions | C31: -627570 | D31: Capital Contributions | E31: -745257 | F31: Capital Contribtuions | G31: -196588 | H31: Capital Contributions | I31: -265560 | J31: Capital Contributions | K31: -605551 | L31: Capital Contributions | M31: -203440
B32: Sub Total: | C32: =SUM(C16:C31) -> 5181227 | D32: Sub Total: | E32: =SUM(E16:E31) -> 5041855 | F32: Sub Total: | G32: =SUM(G16:G31) -> 5770576 | H32: Sub Total: | I32: =SUM(I16:I31) -> 4807307 | J32: Sub Total: | K32: =SUM(K16:K31) -> 4309010.768 | L32: Sub Total: | M32: =SUM(M16:M31) -> 3277660
B33: Miscellaneous | C33: =C32-C36 -> 22289 | D33: Miscellaneous | E33: =E32-E36 -> -88042 | F33: Miscellaneous | G33: =G32-G36 -> 101275 | H33: Miscellaneous | I33: =I32-I36 -> 226611 | J33: Miscellaneous | K33: =K32-K36 -> -897460.2317 | L33: Miscellaneous | M33: =M32-M36 -> -162500
B36: Total: | C36: =5223617-627570+562891 -> 5158938 | D36: Total | E36: =5400507-745257+474647 -> 5129897 | F36: Total: | G36: =5393722-196588+472167 -> 5669301 | H36: Total: | I36: =4288465-265560+557791 -> 4580696 | J36: Total: | K36: =5210071-623500+619900 -> 5206471 | L36: Total: | M36: =2881100-203440+762500 -> 3440160
B37: Notes:
B39: 1 Please provide a breakdown of the major components of each capital project. Please ensure that all projects below the materiality threshold are included in the miscellaneous line. Add more projects as required.
B41: 2 Amounts should be reported on a MIFRS basis for the adoption year and any subsequent years, only.

Sheet App.2-B_FA Cont. 2008
M1: File Number: | N1: EB-2012-0109
M2: Exhibit: | N2: 2
M3: Tab:
M4: Schedule:
M5: Page: | N5: 2
M7: Date: | N7: July 17,2013
A9: Appendix 2-B
A10: Fixed Asset Continuity Schedule
F12: Year | G12: 2008
E14: Cost | K14: Accumulated Depreciation
A15: CCA Class | B15: OEB | C15: Description | D15: Depreciation Rate | E15: Opening Balance | F15: Additions | G15: Disposals | H15: Closing Balance | J15: Opening Balance | K15: Additions | L15: Disposals | M15: Closing Balance | N15: Net Book Value
A16: 12 | B16: 1611 | C16: Computer Software (Formally known as Account 1925) | H16: =E16+F16+G16 -> 0 | M16: =J16+K16+L16 -> 0 | N16: =H16+M16 -> 0
A17: CEC | B17: 1612 | C17: Land Rights (Formally known as Account 1906) | H17: =E17+F17+G17 -> 0 | M17: =J17+K17+L17 -> 0 | N17: =H17+M17 -> 0
A18: N/A | B18: 1805 | C18: Land | E18: 208241.05 | F18: -20312 | G18: 0 | H18: =E18+F18+G18 -> 187929.05 | J18: 0 | K18: 0 | L18: 0 | M18: =J18+K18+L18 -> 0 | N18: =H18+M18 -> 187929.05
A19: CEC | B19: 1806 | C19: Land Rights | E19: 0 | F19: 0 | G19: 0 | H19: =E19+F19+G19 -> 0 | J19: 0 | K19: 0 | L19: 0 | M19: =J19+K19+L19 -> 0 | N19: =H19+M19 -> 0
A20: 47 | B20: 1808 | C20: Buildings | E20: 1192568.26 | F20: -28836.55 | G20: 0 | H20: =E20+F20+G20 -> 1163731.71 | J20: -82210.26 | K20: -23274 | L20: 4048.36 | M20: =J20+K20+L20 -> -101435.9 | N20: =H20+M20 -> 1062295.81
A21: 13 | B21: 1810 | C21: Leasehold Improvements | E21: 0 | F21: 0 | G21: 0 | H21: 0 | J21: 0 | K21: 0 | L21: 0 | M21: 0 | N21: 0
A22: 47 | B22: 1815 | C22: Transformer Station Equipment >50 kV | E22: 4469541.3 | F22: 0 | G22: 0 | H22: 4469541.3 | J22: -332907.3 | K22: -111739 | L22: 0 | M22: -444646.3 | N22: 4024895
A23: 47 | B23: 1820 | C23: Distribution Station Equipment <50 kV | E23: 140682.51 | F23: -66255.94 | G23: 0 | H23: 74426.57 | J23: -33448.51 | K23: -2480 | L23: 15828 | M23: -20100.51 | N23: 54326.06
A24: 47 | B24: 1825 | C24: Storage Battery Equipment | E24: 0 | F24: 0 | G24: 0 | H24: 0 | J24: 0 | K24: 0 | L24: 0 | M24: 0 | N24: 0
A25: 47 | B25: 1830 | C25: Poles, Towers & Fixtures | E25: 13076250.99 | F25: 610799.35 | G25: 0 | H25: 13687050.34 | J25: -3383374.99 | K25: -547481.35 | L25: 0 | M25: -3930856.34 | N25: 9756194
A26: 47 | B26: 1835 | C26: Overhead Conductors & Devices | E26: 9890795.73 | F26: 570912.58 | G26: 0 | H26: 10461708.31 | J26: -2069538.73 | K26: -418480.58 | L26: 0 | M26: -2488019.31 | N26: 7973689
A27: 47 | B27: 1840 | C27: Underground Conduit | E27: 10628959.86 | F27: 641725.33 | G27: 0 | H27: 11270685.19 | J27: -2809074.86 | K27: -450828.33 | L27: 0 | M27: -3259903.19 | N27: 8010782
A28: 47 | B28: 1845 | C28: Underground Conductors & Devices | E28: 11158522.97 | F28: 1856542.34 | G28: 0 | H28: 13015065.31 | J28: -1580662.97 | K28: -534022.34 | L28: 0 | M28: -2114685.31 | N28: 10900380
A29: 47 | B29: 1850 | C29: Line Transformers | E29: 13619320.89 | F29: 1180002.04 | G29: 0 | H29: 14799322.93 | J29: -3103831.89 | K29: -595764.04 | L29: 0 | M29: -3699595.93 | N29: 11099727
A30: 47 | B30: 1855 | C30: Services (Overhead & Underground) | E30: 637358.28 | F30: 103914.69 | G30: 0 | H30: 741272.97 | J30: -47749.28 | K30: -36873.69 | L30: 0 | M30: -84622.97 | N30: 656650
A31: 47 | B31: 1860 | C31: Meters | E31: 6960135.32 | F31: 259720.2 | G31: 0 | H31: 7219855.52 | J31: -1537900.32 | K31: -288812.2 | L31: 0 | M31: -1826712.52 | N31: 5393143
A32: 47 | B32: 1860 | C32: Meters (Smart Meters) | E32: 0 | F32: 0 | G32: 0 | H32: 0 | J32: 0 | K32: 0 | L32: 0 | M32: 0 | N32: 0
A33: N/A | B33: 1905 | C33: Land | E33: 0 | F33: 0 | G33: 0 | H33: 0 | J33: 0 | K33: 0 | L33: 0 | M33: 0 | N33: 0
A34: 47 | B34: 1908 | C34: Buildings & Fixtures | E34: 0 | F34: 0 | G34: 0 | H34: 0 | J34: 0 | K34: 0 | L34: 0 | M34: 0 | N34: 0
A35: 13 | B35: 1910 | C35: Leasehold Improvements | E35: 0 | F35: 0 | G35: 0 | H35: 0 | J35: 0 | K35: 0 | L35: 0 | M35: 0 | N35: 0
A36: 8 | B36: 1915 | C36: Office Furniture & Equipment (10 years) | E36: 0 | F36: 0 | G36: 0 | H36: 0 | J36: 0 | K36: 0 | L36: 0 | M36: 0 | N36: 0
A37: 8 | B37: 1915 | C37: Office Furniture & Equipment (5 years) | E37: 0 | F37: 0 | G37: 0 | H37: 0 | J37: 0 | K37: 0 | L37: 0 | M37: 0 | N37: 0
A38: 10 | B38: 1920 | C38: Computer Equipment - Hardware | E38: 0 | F38: 0 | G38: 0 | H38: 0 | J38: 0 | K38: 0 | L38: 0 | M38: 0 | N38: 0
A39: 45 | B39: 1920 | C39: Computer Equip.-Hardware(Post Mar. 22/04) | E39: 0 | F39: 0 | G39: 0 | H39: 0 | J39: 0 | K39: 0 | L39: 0 | M39: 0 | N39: 0
A40: 45.1 | B40: 1920 | C40: Computer Equip.-Hardware(Post Mar. 19/07) | E40: 0 | F40: 0 | G40: 0 | H40: 0 | J40: 0 | K40: 0 | L40: 0 | M40: 0 | N40: 0
B41: 1925 | C41: Computer Software | E41: 0 | F41: 167826.27 | G41: 0 | H41: 167826.27 | J41: 0 | K41: -33566.27 | L41: 0 | M41: -33566.27 | N41: 134260
A42: 10 | B42: 1930 | C42: Transportation Equipment | E42: 2352980.61 | F42: 164863.12 | G42: -49409.43 | H42: 2468434.3 | J42: -1438612.61 | K42: -246533.12 | L42: 49409.43 | M42: -1635736.3 | N42: 832698
A43: 8 | B43: 1935 | C43: Stores Equipment | E43: 0 | F43: 0 | G43: 0 | H43: 0 | J43: 0 | K43: 0 | L43: 0 | M43: 0 | N43: 0
A44: 8 | B44: 1940 | C44: Tools, Shop & Garage Equipment | E44: 110828.55 | F44: 31935.07 | G44: 0 | H44: 142763.62 | J44: -49093.55 | K44: -14272.07 | L44: 0 | M44: -63365.62 | N44: 79398
A45: 8 | B45: 1945 | C45: Measurement & Testing Equipment | E45: 0 | F45: 0 | G45: 0 | H45: 0 | J45: 0 | K45: 0 | L45: 0 | M45: 0 | N45: 0
A46: 8 | B46: 1950 | C46: Power Operated Equipment | E46: 0 | F46: 0 | G46: 0 | H46: 0 | J46: 0 | K46: 0 | L46: 0 | M46: 0 | N46: 0
A47: 8 | B47: 1955 | C47: Communications Equipment | E47: 1176.32 | F47: 0 | G47: 0 | H47: 1176.32 | J47: -471.32 | K47: -236.06 | L47: 0 | M47: -707.38 | N47: 468.94
A48: 8 | B48: 1955 | C48: Communication Equipment (Smart Meters) | E48: 0 | F48: 0 | G48: 0 | H48: 0 | J48: 0 | K48: 0 | L48: 0 | M48: 0 | N48: 0
A49: 8 | B49: 1960 | C49: Miscellaneous Equipment | E49: 0 | F49: 0 | G49: 0 | H49: 0 | J49: 0 | K49: 0 | L49: 0 | M49: =J49+K49+L49 -> 0 | N49: =H49+M49 -> 0
B50: 1970 | C50: Load Management Controls - Customer Premises | E50: 547972.38 | F50: 0 | G50: 0 | H50: 547972.38 | J50: -392711.38 | K50: -54797 | L50: 0 | M50: =J50+K50+L50 -> -447508.38 | N50: =H50+M50 -> 100464
A51: 47 | B51: 1975 | C51: Load Management Controls Utility Premises | E51: 0 | F51: 0 | G51: 0 | H51: 0 | J51: 0 | K51: 0 | L51: 0 | M51: 0 | N51: 0
A52: 47 | B52: 1980 | C52: System Supervisor Equipment | E52: 148396.81 | F52: 198266.09 | G52: 0 | H52: 346662.9 | J52: -9894.81 | K52: -23107.09 | L52: 0 | M52: -33001.9 | N52: 313661
A53: 47 | B53: 1985 | C53: Miscellaneous Fixed Assets | E53: 0 | F53: 0 | G53: 0 | H53: 0 | J53: 0 | K53: 0 | L53: 0 | M53: 0 | N53: 0
A54: 47 | B54: 1995 | C54: Contributions & Grants | E54: -2016598.24 | F54: -627570.3 | G54: 0 | H54: -2644168.54 | J54: 145935.24 | K54: 105762.3 | L54: 0 | M54: 251697.54 | N54: -2392471
A55: N/A | B55: 2040 | C55: Plant Held for Future Use | F55: 115404.49 | H55: 115404.49 | L55: -19876.36 | M55: =J55+K55+L55 -> -19876.36 | N55: 95528.13
B56: etc. | M56: 0 | N56: 0
C58: Total | E58: =SUM(E16:E57) -> 73127133.59 | F58: =SUM(F16:F57) -> 5158936.78 | G58: =SUM(G16:G57) -> -49409.43 | H58: =SUM(H16:H57) -> 78236660.94 | J58: =SUM(J16:J57) -> -16725547.54 | K58: =SUM(K16:K57) -> -3276504.84 | L58: =SUM(L16:L57) -> 49409.43 | M58: =SUM(M16:M57) -> -19952642.95 | N58: =SUM(N16:N57) -> 58284017.99
J60: Less: Fully Allocated Depreciation
A61: 10 | C61: Transportation | J61: Transportation | L61: 246533.12
A62: 8 | C62: Stores Equipment | J62: Stores Equipment | L62: 0
J63: Net Depreciation | L63: =-K58-L61-L62 -> 3029971.72
A65: Notes:
A67: 1 | B67: Tables in the format outlined above covering all fixed asset accounts should be submitted for the Test Year, Bridge Year and all relevant historical years. At a minimum , the applicant must provide data for the earlier of: 1) all historical years back to its last rebasing; or 2) at least three years of historical actuals, in addition to Bridge Year and Test Year forecasts.
A70: 2 | B70: The "CCA Class" for fixed assets should agree with the CCA Class used for tax purposes in Tax Returns. Fixed Assets sub-components may be used where the underlying asset components are classified under multiple CCA Classes for tax purposes. If an applicant uses any different classes from those shown in the table, an explanation should be provided. (also see note 3 below).
A73: 3 | B73: The table may need to be customized for a utility's asset categories or for any new asset accounts announced or authorized by the Board.
A75: 4 | B75: The depreciation column (D) is not required as the relevant information will be provided in the following 2-C series of appendices.

Sheet App. 2-B_ FA Cont 2009
M1: File Number: | N1: EB-2012-0109
M2: Exhibit: | N2: 2
M3: Tab:
M4: Schedule:
M5: Page: | N5: 3
M7: Date: | N7: July 17,2013
A9: Appendix 2-B
A10: Fixed Asset Continuity Schedule
F12: Year | G12: 2009
E14: Cost | K14: Accumulated Depreciation
A15: CCA Class | B15: OEB | C15: Description | D15: Depreciation Rate | E15: Opening Balance | F15: Additions | G15: Disposals | H15: Closing Balance | J15: Opening Balance | K15: Additions | L15: Disposals | M15: Closing Balance | N15: Net Book Value
A16: 12 | B16: 1611 | C16: Computer Software (Formally known as Account 1925) | E16: 0 | H16: =E16+F16+G16 -> 0 | J16: 0 | M16: =J16+K16+L16 -> 0 | N16: =H16+M16 -> 0
A17: CEC | B17: 1612 | C17: Land Rights (Formally known as Account 1906) | E17: 0 | H17: =E17+F17+G17 -> 0 | J17: 0 | M17: =J17+K17+L17 -> 0 | N17: =H17+M17 -> 0
A18: N/A | B18: 1805 | C18: Land | E18: 187929.05 | F18: -5968.42 | G18: 0 | H18: =E18+F18+G18 -> 181960.63 | J18: 0 | K18: 0 | L18: 0 | M18: =J18+K18+L18 -> 0 | N18: =H18+M18 -> 181960.63
A19: CEC | B19: 1806 | C19: Land Rights | E19: 0 | F19: 5968.42 | G19: 0 | H19: =E19+F19+G19 -> 5968.42 | J19: 0 | K19: 0 | L19: 0 | M19: =J19+K19+L19 -> 0 | N19: =H19+M19 -> 5968.42
A20: 47 | B20: 1808 | C20: Buildings | E20: 1163731.71 | F20: 0 | G20: 0 | H20: =E20+F20+G20 -> 1163731.71 | J20: -101435.9 | K20: -23274 | L20: 0 | M20: =J20+K20+L20 -> -124709.9 | N20: =H20+M20 -> 1039021.81
A21: 13 | B21: 1810 | C21: Leasehold Improvements | E21: 0 | F21: 0 | G21: 0 | H21: 0 | J21: 0 | K21: 0 | L21: 0 | M21: 0 | N21: 0
A22: 47 | B22: 1815 | C22: Transformer Station Equipment >50 kV | E22: 4469541.3 | F22: 0 | G22: 0 | H22: 4469541.3 | J22: -444646.3 | K22: -111739 | L22: 0 | M22: -556385.3 | N22: 3913156
A23: 47 | B23: 1820 | C23: Distribution Station Equipment <50 kV | E23: 74426.57 | F23: 0 | G23: 0 | H23: 74426.57 | J23: -20100.51 | K23: -2481 | L23: 0 | M23: -22581.51 | N23: 51845.06
A24: 47 | B24: 1825 | C24: Storage Battery Equipment | E24: 0 | F24: 0 | G24: 0 | H24: 0 | J24: 0 | K24: 0 | L24: 0 | M24: 0 | N24: 0
A25: 47 | B25: 1830 | C25: Poles, Towers & Fixtures | E25: 13687050.34 | F25: 828620.62 | G25: 0 | H25: 14515670.96 | J25: -3930856.34 | K25: -580646.62 | L25: 0 | M25: -4511502.96 | N25: 10004168
A26: 47 | B26: 1835 | C26: Overhead Conductors & Devices | E26: 10461708.31 | F26: 468597.76 | G26: 0 | H26: 10930306.07 | J26: -2488019.31 | K26: -437209.76 | L26: 0 | M26: -2925229.07 | N26: 8005077
A27: 47 | B27: 1840 | C27: Underground Conduit | E27: 11270685.19 | F27: 681004.09 | G27: 0 | H27: 11951689.28 | J27: -3259903.19 | K27: -478072.09 | L27: 0 | M27: -3737975.28 | N27: 8213714
A28: 47 | B28: 1845 | C28: Underground Conductors & Devices | E28: 13015065.31 | F28: 1877442.94 | G28: 0 | H28: 14892508.25 | J28: -2114685.31 | K28: -609144.94 | L28: 0 | M28: -2723830.25 | N28: 12168678
A29: 47 | B29: 1850 | C29: Line Transformers | E29: 14799322.93 | F29: 973673.6 | G29: 0 | H29: 15772996.53 | J29: -3699595.93 | K29: -634683.6 | L29: 0 | M29: -4334279.53 | N29: 11438717
A30: 47 | B30: 1855 | C30: Services (Overhead & Underground) | E30: 741272.97 | F30: 146411.89 | G30: 0 | H30: 887684.86 | J30: -84622.97 | K30: -41313.89 | L30: 0 | M30: -125936.86 | N30: 761748
A31: 47 | B31: 1860 | C31: Meters | E31: 7219855.52 | F31: 424756.19 | G31: 0 | H31: 7644611.71 | J31: -1826712.52 | K31: -241580.88 | L31: 0 | M31: -2068293.4 | N31: 5576318.31
A32: 47 | B32: 1860 | C32: Meters (Smart Meters) | E32: 0 | F32: 0 | G32: 0 | H32: 0 | J32: 0 | K32: 0 | L32: 0 | M32: 0 | N32: 0
A33: N/A | B33: 1905 | C33: Land | E33: 0 | F33: 0 | G33: 0 | H33: 0 | J33: 0 | K33: 0 | L33: 0 | M33: 0 | N33: 0
A34: 47 | B34: 1908 | C34: Buildings & Fixtures | E34: 0 | F34: 0 | G34: 0 | H34: 0 | J34: 0 | K34: 0 | L34: 0 | M34: 0 | N34: 0
A35: 13 | B35: 1910 | C35: Leasehold Improvements | E35: 0 | F35: 0 | G35: 0 | H35: 0 | J35: 0 | K35: 0 | L35: 0 | M35: 0 | N35: 0
A36: 8 | B36: 1915 | C36: Office Furniture & Equipment (10 years) | E36: 0 | F36: 0 | G36: 0 | H36: 0 | J36: 0 | K36: 0 | L36: 0 | M36: 0 | N36: 0
A37: 8 | B37: 1915 | C37: Office Furniture & Equipment (5 years) | E37: 0 | F37: 0 | G37: 0 | H37: 0 | J37: 0 | K37: 0 | L37: 0 | M37: 0 | N37: 0
A38: 10 | B38: 1920 | C38: Computer Equipment - Hardware | E38: 0 | F38: 0 | G38: 0 | H38: 0 | J38: 0 | K38: 0 | L38: 0 | M38: 0 | N38: 0
A39: 45 | B39: 1920 | C39: Computer Equip.-Hardware(Post Mar. 22/04) | E39: 0 | F39: 0 | G39: 0 | H39: 0 | J39: 0 | K39: 0 | L39: 0 | M39: 0 | N39: 0
A40: 45.1 | B40: 1920 | C40: Computer Equip.-Hardware(Post Mar. 19/07) | E40: 0 | F40: 0 | G40: 0 | H40: 0 | J40: 0 | K40: 0 | L40: 0 | M40: 0 | N40: 0
B41: 1925 | C41: Computer Software | E41: 167826.27 | F41: 28529.1 | G41: 0 | H41: 196355.37 | J41: -33566.27 | K41: -39270.1 | L41: 0 | M41: -72836.37 | N41: 123519
A42: 10 | B42: 1930 | C42: Transportation Equipment | E42: 2468434.3 | F42: 312918.84 | G42: -100056.45 | H42: 2681296.69 | J42: -1635736.3 | K42: -275556.84 | L42: 100056.45 | M42: -1811236.69 | N42: 870060
A43: 8 | B43: 1935 | C43: Stores Equipment | E43: 0 | F43: 0 | G43: 0 | H43: 0 | J43: 0 | K43: 0 | L43: 0 | M43: 0 | N43: 0
A44: 8 | B44: 1940 | C44: Tools, Shop & Garage Equipment | E44: 142763.62 | F44: 35792.89 | G44: 0 | H44: 178556.51 | J44: -63365.62 | K44: -17858.89 | L44: 0 | M44: -81224.51 | N44: 97332
A45: 8 | B45: 1945 | C45: Measurement & Testing Equipment | E45: 0 | F45: 0 | G45: 0 | H45: 0 | J45: 0 | K45: 0 | L45: 0 | M45: 0 | N45: 0
A46: 8 | B46: 1950 | C46: Power Operated Equipment | E46: 0 | F46: 0 | G46: 0 | H46: 0 | J46: 0 | K46: 0 | L46: 0 | M46: 0 | N46: 0
A47: 8 | B47: 1955 | C47: Communications Equipment | E47: 1176.32 | F47: 0 | G47: 0 | H47: 1176.32 | J47: -707.38 | K47: -236.06 | L47: 0 | M47: -943.44 | N47: 232.88
A48: 8 | B48: 1955 | C48: Communication Equipment (Smart Meters) | E48: 0 | F48: 0 | G48: 0 | H48: 0 | J48: 0 | K48: 0 | L48: 0 | M48: 0 | N48: 0
A49: 8 | B49: 1960 | C49: Miscellaneous Equipment | E49: 0 | F49: 0 | G49: 0 | H49: 0 | J49: 0 | K49: 0 | L49: 0 | M49: 0 | N49: 0
B50: 1970 | C50: Load Management Controls - Customer Premises | E50: 547972.38 | F50: 0 | G50: 0 | H50: 547972.38 | J50: -447508.38 | K50: -54797 | L50: 0 | M50: -502305.38 | N50: 45667
A51: 47 | B51: 1975 | C51: Load Management Controls Utility Premises | E51: 0 | F51: 0 | G51: 0 | H51: 0 | J51: 0 | K51: 0 | L51: 0 | M51: 0 | N51: 0
A52: 47 | B52: 1980 | C52: System Supervisor Equipment | E52: 346662.9 | F52: 97405.96 | G52: 0 | H52: 444068.86 | J52: -33001.9 | K52: -29731.25 | L52: 0 | M52: -62733.15 | N52: 381335.71
A53: 47 | B53: 1985 | C53: Miscellaneous Fixed Assets | E53: 0 | F53: 0 | G53: 0 | H53: 0 | J53: 0 | K53: 0 | L53: 0 | M53: 0 | N53: 0
A54: 47 | B54: 1995 | C54: Contributions & Grants | E54: -2644168.54 | F54: -745256.65 | G54: 0 | H54: -3389425.19 | J54: 251697.54 | K54: 135583.65 | L54: 0 | M54: 387281.19 | N54: -3002144
A55: N/A | B55: 2040 | C55: Plant Held for Future Use | E55: 115404.49 | F55: 17515 | G55: -95592.49 | H55: 37327 | J55: -19876.36 | K55: 0 | L55: 19876.36 | M55: 0 | N55: 37327
B56: etc. | H56: 0 | M56: 0 | N56: 0
C58: Total | E58: =SUM(E16:E57) -> 78236660.94 | F58: =SUM(F16:F57) -> 5147412.23 | G58: =SUM(G16:G57) -> -195648.94 | H58: =SUM(H16:H57) -> 83188424.23 | J58: =SUM(J16:J57) -> -19952642.95 | K58: =SUM(K16:K57) -> -3442012.27 | L58: =SUM(L16:L57) -> 119932.81 | M58: =SUM(M16:M57) -> -23274722.41 | N58: =SUM(N16:N57) -> 59913701.82
J60: Less: Fully Allocated Depreciation
A61: 10 | C61: Transportation | J61: Transportation | L61: 275556.84
A62: 8 | C62: Stores Equipment | J62: Stores Equipment
J63: Net Depreciation | L63: =-K58-L61-L62 -> 3166455.43
A65: Notes:
A67: 1 | B67: Tables in the format outlined above covering all fixed asset accounts should be submitted for the Test Year, Bridge Year and all relevant historical years. At a minimum , the applicant must provide data for the earlier of: 1) all historical years back to its last rebasing; or 2) at least three years of historical actuals, in addition to Bridge Year and Test Year forecasts.
A70: 2 | B70: The "CCA Class" for fixed assets should agree with the CCA Class used for tax purposes in Tax Returns. Fixed Assets sub-components may be used where the underlying asset components are classified under multiple CCA Classes for tax purposes. If an applicant uses any different classes from those shown in the table, an explanation should be provided. (also see note 3 below).
A73: 3 | B73: The table may need to be customized for a utility's asset categories or for any new asset accounts announced or authorized by the Board.
A75: 4 | B75: The depreciation column (D) is not required as the relevant information will be provided in the following 2-C series of appendices.

Sheet App 2-B_FA Cont 2010
M1: File Number: | N1: EB-2012-0109
M2: Exhibit: | N2: 2
M3: Tab:
M4: Schedule:
M5: Page: | N5: 4
M7: Date: | N7: July 17,2013
A9: Appendix 2-B
A10: Fixed Asset Continuity Schedule
F12: Year | G12: 2010
E14: Cost | K14: Accumulated Depreciation
A15: CCA Class | B15: OEB | C15: Description | D15: Depreciation Rate | E15: Opening Balance | F15: Additions | G15: Disposals | H15: Closing Balance | J15: Opening Balance | K15: Additions | L15: Disposals | M15: Closing Balance | N15: Net Book Value
A16: 12 | B16: 1611 | C16: Computer Software (Formally known as Account 1925) | E16: 0 | F16: 0 | G16: 0 | H16: =E16+F16+G16 -> 0 | J16: 0 | K16: 0 | L16: 0 | M16: =J16+K16+L16 -> 0 | N16: =H16+M16 -> 0
A17: CEC | B17: 1612 | C17: Land Rights (Formally known as Account 1906) | E17: 0 | F17: 0 | G17: 0 | H17: =E17+F17+G17 -> 0 | J17: 0 | K17: 0 | L17: 0 | M17: =J17+K17+L17 -> 0 | N17: =H17+M17 -> 0
A18: N/A | B18: 1805 | C18: Land | E18: 181960.63 | F18: 0 | G18: 0 | H18: =E18+F18+G18 -> 181960.63 | J18: 0 | K18: 0 | L18: 0 | M18: =J18+K18+L18 -> 0 | N18: =H18+M18 -> 181960.63
A19: CEC | B19: 1806 | C19: Land Rights | E19: 5968.42 | F19: 0 | G19: 0 | H19: =E19+F19+G19 -> 5968.42 | J19: 0 | K19: 0 | L19: 0 | M19: =J19+K19+L19 -> 0 | N19: =H19+M19 -> 5968.42
A20: 47 | B20: 1808 | C20: Buildings | E20: 1163731.71 | F20: 0 | G20: 0 | H20: =E20+F20+G20 -> 1163731.71 | J20: -124709.9 | K20: -23274 | L20: 0 | M20: =J20+K20+L20 -> -147983.9 | N20: =H20+M20 -> 1015747.81
A21: 13 | B21: 1810 | C21: Leasehold Improvements | E21: 0 | F21: 0 | G21: 0 | H21: 0 | J21: 0 | K21: 0 | L21: 0 | M21: 0 | N21: 0
A22: 47 | B22: 1815 | C22: Transformer Station Equipment >50 kV | E22: 4469541.3 | F22: 0 | G22: 0 | H22: 4469541.3 | J22: -556385.3 | K22: -111739 | L22: 0 | M22: -668124.3 | N22: 3801417
A23: 47 | B23: 1820 | C23: Distribution Station Equipment <50 kV | E23: 74426.57 | F23: 0 | G23: 0 | H23: 74426.57 | J23: -22581.51 | K23: -2481 | L23: 0 | M23: -25062.51 | N23: 49364.06
A24: 47 | B24: 1825 | C24: Storage Battery Equipment | E24: 0 | F24: 0 | G24: 0 | H24: 0 | J24: 0 | K24: 0 | L24: 0 | M24: 0 | N24: 0
A25: 47 | B25: 1830 | C25: Poles, Towers & Fixtures | E25: 14515670.96 | F25: 778060.45 | G25: 0 | H25: 15293731.41 | J25: -4511502.96 | K25: -611734.45 | L25: 0 | M25: -5123237.41 | N25: 10170494
A26: 47 | B26: 1835 | C26: Overhead Conductors & Devices | E26: 10930306.07 | F26: 530675.22 | G26: 0 | H26: 11460981.29 | J26: -2925229.07 | K26: -458439.22 | L26: 0 | M26: -3383668.29 | N26: 8077313
A27: 47 | B27: 1840 | C27: Underground Conduit | E27: 11951689.28 | F27: 647491.36 | G27: 0 | H27: 12599180.64 | J27: -3737975.28 | K27: -503959.36 | L27: 0 | M27: -4241934.64 | N27: 8357246
A28: 47 | B28: 1845 | C28: Underground Conductors & Devices | E28: 14892508.25 | F28: 1378157.95 | G28: 0 | H28: 16270666.2 | J28: -2723830.25 | K28: -623972.35 | L28: 0 | M28: -3347802.6 | N28: 12922863.6
A29: 47 | B29: 1850 | C29: Line Transformers | E29: 15772996.53 | F29: 781089.81 | G29: 0 | H29: 16554086.34 | J29: -4334279.53 | K29: -654597.81 | L29: 0 | M29: -4988877.34 | N29: 11565209
A30: 47 | B30: 1855 | C30: Services (Overhead & Underground) | E30: 887684.86 | F30: 189738.02 | G30: 0 | H30: 1077422.88 | J30: -125936.86 | K30: -31495.02 | L30: 0 | M30: -157431.88 | N30: 919991
A31: 47 | B31: 1860 | C31: Meters | E31: 7644611.71 | F31: 1088509.57 | G31: 0 | H31: 8733121.28 | J31: -2068293.4 | K31: -349468.92 | L31: 0 | M31: -2417762.32 | N31: 6315358.96
A32: 47 | B32: 1860 | C32: Meters (Smart Meters) | E32: 0 | F32: 0 | G32: 0 | H32: 0 | J32: 0 | K32: 0 | L32: 0 | M32: 0 | N32: 0
A33: N/A | B33: 1905 | C33: Land | E33: 0 | F33: 0 | G33: 0 | H33: 0 | J33: 0 | K33: 0 | L33: 0 | M33: 0 | N33: 0
A34: 47 | B34: 1908 | C34: Buildings & Fixtures | E34: 0 | F34: 0 | G34: 0 | H34: 0 | J34: 0 | K34: 0 | L34: 0 | M34: 0 | N34: 0
A35: 13 | B35: 1910 | C35: Leasehold Improvements | E35: 0 | F35: 0 | G35: 0 | H35: 0 | J35: 0 | K35: 0 | L35: 0 | M35: 0 | N35: 0
A36: 8 | B36: 1915 | C36: Office Furniture & Equipment (10 years) | E36: 0 | F36: 0 | G36: 0 | H36: 0 | J36: 0 | K36: 0 | L36: 0 | M36: 0 | N36: 0
A37: 8 | B37: 1915 | C37: Office Furniture & Equipment (5 years) | E37: 0 | F37: 0 | G37: 0 | H37: 0 | J37: 0 | K37: 0 | L37: 0 | M37: 0 | N37: 0
A38: 10 | B38: 1920 | C38: Computer Equipment - Hardware | E38: 0 | F38: 0 | G38: 0 | H38: 0 | J38: 0 | K38: 0 | L38: 0 | M38: 0 | N38: 0
A39: 45 | B39: 1920 | C39: Computer Equip.-Hardware(Post Mar. 22/04) | E39: 0 | F39: 0 | G39: 0 | H39: 0 | J39: 0 | K39: 0 | L39: 0 | M39: 0 | N39: 0
A40: 45.1 | B40: 1920 | C40: Computer Equip.-Hardware(Post Mar. 19/07) | E40: 0 | F40: 0 | G40: 0 | H40: 0 | J40: 0 | K40: 0 | L40: 0 | M40: 0 | N40: 0
B41: 1925 | C41: Computer Software | E41: 196355.37 | F41: 30.69 | G41: 0 | H41: 196386.06 | J41: -72836.37 | K41: -39277.69 | L41: 0 | M41: -112114.06 | N41: 84272
A42: 10 | B42: 1930 | C42: Transportation Equipment | E42: 2681296.69 | F42: 248831.72 | G42: -206784.47 | H42: 2723343.94 | J42: -1811236.69 | K42: -266239.72 | L42: 206784.47 | M42: -1870691.94 | N42: 852652
A43: 8 | B43: 1935 | C43: Stores Equipment | E43: 0 | F43: 0 | G43: 0 | H43: 0 | J43: 0 | K43: 0 | L43: 0 | M43: 0 | N43: 0
A44: 8 | B44: 1940 | C44: Tools, Shop & Garage Equipment | E44: 178556.51 | F44: 14756.51 | G44: 0 | H44: 193313.02 | J44: -81224.51 | K44: -18421.51 | L44: 0 | M44: -99646.02 | N44: 93667
A45: 8 | B45: 1945 | C45: Measurement & Testing Equipment | E45: 0 | F45: 0 | G45: 0 | H45: 0 | J45: 0 | K45: 0 | L45: 0 | M45: 0 | N45: 0
A46: 8 | B46: 1950 | C46: Power Operated Equipment | E46: 0 | F46: 0 | G46: 0 | H46: 0 | J46: 0 | K46: 0 | L46: 0 | M46: 0 | N46: 0
A47: 8 | B47: 1955 | C47: Communications Equipment | E47: 1176.32 | F47: 0 | G47: 0 | H47: 1176.32 | J47: -943.44 | K47: -232.88 | L47: 0 | M47: -1176.32 | N47: 0
A48: 8 | B48: 1955 | C48: Communication Equipment (Smart Meters) | E48: 0 | F48: 0 | G48: 0 | H48: 0 | J48: 0 | K48: 0 | L48: 0 | M48: 0 | N48: 0
A49: 8 | B49: 1960 | C49: Miscellaneous Equipment | E49: 0 | F49: 0 | G49: 0 | H49: 0 | J49: 0 | K49: 0 | L49: 0 | M49: 0 | N49: 0
B50: 1970 | C50: Load Management Controls - Customer Premises | E50: 547972.38 | F50: 0 | G50: 0 | H50: 547972.38 | J50: -502305.38 | K50: -45667 | L50: 0 | M50: -547972.38 | N50: 0
A51: 47 | B51: 1975 | C51: Load Management Controls Utility Premises | E51: 0 | F51: 0 | G51: 0 | H51: 0 | J51: 0 | K51: 0 | L51: 0 | M51: 0 | N51: 0
A52: 47 | B52: 1980 | C52: System Supervisor Equipment | E52: 444068.86 | F52: 208548.44 | G52: 0 | H52: 652617.3 | J52: -62733.15 | K52: -43509.44 | L52: 0 | M52: -106242.59 | N52: 546374.71
A53: 47 | B53: 1985 | C53: Miscellaneous Fixed Assets | E53: 0 | F53: 0 | G53: 0 | H53: 0 | J53: 0 | K53: 0 | L53: 0 | M53: 0 | N53: 0
A54: 47 | B54: 1995 | C54: Contributions & Grants | E54: -3389425.19 | F54: -196587.65 | G54: 0 | H54: -3586012.84 | J54: 387281.19 | K54: 143428.65 | L54: 0 | M54: 530709.84 | N54: -3055303
A55: N/A | B55: 2040 | C55: Plant Held for Future Use | E55: 37327 | F55: 52910.26 | G55: -38421.42 | H55: 51815.84 | J55: 0 | K55: 0 | L55: 0 | M55: 0 | N55: 51815.84
B56: etc. | E56: 0 | H56: 0 | M56: 0 | N56: 0
E57: 0
C58: Total | E58: =SUM(E16:E57) -> 83188424.23 | F58: =SUM(F16:F57) -> 5722212.35 | G58: =SUM(G16:G57) -> -245205.89 | H58: =SUM(H16:H57) -> 88665430.69 | J58: =SUM(J16:J57) -> -23274722.41 | K58: =SUM(K16:K57) -> -3641080.72 | L58: =SUM(L16:L57) -> 206784.47 | M58: =SUM(M16:M57) -> -26709018.66 | N58: =SUM(N16:N57) -> 61956412.03
J60: Less: Fully Allocated Depreciation
A61: 10 | C61: Transportation | J61: Transportation | L61: 266239.72
A62: 8 | C62: Stores Equipment | J62: Stores Equipment
J63: Net Depreciation | L63: =-K58-L61-L62 -> 3374841
A65: Notes:
A67: 1 | B67: Tables in the format outlined above covering all fixed asset accounts should be submitted for the Test Year, Bridge Year and all relevant historical years. At a minimum , the applicant must provide data for the earlier of: 1) all historical years back to its last rebasing; or 2) at least three years of historical actuals, in addition to Bridge Year and Test Year forecasts.
A70: 2 | B70: The "CCA Class" for fixed assets should agree with the CCA Class used for tax purposes in Tax Returns. Fixed Assets sub-components may be used where the underlying asset components are classified under multiple CCA Classes for tax purposes. If an applicant uses any different classes from those shown in the table, an explanation should be provided. (also see note 3 below).
A73: 3 | B73: The table may need to be customized for a utility's asset categories or for any new asset accounts announced or authorized by the Board.
A75: 4 | B75: The depreciation column (D) is not required as the relevant information will be provided in the following 2-C series of appendices.

Sheet App 2-B_FA Cont 2011
M1: File Number: | N1: EB-2012-0109
M2: Exhibit: | N2: 2
M3: Tab:
M4: Schedule:
M5: Page: | N5: 5
M7: Date: | N7: July 17,2013
A9: Appendix 2-B
A10: Fixed Asset Continuity Schedule
F12: Year | G12: 2011
E14: Cost | K14: Accumulated Depreciation
A15: CCA Class | B15: OEB | C15: Description | D15: Depreciation Rate | E15: Opening Balance | F15: Additions | G15: Disposals | H15: Closing Balance | J15: Opening Balance | K15: Additions | L15: Disposals | M15: Closing Balance | N15: Net Book Value
A16: 12 | B16: 1611 | C16: Computer Software (Formally known as Account 1925) | E16: 0 | F16: 0 | G16: 0 | H16: =E16+F16+G16 -> 0 | J16: 0 | K16: 0 | L16: 0 | M16: =J16+K16+L16 -> 0 | N16: =H16+M16 -> 0
A17: CEC | B17: 1612 | C17: Land Rights (Formally known as Account 1906) | E17: 0 | F17: 0 | G17: 0 | H17: =E17+F17+G17 -> 0 | J17: 0 | K17: 0 | L17: 0 | M17: =J17+K17+L17 -> 0 | N17: =H17+M17 -> 0
A18: N/A | B18: 1805 | C18: Land | E18: 181960.63 | F18: 0 | G18: 0 | H18: =E18+F18+G18 -> 181960.63 | J18: 0 | K18: 0 | L18: 0 | M18: =J18+K18+L18 -> 0 | N18: =H18+M18 -> 181960.63
A19: CEC | B19: 1806 | C19: Land Rights | E19: 5968.42 | F19: 0 | G19: 0 | H19: =E19+F19+G19 -> 5968.42 | J19: 0 | K19: 0 | L19: 0 | M19: =J19+K19+L19 -> 0 | N19: =H19+M19 -> 5968.42
A20: 47 | B20: 1808 | C20: Buildings | E20: 1163731.71 | F20: 0 | G20: 0 | H20: =E20+F20+G20 -> 1163731.71 | J20: -147983.9 | K20: -23274 | L20: 0 | M20: =J20+K20+L20 -> -171257.9 | N20: =H20+M20 -> 992473.81
A21: 13 | B21: 1810 | C21: Leasehold Improvements | E21: 0 | F21: 0 | G21: 0 | H21: 0 | J21: 0 | K21: 0 | L21: 0 | M21: 0 | N21: 0
A22: 47 | B22: 1815 | C22: Transformer Station Equipment >50 kV | E22: 4469541.3 | F22: 38370.27 | G22: 0 | H22: 4507911.57 | J22: -668124.3 | K22: -112708.27 | L22: 0 | M22: -780832.57 | N22: 3727079
A23: 47 | B23: 1820 | C23: Distribution Station Equipment <50 kV | E23: 74426.57 | F23: 0 | G23: 0 | H23: 74426.57 | J23: -25062.51 | K23: -2481 | L23: 0 | M23: -27543.51 | N23: 46883.06
A24: 47 | B24: 1825 | C24: Storage Battery Equipment | E24: 0 | F24: 0 | G24: 0 | H24: 0 | J24: 0 | K24: 0 | L24: 0 | M24: 0 | N24: 0
A25: 47 | B25: 1830 | C25: Poles, Towers & Fixtures | E25: 15293731.41 | F25: 680278.43 | G25: 0 | H25: 15974009.84 | J25: -5123237.41 | K25: -638939.43 | L25: 0 | M25: -5762176.84 | N25: 10211833
A26: 47 | B26: 1835 | C26: Overhead Conductors & Devices | E26: 11460981.29 | F26: 655233.47 | G26: 0 | H26: 12116214.76 | J26: -3383668.29 | K26: -484656.47 | L26: 0 | M26: -3868324.76 | N26: 8247890
A27: 47 | B27: 1840 | C27: Underground Conduit | E27: 12599180.64 | F27: 686868.63 | G27: 0 | H27: 13286049.27 | J27: -4241934.64 | K27: -531436.63 | L27: 0 | M27: -4773371.27 | N27: 8512678
A28: 47 | B28: 1845 | C28: Underground Conductors & Devices | E28: 16270666.2 | F28: 1145510.1 | G28: 0 | H28: 17416176.3 | J28: -3347802.6 | K28: -696655.1 | L28: 0 | M28: -4044457.7 | N28: 13371718.6
A29: 47 | B29: 1850 | C29: Line Transformers | E29: 16554086.34 | F29: 478371.85 | G29: 0 | H29: 17032458.19 | J29: -4988877.34 | K29: -681294.85 | L29: 0 | M29: -5670172.19 | N29: 11362286
A30: 47 | B30: 1855 | C30: Services (Overhead & Underground) | E30: 1077422.88 | F30: 191940.74 | G30: 0 | H30: 1269363.62 | J30: -157431.88 | K30: -50765.74 | L30: 0 | M30: -208197.62 | N30: 1061166
A31: 47 | B31: 1860 | C31: Meters | E31: 8733121.28 | F31: 411891.78 | G31: 0 | H31: 9145013.06 | J31: -2417762.32 | K31: -629086.32 | L31: 0 | M31: -3046848.64 | N31: 6098164.42
A32: 47 | B32: 1860 | C32: Meters (Smart Meters) | E32: 0 | F32: 0 | G32: 0 | H32: 0 | J32: 0 | K32: 0 | L32: 0 | M32: 0 | N32: 0
A33: N/A | B33: 1905 | C33: Land | E33: 0 | F33: 0 | G33: 0 | H33: 0 | J33: 0 | K33: 0 | L33: 0 | M33: 0 | N33: 0
A34: 47 | B34: 1908 | C34: Buildings & Fixtures | E34: 0 | F34: 0 | G34: 0 | H34: 0 | J34: 0 | K34: 0 | L34: 0 | M34: 0 | N34: 0
A35: 13 | B35: 1910 | C35: Leasehold Improvements | E35: 0 | F35: 0 | G35: 0 | H35: 0 | J35: 0 | K35: 0 | L35: 0 | M35: 0 | N35: 0
A36: 8 | B36: 1915 | C36: Office Furniture & Equipment (10 years) | E36: 0 | F36: 0 | G36: 0 | H36: 0 | J36: 0 | K36: 0 | L36: 0 | M36: 0 | N36: 0
A37: 8 | B37: 1915 | C37: Office Furniture & Equipment (5 years) | E37: 0 | F37: 0 | G37: 0 | H37: 0 | J37: 0 | K37: 0 | L37: 0 | M37: 0 | N37: 0
A38: 10 | B38: 1920 | C38: Computer Equipment - Hardware | E38: 0 | F38: 0 | G38: 0 | H38: 0 | J38: 0 | K38: 0 | L38: 0 | M38: 0 | N38: 0
A39: 45 | B39: 1920 | C39: Computer Equip.-Hardware(Post Mar. 22/04) | E39: 0 | F39: 0 | G39: 0 | H39: 0 | J39: 0 | K39: 0 | L39: 0 | M39: 0 | N39: 0
A40: 45.1 | B40: 1920 | C40: Computer Equip.-Hardware(Post Mar. 19/07) | E40: 0 | F40: 0 | G40: 0 | H40: 0 | J40: 0 | K40: 0 | L40: 0 | M40: 0 | N40: 0
B41: 1925 | C41: Computer Software | E41: 196386.06 | F41: 238942.91 | G41: 0 | H41: 435328.97 | J41: -112114.06 | K41: -87063.91 | L41: 0 | M41: -199177.97 | N41: 236151
A42: 10 | B42: 1930 | C42: Transportation Equipment | E42: 2723343.94 | F42: 309767 | G42: 0 | H42: 3033110.94 | J42: -1870691.94 | K42: -271416 | L42: 0 | M42: -2142107.94 | N42: 891003
A43: 8 | B43: 1935 | C43: Stores Equipment | E43: 0 | F43: 0 | G43: 0 | H43: 0 | J43: 0 | K43: 0 | L43: 0 | M43: 0 | N43: 0
A44: 8 | B44: 1940 | C44: Tools, Shop & Garage Equipment | E44: 193313.02 | F44: 1380 | G44: -54400.86 | H44: 140292.16 | J44: -99646.02 | K44: -14030 | L44: 54400.86 | M44: -59275.16 | N44: 81017
A45: 8 | B45: 1945 | C45: Measurement & Testing Equipment | E45: 0 | F45: 0 | G45: 0 | H45: 0 | J45: 0 | K45: 0 | L45: 0 | M45: 0 | N45: 0
A46: 8 | B46: 1950 | C46: Power Operated Equipment | E46: 0 | F46: 0 | G46: 0 | H46: 0 | J46: 0 | K46: 0 | L46: 0 | M46: 0 | N46: 0
A47: 8 | B47: 1955 | C47: Communications Equipment | E47: 1176.32 | F47: 0 | G47: -1176.32 | H47: 0 | J47: -1176.32 | K47: 0 | L47: 1176.32 | M47: 0 | N47: 0
A48: 8 | B48: 1955 | C48: Communication Equipment (Smart Meters) | E48: 0 | F48: 0 | G48: 0 | H48: 0 | J48: 0 | K48: 0 | L48: 0 | M48: 0 | N48: 0
A49: 8 | B49: 1960 | C49: Miscellaneous Equipment | E49: 0 | F49: 0 | G49: 0 | H49: 0 | J49: 0 | K49: 0 | L49: 0 | M49: 0 | N49: 0
A50: 47 | B50: 1970 | C50: Load Management Controls - Customer Premises | E50: 547972.38 | F50: 0 | G50: -547972.38 | H50: 0 | J50: -547972.38 | K50: 0 | L50: 547972.38 | M50: 0 | N50: 0
A51: 47 | B51: 1975 | C51: Load Management Controls Utility Premises | E51: 0 | F51: 0 | G51: 0 | H51: 0 | J51: 0 | K51: 0 | L51: 0 | M51: 0 | N51: 0
A52: 47 | B52: 1980 | C52: System Supervisor Equipment | E52: 652617.3 | F52: 7701.54 | G52: 0 | H52: 660318.84 | J52: -106242.59 | K52: -43981.54 | L52: 0 | M52: -150224.13 | N52: 510094.71
A53: 47 | B53: 1985 | C53: Miscellaneous Fixed Assets | E53: 0 | F53: 0 | G53: 0 | H53: 0 | J53: 0 | K53: 0 | L53: 0 | M53: 0 | N53: 0
A54: 47 | B54: 1995 | C54: Contributions & Grants | E54: -3586012.84 | F54: -265560.28 | G54: 0 | H54: -3851573.12 | J54: 530709.84 | K54: 154073.28 | L54: 0 | M54: 684783.12 | N54: -3166790
A55: N/A | B55: 2040 | C55: Plant Held for Future Use | E55: 51815.84 | F55: 2940 | G55: 0 | H55: 54755.84 | J55: 0 | K55: 0 | L55: 0 | M55: =J55+K55+L55 -> 0 | N55: =H55+M55 -> 54755.84
B56: etc. | H56: 0
C58: Total | E58: =SUM(E16:E57) -> 88665430.69 | F58: =SUM(F16:F57) -> 4583636.44 | G58: =SUM(G16:G57) -> -603549.56 | H58: =SUM(H16:H57) -> 92645517.57 | J58: =SUM(J16:J57) -> -26709018.66 | K58: =SUM(K16:K57) -> -4113715.98 | L58: =SUM(L16:L57) -> 603549.56 | M58: =SUM(M16:M57) -> -30219185.08 | N58: =SUM(N16:N57) -> 62426332.49
J60: Less: Fully Allocated Depreciation
A61: 10 | C61: Transportation | J61: Transportation | L61: 271416
A62: 8 | C62: Stores Equipment | J62: Stores Equipment
J63: Net Depreciation | L63: =-K58-L61-L62 -> 3842299.98
A65: Notes:
A67: 1 | B67: Tables in the format outlined above covering all fixed asset accounts should be submitted for the Test Year, Bridge Year and all relevant historical years. At a minimum , the applicant must provide data for the earlier of: 1) all historical years back to its last rebasing; or 2) at least three years of historical actuals, in addition to Bridge Year and Test Year forecasts.
A70: 2 | B70: The "CCA Class" for fixed assets should agree with the CCA Class used for tax purposes in Tax Returns. Fixed Assets sub-components may be used where the underlying asset components are classified under multiple CCA Classes for tax purposes. If an applicant uses any different classes from those shown in the table, an explanation should be provided. (also see note 3 below).
A73: 3 | B73: The table may need to be customized for a utility's asset categories or for any new asset accounts announced or authorized by the Board.
A75: 4 | B75: The depreciation column (D) is not required as the relevant information will be provided in the following 2-C series of appendices.

Sheet App 2-B_FA Cont 2012
M1: File Number: | N1: EB-2012-0109
M2: Exhibit: | N2: 2
M3: Tab:
M4: Schedule:
M5: Page: | N5: 6
M7: Date: | N7: July 17,2013
A9: Appendix 2-B
A10: Fixed Asset Continuity Schedule
F12: Year | G12: 2012
E14: Cost | K14: Accumulated Depreciation
A15: CCA Class | B15: OEB | C15: Description | D15: Depreciation Rate | E15: Opening Balance | F15: Additions | G15: Disposals | H15: Closing Balance | J15: Opening Balance | K15: Additions | L15: Disposals | M15: Closing Balance | N15: Net Book Value
A16: 12 | B16: 1611 | C16: Computer Software (Formally known as Account 1925) | E16: 0 | F16: 180900 | G16: =-G41 -> 435328.97 | H16: =E16+F16+G16 -> 616228.97 | J16: 0 | K16: -122545 | L16: =-L41 -> -199177.97 | M16: =J16+K16+L16 -> -321722.97 | N16: =H16+M16 -> 294506
A17: CEC | B17: 1612 | C17: Land Rights (Formally known as Account 1906) | E17: 0 | F17: 64700 | G17: =-G19 -> 5968.42 | H17: =E17+F17+G17 -> 70668.42 | J17: 0 | K17: -7262 | L17: =-L19 -> 0 | M17: =J17+K17+L17 -> -7262 | N17: =H17+M17 -> 63406.42
A18: N/A | B18: 1805 | C18: Land | E18: 181960.63 | F18: 0 | G18: 0 | H18: =E18+F18+G18 -> 181960.63 | J18: 0 | K18: 0 | L18: 0 | M18: =J18+K18+L18 -> 0 | N18: =H18+M18 -> 181960.63
A19: CEC | B19: 1806 | C19: Land Rights | E19: 5968.42 | F19: 0 | G19: =-E19-F19 -> -5968.42 | H19: =E19+F19+G19 -> 0 | K19: 0 | L19: =-J19-K19 -> 0 | M19: =J19+K19+L19 -> 0 | N19: =H19+M19 -> 0
A20: 47 | B20: 1808 | C20: Buildings | E20: 1163731.71 | F20: 0 | G20: 0 | H20: =E20+F20+G20 -> 1163731.71 | J20: -171257.9 | K20: -23274 | L20: 0 | M20: =J20+K20+L20 -> -194531.9 | N20: =H20+M20 -> 969199.81
A21: 13 | B21: 1810 | C21: Leasehold Improvements | E21: 0 | F21: 0 | G21: 0 | H21: 0 | J21: 0 | K21: 0 | L21: 0 | M21: 0 | N21: 0
A22: 47 | B22: 1815 | C22: Transformer Station Equipment >50 kV | E22: 4507911.57 | F22: 0 | G22: 0 | H22: 4507911.57 | J22: -780832.57 | K22: -112698 | L22: 0 | M22: -893530.57 | N22: 3614381
A23: 47 | B23: 1820 | C23: Distribution Station Equipment <50 kV | E23: 74426.57 | F23: 0 | G23: 0 | H23: 74426.57 | J23: -27543.51 | K23: -2481 | L23: 0 | M23: -30024.51 | N23: 44402.06
A24: 47 | B24: 1825 | C24: Storage Battery Equipment | E24: 0 | F24: 0 | G24: 0 | H24: 0 | J24: 0 | K24: 0 | L24: 0 | M24: 0 | N24: 0
A25: 47 | B25: 1830 | C25: Poles, Towers & Fixtures | E25: 15974009.84 | F25: 584500 | G25: 0 | H25: 16558509.84 | J25: -5762176.84 | K25: -663581 | L25: 0 | M25: -6425757.84 | N25: 10132752
A26: 47 | B26: 1835 | C26: Overhead Conductors & Devices | E26: 12116214.76 | F26: 959300 | G26: 0 | H26: 13075514.76 | J26: -3868324.76 | K26: -522660 | L26: 0 | M26: -4390984.76 | N26: 8684530
A27: 47 | B27: 1840 | C27: Underground Conduit | E27: 13286049.27 | F27: 519300 | G27: 0 | H27: 13805349.27 | J27: -4773371.27 | K27: -552655 | L27: 0 | M27: -5326026.27 | N27: 8479323
A28: 47 | B28: 1845 | C28: Underground Conductors & Devices | E28: 17416176.3 | F28: 1876200 | G28: 0 | H28: 19292376.3 | J28: -4044457.7 | K28: -772213 | L28: 0 | M28: -4816670.7 | N28: 14475705.6
A29: 47 | B29: 1850 | C29: Line Transformers | E29: 17032458.19 | F29: 796400 | G29: 0 | H29: 17828858.19 | J29: -5670172.19 | K29: -713874 | L29: 0 | M29: -6384046.19 | N29: 11444812
A30: 47 | B30: 1855 | C30: Services (Overhead & Underground) | E30: 1269363.62 | F30: 135200 | G30: 0 | H30: 1404563.62 | J30: -208197.62 | K30: -55543 | L30: 0 | M30: -263740.62 | N30: 1140823
A31: 47 | B31: 1860 | C31: Meters | E31: 9145013.06 | F31: 274471 | G31: -5269572.41 | H31: 4149911.65 | J31: -3046848.64 | K31: -378890 | L31: 2032381.32 | M31: -1393357.32 | N31: 2756554.33
A32: 47 | B32: 1860 | C32: Meters (Smart Meters) | E32: 0 | F32: 0 | G32: 0 | H32: 0 | J32: 0 | K32: 0 | L32: 0 | M32: 0 | N32: 0
A33: N/A | B33: 1905 | C33: Land | E33: 0 | F33: 0 | G33: 0 | H33: 0 | J33: 0 | K33: 0 | L33: 0 | M33: 0 | N33: 0
A34: 47 | B34: 1908 | C34: Buildings & Fixtures | E34: 0 | F34: 0 | G34: 0 | H34: 0 | J34: 0 | K34: 0 | L34: 0 | M34: 0 | N34: 0
A35: 13 | B35: 1910 | C35: Leasehold Improvements | E35: 0 | F35: 0 | G35: 0 | H35: 0 | J35: 0 | K35: 0 | L35: 0 | M35: 0 | N35: 0
A36: 8 | B36: 1915 | C36: Office Furniture & Equipment (10 years) | E36: 0 | F36: 5000 | G36: 0 | H36: 5000 | J36: 0 | K36: -500 | L36: 0 | M36: -500 | N36: 4500
A37: 8 | B37: 1915 | C37: Office Furniture & Equipment (5 years) | E37: 0 | F37: 0 | G37: 0 | H37: 0 | J37: 0 | K37: 0 | L37: 0 | M37: 0 | N37: 0
A38: 10 | B38: 1920 | C38: Computer Equipment - Hardware | E38: 0 | F38: 1000 | G38: 0 | H38: 1000 | J38: 0 | K38: -200 | L38: 0 | M38: -200 | N38: 800
A39: 45 | B39: 1920 | C39: Computer Equip.-Hardware(Post Mar. 22/04) | E39: 0 | F39: 0 | G39: 0 | H39: 0 | J39: 0 | K39: 0 | L39: 0 | M39: 0 | N39: 0
A40: 45.1 | B40: 1920 | C40: Computer Equip.-Hardware(Post Mar. 19/07) | E40: 0 | F40: 0 | G40: 0 | H40: 0 | J40: 0 | K40: 0 | L40: 0 | M40: 0 | N40: 0
B41: 1925 | C41: Computer Software | E41: 435328.97 | F41: 0 | G41: =-E41-F41 -> -435328.97 | H41: 0 | J41: -199177.97 | K41: 0 | L41: =-J41-K41 -> 199177.97 | M41: =J41+K41+L41 -> 0 | N41: =H41+M41 -> 0
A42: 10 | B42: 1930 | C42: Transportation Equipment | E42: 3033110.94 | F42: 325000 | G42: 0 | H42: 3358110.94 | J42: -2142107.94 | K42: -203065 | L42: 0 | M42: -2345172.94 | N42: 1012938
A43: 8 | B43: 1935 | C43: Stores Equipment | E43: 0 | F43: 0 | G43: 0 | H43: 0 | J43: 0 | K43: 0 | L43: 0 | M43: 0 | N43: 0
A44: 8 | B44: 1940 | C44: Tools, Shop & Garage Equipment | E44: 140292.16 | F44: 25000 | G44: 0 | H44: 165292.16 | J44: -59275.16 | K44: -14030 | L44: 0 | M44: -73305.16 | N44: 91987
A45: 8 | B45: 1945 | C45: Measurement & Testing Equipment | E45: 0 | F45: 0 | G45: 0 | H45: 0 | J45: 0 | K45: 0 | L45: 0 | M45: 0 | N45: 0
A46: 8 | B46: 1950 | C46: Power Operated Equipment | E46: 0 | F46: 0 | G46: 0 | H46: 0 | J46: 0 | K46: 0 | L46: 0 | M46: 0 | N46: 0
A47: 8 | B47: 1955 | C47: Communications Equipment | E47: 0 | F47: 0 | G47: 0 | H47: 0 | J47: 0 | K47: 0 | L47: 0 | M47: 0 | N47: 0
A48: 8 | B48: 1955 | C48: Communication Equipment (Smart Meters) | E48: 0 | F48: 0 | G48: 0 | H48: 0 | J48: 0 | K48: 0 | L48: 0 | M48: 0 | N48: 0
A49: 8 | B49: 1960 | C49: Miscellaneous Equipment | E49: 0 | F49: 0 | G49: 0 | H49: 0 | J49: 0 | K49: 0 | L49: 0 | M49: 0 | N49: 0
A50: 47 | B50: 1970 | C50: Load Management Controls - Customer Premises | E50: 0 | F50: 0 | G50: 0 | H50: 0 | J50: 0 | K50: 0 | L50: 0 | M50: =J50+K50+L50 -> 0 | N50: =H50+M50 -> 0
A51: 47 | B51: 1975 | C51: Load Management Controls Utility Premises | E51: 0 | F51: 0 | G51: 0 | H51: 0 | J51: 0 | K51: 0 | L51: 0 | M51: 0 | N51: 0
A52: 47 | B52: 1980 | C52: System Supervisor Equipment | E52: 660318.84 | F52: 83000 | G52: 0 | H52: 743318.84 | J52: -150224.13 | K52: -48869 | L52: 0 | M52: -199093.13 | N52: 544225.71
A53: 47 | B53: 1985 | C53: Miscellaneous Fixed Assets | E53: 0 | F53: 0 | G53: 0 | H53: 0 | J53: 0 | K53: 0 | L53: 0 | M53: 0 | N53: 0
A54: 47 | B54: 1995 | C54: Contributions & Grants | E54: -3851573.12 | F54: -623500 | G54: 0 | H54: -4475073.12 | J54: 684783.12 | K54: 154072.28 | L54: 0 | M54: 838855.4 | N54: -3636217.72
A55: N/A | B55: 2040 | C55: Plant Held for Future Use | E55: 54755.84 | F55: 0 | G55: -54756 | H55: -0.16 | J55: 0 | K55: 0 | L55: 0 | M55: =J55+K55+L55 -> 0 | N55: =H55+M55 -> -0.16
B56: etc. | E56: 0 | H56: 0 | M56: 0 | N56: 0
E57: 0
C58: Total | E58: =SUM(E16:E57) -> 92645517.57 | F58: =SUM(F16:F57) -> 5206471 | G58: =SUM(G16:G57) -> -5324328.41 | H58: =SUM(H16:H57) -> 92527660.16 | J58: =SUM(J16:J57) -> -30219185.08 | K58: =SUM(K16:K57) -> -4040267.72 | L58: =SUM(L16:L57) -> 2032381.32 | M58: =SUM(M16:M57) -> -32227071.48 | N58: =SUM(N16:N57) -> 60300588.68
J60: Less: Fully Allocated Depreciation
A61: 10 | C61: Transportation | J61: Transportation | L61: 203065
A62: 8 | C62: Stores Equipment | J62: Stores Equipment
J63: Net Depreciation | L63: =-K58-L61-L62 -> 3837202.72
A65: Notes:
A67: 1 | B67: Tables in the format outlined above covering all fixed asset accounts should be submitted for the Test Year, Bridge Year and all relevant historical years. At a minimum , the applicant must provide data for the earlier of: 1) all historical years back to its last rebasing; or 2) at least three years of historical actuals, in addition to Bridge Year and Test Year forecasts.
A70: 2 | B70: The "CCA Class" for fixed assets should agree with the CCA Class used for tax purposes in Tax Returns. Fixed Assets sub-components may be used where the underlying asset components are classified under multiple CCA Classes for tax purposes. If an applicant uses any different classes from those shown in the table, an explanation should be provided. (also see note 3 below).
A73: 3 | B73: The table may need to be customized for a utility's asset categories or for any new asset accounts announced or authorized by the Board.
A75: 4 | B75: The depreciation column (D) is not required as the relevant information will be provided in the following 2-C series of appendices.

Sheet App 2-B_FA Cont 2013
O1: File Number: | P1: EB-2012-0109
O2: Exhibit: | P2: 2
O3: Tab:
O4: Schedule:
O5: Page: | P5: 7
O7: Date: | P7: July 17,2013
A9: Appendix 2-B
A10: Fixed Asset Continuity Schedule
G12: Year | H12: 2013
E14: Cost | M14: Accumulated Depreciation
A15: CCA Class | B15: OEB | C15: Description | D15: Depreciation Rate | E15: Opening Balance | F15: Reallocate Smart Meters | G15: Additions | H15: Disposals | I15: Closing Balance | K15: Opening Balance | L15: Reallocate Smart Meters | M15: Additions | N15: Disposals | O15: Closing Balance | P15: Net Book Value
A16: 12 | B16: 1611 | C16: Computer Software (Formally known as Account 1925) | E16: 616228.97 | F16: 1963 | G16: 310000 | H16: 0 | I16: =E16+F16+G16+H16 -> 928191.97 | K16: -321722.97 | L16: -647 | M16: -121073.624 | N16: 0 | O16: =K16+L16+M16+N16 -> -443443.594 | P16: =I16+O16 -> 484748.376
A17: CEC | B17: 1612 | C17: Land Rights (Formally known as Account 1906) | E17: 70668.42 | F17: 0 | G17: 0 | H17: 0 | I17: =E17+F17+G17+H17 -> 70668.42 | K17: -7262 | L17: 0 | M17: -1294 | N17: 0 | O17: =K17+L17+M17+N17 -> -8556 | P17: =I17+O17 -> 62112.42
A18: N/A | B18: 1805 | C18: Land | E18: 181960.63 | F18: 0 | G18: 0 | H18: 0 | I18: 181960.63 | K18: 0 | L18: 0 | M18: 0 | N18: 0 | O18: 0 | P18: 181960.63
A19: CEC | B19: 1806 | C19: Land Rights | E19: 0 | F19: 0 | G19: 0 | H19: 0 | I19: 0 | K19: 0 | L19: 0 | M19: 0 | N19: 0 | O19: 0 | P19: 0
A20: 47 | B20: 1808 | C20: Buildings | E20: 1163731.71 | F20: 0 | G20: 0 | H20: 0 | I20: 1163731.71 | K20: -194531.9 | L20: 0 | M20: -27086 | N20: 0 | O20: -221617.9 | P20: 942113.81
A21: 13 | B21: 1810 | C21: Leasehold Improvements | E21: 0 | F21: 0 | G21: 0 | H21: 0 | I21: 0 | K21: 0 | L21: 0 | M21: 0 | N21: 0 | O21: 0 | P21: 0
A22: 47 | B22: 1815 | C22: Transformer Station Equipment >50 kV | E22: 4507911.57 | F22: 0 | G22: 0 | H22: 0 | I22: 4507911.57 | K22: -893530.57 | L22: 0 | M22: -104104 | N22: 0 | O22: -997634.57 | P22: 3510277
A23: 47 | B23: 1820 | C23: Distribution Station Equipment <50 kV | E23: 74426.57 | F23: 0 | G23: 0 | H23: 0 | I23: 74426.57 | K23: -30024.51 | L23: 0 | M23: -1560 | N23: 0 | O23: -31584.51 | P23: 42842.06
A24: 47 | B24: 1825 | C24: Storage Battery Equipment | E24: 0 | F24: 0 | G24: 0 | H24: 0 | I24: 0 | K24: 0 | L24: 0 | M24: 0 | N24: 0 | O24: 0 | P24: 0
A25: 47 | B25: 1830 | C25: Poles, Towers & Fixtures | E25: 16558509.84 | F25: 0 | G25: 215000 | H25: 0 | I25: 16773509.84 | K25: -6425757.84 | L25: 0 | M25: -374253 | N25: 0 | O25: -6800010.84 | P25: 9973499
A26: 47 | B26: 1835 | C26: Overhead Conductors & Devices | E26: 13075514.76 | F26: 0 | G26: 958000 | H26: 0 | I26: 14033514.76 | K26: -4390984.76 | L26: 0 | M26: -243122 | N26: 0 | O26: -4634106.76 | P26: 9399408
A27: 47 | B27: 1840 | C27: Underground Conduit | E27: 13805349.27 | F27: 0 | G27: 35000 | H27: 0 | I27: 13840349.27 | K27: -5326026.27 | L27: 0 | M27: -233392 | N27: 0 | O27: -5559418.27 | P27: 8280931
A28: 47 | B28: 1845 | C28: Underground Conductors & Devices | E28: 19292376.3 | F28: 0 | G28: 856100 | H28: 0 | I28: 20148476.3 | K28: -4816670.7 | L28: 0 | M28: -640974 | N28: 0 | O28: -5457644.7 | P28: 14690831.6
A29: 47 | B29: 1850 | C29: Line Transformers | E29: 17828858.19 | F29: 0 | G29: 502000 | H29: 0 | I29: 18330858.19 | K29: -6384046.19 | L29: 0 | M29: -447040 | N29: 0 | O29: -6831086.19 | P29: 11499772
A30: 47 | B30: 1855 | C30: Services (Overhead & Underground) | E30: 1404563.62 | F30: 0 | G30: 110000 | H30: 0 | I30: 1514563.62 | K30: -263740.62 | L30: 0 | M30: -56061 | N30: 0 | O30: -319801.62 | P30: 1194762
A31: 47 | B31: 1860 | C31: Meters | E31: 4149911.65 | F31: 0 | G31: 205000 | H31: 0 | I31: 4354911.65 | K31: -1393357.32 | L31: 0 | M31: -427843.3807 | N31: 0 | O31: -1821200.701 | P31: 2533710.949
A32: 47 | B32: 1860 | C32: Meters (Smart Meters) | E32: 0 | F32: 5329835 | G32: 0 | H32: 0 | I32: 5329835 | K32: 0 | L32: -978737 | M32: -355322 | N32: 0 | O32: -1334059 | P32: 3995776
A33: N/A | B33: 1905 | C33: Land | E33: 0 | F33: 0 | G33: 0 | H33: 0 | I33: 0 | K33: 0 | L33: 0 | M33: 0 | N33: 0 | O33: 0 | P33: 0
A34: 47 | B34: 1908 | C34: Buildings & Fixtures | E34: 0 | F34: 0 | G34: 0 | H34: 0 | I34: 0 | K34: 0 | L34: 0 | M34: 0 | N34: 0 | O34: 0 | P34: 0
A35: 13 | B35: 1910 | C35: Leasehold Improvements | E35: 0 | F35: 0 | G35: 0 | H35: 0 | I35: 0 | K35: 0 | L35: 0 | M35: 0 | N35: 0 | O35: 0 | P35: 0
A36: 8 | B36: 1915 | C36: Office Furniture & Equipment (10 years) | E36: 5000 | F36: 0 | G36: 0 | H36: 0 | I36: 5000 | K36: -500 | L36: 0 | M36: -500 | N36: 0 | O36: -1000 | P36: 4000
A37: 8 | B37: 1915 | C37: Office Furniture & Equipment (5 years) | E37: 0 | F37: 0 | G37: 0 | H37: 0 | I37: 0 | K37: 0 | L37: 0 | M37: 0 | N37: 0 | O37: 0 | P37: 0
A38: 10 | B38: 1920 | C38: Computer Equipment - Hardware | E38: 1000 | F38: 41939 | G38: 77500 | H38: 0 | I38: 120439 | K38: -200 | L38: -28940 | M38: -18325.732 | N38: 0 | O38: -47465.732 | P38: 72973.268
A39: 45 | B39: 1920 | C39: Computer Equip.-Hardware(Post Mar. 22/04) | E39: 0 | F39: 0 | G39: 0 | H39: 0 | I39: 0 | K39: 0 | L39: 0 | M39: 0 | N39: 0 | O39: 0 | P39: 0
A40: 45.1 | B40: 1920 | C40: Computer Equip.-Hardware(Post Mar. 19/07) | E40: 0 | F40: 0 | G40: 0 | H40: 0 | I40: 0 | K40: 0 | L40: 0 | M40: 0 | N40: 0 | O40: 0 | P40: 0
B41: 1925 | C41: Computer Software | E41: 0 | F41: 0 | G41: 0 | H41: 0 | I41: 0 | K41: 0 | L41: 0 | M41: 0 | N41: 0 | O41: 0 | P41: 0
A42: 10 | B42: 1930 | C42: Transportation Equipment | E42: 3358110.94 | F42: 0 | G42: 200000 | H42: 0 | I42: 3558110.94 | K42: -2345172.94 | L42: 0 | M42: -161947 | N42: 0 | O42: -2507119.94 | P42: 1050991
A43: 8 | B43: 1935 | C43: Stores Equipment | E43: 0 | F43: 0 | G43: 0 | H43: 0 | I43: 0 | K43: 0 | L43: 0 | M43: 0 | N43: 0 | O43: 0 | P43: 0
A44: 8 | B44: 1940 | C44: Tools, Shop & Garage Equipment | E44: 165292.16 | F44: 0 | G44: 25000 | H44: 0 | I44: 190292.16 | K44: -73305.16 | L44: 0 | M44: -17781 | N44: 0 | O44: -91086.16 | P44: 99206
A45: 8 | B45: 1945 | C45: Measurement & Testing Equipment | E45: 0 | F45: 0 | G45: 0 | H45: 0 | I45: 0 | K45: 0 | L45: 0 | M45: 0 | N45: 0 | O45: 0 | P45: 0
A46: 8 | B46: 1950 | C46: Power Operated Equipment | E46: 0 | F46: 0 | G46: 0 | H46: 0 | I46: 0 | K46: 0 | L46: 0 | M46: 0 | N46: 0 | O46: 0 | P46: 0
A47: 8 | B47: 1955 | C47: Communications Equipment | E47: 0 | F47: 0 | G47: 0 | H47: 0 | I47: 0 | K47: 0 | L47: 0 | M47: 0 | N47: 0 | O47: 0 | P47: 0
A48: 8 | B48: 1955 | C48: Communication Equipment (Smart Meters) | E48: 0 | F48: 0 | G48: 0 | H48: 0 | I48: 0 | K48: 0 | L48: 0 | M48: 0 | N48: 0 | O48: 0 | P48: 0
A49: 8 | B49: 1960 | C49: Miscellaneous Equipment | E49: 0 | F49: 0 | G49: 0 | H49: 0 | I49: 0 | K49: 0 | L49: 0 | M49: 0 | N49: 0 | O49: 0 | P49: 0
A50: 47 | B50: 1970 | C50: Load Management Controls - Customer Premises | E50: 0 | F50: 0 | G50: 0 | H50: 0 | I50: 0 | K50: 0 | L50: 0 | M50: 0 | N50: 0 | O50: 0 | P50: 0
A51: 47 | B51: 1975 | C51: Load Management Controls Utility Premises | E51: 0 | F51: 0 | G51: 0 | H51: 0 | I51: 0 | K51: 0 | L51: 0 | M51: 0 | N51: 0 | O51: 0 | P51: 0
A52: 47 | B52: 1980 | C52: System Supervisor Equipment | E52: 743318.84 | F52: 0 | G52: 150000 | H52: 0 | I52: 893318.84 | K52: -199093.13 | L52: 0 | M52: -31605 | N52: 0 | O52: -230698.13 | P52: 662620.71
A53: 47 | B53: 1985 | C53: Miscellaneous Fixed Assets | E53: 0 | F53: 0 | G53: 0 | H53: 0 | I53: 0 | K53: 0 | L53: 0 | M53: 0 | N53: 0 | O53: 0 | P53: 0
A54: 47 | B54: 1995 | C54: Contributions & Grants | E54: -4475073.12 | F54: 0 | G54: -203440 | H54: 0 | I54: -4678513.12 | K54: 838855.4 | L54: 0 | M54: 105753 | N54: 0 | O54: 944608.4 | P54: -3733904.72
A55: N/A | B55: 2040 | C55: Plant Held for Future Use | E55: -0.16 | F55: 0 | G55: 0 | H55: 0 | I55: -0.16 | K55: 0 | L55: 0 | M55: 0 | N55: 0 | O55: =K55+L55+M55+N55 -> 0 | P55: =I55+O55 -> -0.16
B56: etc. | I56: 0 | O56: 0 | P56: 0
I57: 0
C58: Total | E58: =SUM(E16:E57) -> 92527660.16 | F58: =SUM(F16:F57) -> 5373737 | G58: =SUM(G16:G57) -> 3440160 | H58: =SUM(H16:H57) -> 0 | I58: =SUM(I16:I57) -> 101341557.2 | K58: =SUM(K16:K57) -> -32227071.48 | L58: -1008324 | M58: -3157530.737 | N58: 0 | O58: -36392926.22 | P58: 64948630.94
K60: Less: Fully Allocated Depreciation
A61: 10 | C61: Transportation | K61: Transportation | N61: 161947
A62: 8 | C62: Stores Equipment | K62: Stores Equipment
K63: Net Depreciation | N63: =-M58-N61-N62 -> 2995583.737
A65: Notes:
A67: 1 | B67: Tables in the format outlined above covering all fixed asset accounts should be submitted for the Test Year, Bridge Year and all relevant historical years. At a minimum , the applicant must provide data for the earlier of: 1) all historical years back to its last rebasing; or 2) at least three years of historical actuals, in addition to Bridge Year and Test Year forecasts.
A70: 2 | B70: The "CCA Class" for fixed assets should agree with the CCA Class used for tax purposes in Tax Returns. Fixed Assets sub-components may be used where the underlying asset components are classified under multiple CCA Classes for tax purposes. If an applicant uses any different classes from those shown in the table, an explanation should be provided. (also see note 3 below).
A73: 3 | B73: The table may need to be customized for a utility's asset categories or for any new asset accounts announced or authorized by the Board.
A75: 4 | B75: The depreciation column (D) is not required as the relevant information will be provided in the following 2-C series of appendices.

Sheet App.2-CA_CGAAP_DepExp_2011
K1: File Number: | L1: ='LDC Info'!$E$18 -> EB-2012-0109
K2: Exhibit:
K3: Tab:
K4: Schedule:
K5: Page: | L5: 8
K7: Date:
A9: Appendix 2-CA
A10: Depreciation and Amortization Expense
A11: Assumes the applicant adopted IFRS for financial reporting purposes January 1, 2012
C12: Year | D12: 2011 | E12: CGAAP
A14: Account | B14: Description | C14: Opening Regulatory Gross PP&E as at Jan 1, 2011 | D14: Less Fully Depreciated | E14: Net for Depreciation | F14: Additions | G14: Total for Depreciation | H14: Years | I14: Depreciation Rate | J14: Depreciation Expense | K14: 2011 Depreciation Expense per Appendix 2-B Fixed Assets, Column K (l) | L14: Variance 2
C15: (a) | D15: (b) | E15: (c) | F15: (d) | G15: (e) = (c) + ½ x (d) 1 | H15: (f) | I15: (g) = 1 / (f) | J15: (h) = (e) / (f) | L15: (m) = (h) - (l)
A16: 1611 | B16: Computer Software (Formally known as Account 1925) | E16: =C16-D16 -> 0 | G16: =E16+0.5*F16 -> 0 | I16: =IF(H16=0,0,1/H16) -> 0 | J16: =IF(H16=0,0,G16/H16) -> 0 | L16: =IF(ISERROR(+J16-K16), 0, +J16-K16) -> 0
A17: 1612 | B17: Land Rights (Formally known as Account 1906) | E17: =C17-D17 -> 0 | G17: =E17+0.5*F17 -> 0 | I17: 0 | J17: 0 | L17: 0
A18: 1805 | B18: Land | E18: 0 | G18: 0 | I18: 0 | J18: 0 | L18: 0
A19: 1808 | B19: Buildings | E19: 0 | G19: 0 | I19: 0 | J19: 0 | L19: 0
A20: 1810 | B20: Leasehold Improvements | E20: 0 | G20: 0 | I20: 0 | J20: 0 | L20: 0
A21: 1815 | B21: Transformer Station Equipment >50 kV | E21: 0 | G21: 0 | I21: 0 | J21: 0 | L21: 0
A22: 1820 | B22: Distribution Station Equipment <50 kV | E22: 0 | G22: 0 | I22: 0 | J22: 0 | L22: 0
A23: 1825 | B23: Storage Battery Equipment | E23: 0 | G23: 0 | I23: 0 | J23: 0 | L23: 0
A24: 1830 | B24: Poles, Towers & Fixtures | E24: 0 | G24: 0 | I24: 0 | J24: 0 | L24: 0
A25: 1835 | B25: Overhead Conductors & Devices | E25: 0 | G25: 0 | I25: 0 | J25: 0 | L25: 0
A26: 1840 | B26: Underground Conduit | E26: 0 | G26: 0 | I26: 0 | J26: 0 | L26: 0
A27: 1845 | B27: Underground Conductors & Devices | E27: 0 | G27: 0 | I27: 0 | J27: 0 | L27: 0
A28: 1850 | B28: Line Transformers | E28: 0 | G28: 0 | I28: 0 | J28: 0 | L28: 0
A29: 1855 | B29: Services (Overhead & Underground) | E29: 0 | G29: 0 | I29: 0 | J29: 0 | L29: 0
A30: 1860 | B30: Meters | E30: 0 | G30: 0 | I30: 0 | J30: 0 | L30: 0
A31: 1860 | B31: Meters (Smart Meters) | E31: 0 | G31: 0 | I31: 0 | J31: 0 | L31: 0
A32: 1905 | B32: Land | E32: 0 | G32: 0 | I32: 0 | J32: 0 | L32: 0
A33: 1908 | B33: Buildings & Fixtures | E33: 0 | G33: 0 | I33: 0 | J33: 0 | L33: 0
A34: 1910 | B34: Leasehold Improvements | E34: 0 | G34: 0 | I34: 0 | J34: 0 | L34: 0
A35: 1915 | B35: Office Furniture & Equipment (10 years) | E35: 0 | G35: 0 | I35: 0 | J35: 0 | L35: 0
A36: 1915 | B36: Office Furniture & Equipment (5 years) | E36: 0 | G36: 0 | I36: 0 | J36: 0 | L36: 0
A37: 1920 | B37: Computer Equipment - Hardware | E37: 0 | G37: 0 | I37: 0 | J37: 0 | L37: 0
A38: 1920 | B38: Computer Equip.-Hardware(Post Mar. 22/04) | E38: 0 | G38: 0 | I38: 0 | J38: 0 | L38: 0
A39: 1920 | B39: Computer Equip.-Hardware(Post Mar. 19/07) | E39: 0 | G39: 0 | I39: 0 | J39: 0 | L39: 0
A40: 1930 | B40: Transportation Equipment | E40: 0 | G40: 0 | I40: 0 | J40: 0 | L40: 0
A41: 1935 | B41: Stores Equipment | E41: 0 | G41: 0 | I41: 0 | J41: 0 | L41: 0
A42: 1940 | B42: Tools, Shop & Garage Equipment | E42: 0 | G42: 0 | I42: 0 | J42: 0 | L42: 0
A43: 1945 | B43: Measurement & Testing Equipment | E43: 0 | G43: 0 | I43: 0 | J43: 0 | L43: 0
A44: 1950 | B44: Power Operated Equipment | E44: 0 | G44: 0 | I44: 0 | J44: 0 | L44: 0
A45: 1955 | B45: Communications Equipment | E45: 0 | G45: 0 | I45: 0 | J45: 0 | L45: 0
A46: 1955 | B46: Communication Equipment (Smart Meters) | E46: 0 | G46: 0 | I46: 0 | J46: 0 | L46: 0
A47: 1960 | B47: Miscellaneous Equipment | E47: 0 | G47: 0 | I47: 0 | J47: 0 | L47: 0
A48: 1975 | B48: Load Management Controls Utility Premises | E48: 0 | G48: 0 | I48: 0 | J48: 0 | L48: 0
A49: 1980 | B49: System Supervisor Equipment | E49: 0 | G49: 0 | I49: 0 | J49: 0 | L49: 0
A50: 1985 | B50: Miscellaneous Fixed Assets | E50: 0 | G50: 0 | I50: 0 | J50: 0 | L50: 0
A51: 1995 | B51: Contributions & Grants | E51: 0 | G51: 0 | I51: 0 | J51: 0 | L51: 0
A52: etc. | E52: 0 | G52: 0 | I52: 0 | J52: 0 | L52: 0
E53: 0 | G53: 0 | I53: 0 | J53: 0 | L53: 0
B54: Total | C54: =SUM(C16:C53) -> 0 | D54: =SUM(D16:D53) -> 0 | E54: =SUM(E16:E53) -> 0 | F54: =SUM(F16:F53) -> 0 | G54: =SUM(G16:G53) -> 0 | J54: =SUM(J16:J53) -> 0 | K54: =SUM(K16:K53) -> 0 | L54: =SUM(L16:L53) -> 0
A56: Notes:
A58: 1 | B58: Board policy of the "half-year" rule - the applicant must ensure that additions in the year attract a half-year depreciation expense in the first year. Deviations from this standard practice must be supported in the application.
A59: 2 | B59: The applicant must provide an explanation of material variances in evidence
A61: General | B61: Applicants must provide a breakdown of depreciation and amortization expense in the above format for all relevant accounts. Asset Retirement Obligations (AROs), depreciation and accretion expense should be disclosed separately consistent with the Notes of historical Audited Financial Statements.

Sheet App.2-CB_MIFRS_DepExp_2011
N1: File Number: | O1: ='LDC Info'!$E$18 -> EB-2012-0109
N2: Exhibit:
N3: Tab:
N4: Schedule:
N5: Page: | O5: 9
N7: Date:
A9: Appendix 2-CB
A10: Depreciation and Amortization Expense
A11: Assumes the applicant adopted IFRS for financial reporting purposes January 1, 2012
C12: Year | D12: 2011 | E12: MIFRS
A14: Account | B14: Description | C14: Opening NBV as at Jan 1, 2011 5 | D14: Additions | E14: Average Remaining Life of Opening NBV 4 | F14: Years (new additions only) 3 | G14: Depreciation Rate on New Additions | H14: Depreciation Expense on Opening NBV | I14: Depreciation Expense on Additions 1 | J14: 2011 Depreciation Expense | K14: 2011 Depreciation Expense per Appendix 2-B Fixed Assets, Column K (l) | L14: Variance 2 | M14: Depreciation Expense on 2011 Full Year Additions | N14: Less Depreciation Expense on Assets Fully Depreciated during the year (o) | O14: 2011 Full Year Depreciation 6
C15: (a) | D15: (d) | E15: (i) | F15: (f) | G15: (g) = 1 / (f) | H15: (j) = (a) / (i) | I15: (h)=((d)*0.5)/(f) | J15: (k) = (j) + (h) | L15: (m) = (k) - (l) | M15: (n) = (d)/(f) | O15: (p) = (j) + (n) - (o)
A16: 1611 | B16: Computer Software (Formally known as Account 1925) | G16: =IF(F16=0,0,1/F16) -> 0 | H16: =IF(E16=0,0,+C16/E16) -> 0 | I16: =IF(F16=0,0,+(D16*0.5)/F16) -> 0 | J16: =IF(ISERROR(+H16+I16), 0, +H16+I16) -> 0 | L16: =IF(ISERROR(+J16-K16), 0, +J16-K16) -> 0 | M16: =IF(F16=0,0,+(D16)/F16) -> 0 | O16: =IF(ISERROR(+M16+H16-N16), 0, +M16+H16-N16) -> 0
A17: 1612 | B17: Land Rights (Formally known as Account 1906) | G17: 0 | H17: 0 | I17: 0 | J17: 0 | L17: 0 | M17: 0 | O17: =IF(ISERROR(+M17+H17-N17), 0, +M17+H17-N17) -> 0
A18: 1805 | B18: Land | G18: 0 | H18: 0 | I18: 0 | J18: 0 | L18: 0 | M18: 0 | O18: 0
A19: 1808 | B19: Buildings | G19: 0 | H19: 0 | I19: 0 | J19: 0 | L19: 0 | M19: 0 | O19: 0
A20: 1810 | B20: Leasehold Improvements | G20: 0 | H20: 0 | I20: 0 | J20: 0 | L20: 0 | M20: 0 | O20: 0
A21: 1815 | B21: Transformer Station Equipment >50 kV | G21: 0 | H21: 0 | I21: 0 | J21: 0 | L21: 0 | M21: 0 | O21: 0
A22: 1820 | B22: Distribution Station Equipment <50 kV | G22: 0 | H22: 0 | I22: 0 | J22: 0 | L22: 0 | M22: 0 | O22: 0
A23: 1825 | B23: Storage Battery Equipment | G23: 0 | H23: 0 | I23: 0 | J23: 0 | L23: 0 | M23: 0 | O23: 0
A24: 1830 | B24: Poles, Towers & Fixtures | G24: 0 | H24: 0 | I24: 0 | J24: 0 | L24: 0 | M24: 0 | O24: 0
A25: 1835 | B25: Overhead Conductors & Devices | G25: 0 | H25: 0 | I25: 0 | J25: 0 | L25: 0 | M25: 0 | O25: 0
A26: 1840 | B26: Underground Conduit | G26: 0 | H26: 0 | I26: 0 | J26: 0 | L26: 0 | M26: 0 | O26: 0
A27: 1845 | B27: Underground Conductors & Devices | G27: 0 | H27: 0 | I27: 0 | J27: 0 | L27: 0 | M27: 0 | O27: 0
A28: 1850 | B28: Line Transformers | G28: 0 | H28: 0 | I28: 0 | J28: 0 | L28: 0 | M28: 0 | O28: 0
A29: 1855 | B29: Services (Overhead & Underground) | G29: 0 | H29: 0 | I29: 0 | J29: 0 | L29: 0 | M29: 0 | O29: 0
A30: 1860 | B30: Meters | G30: 0 | H30: 0 | I30: 0 | J30: 0 | L30: 0 | M30: 0 | O30: 0
A31: 1860 | B31: Meters (Smart Meters) | G31: 0 | H31: 0 | I31: 0 | J31: 0 | L31: 0 | M31: 0 | O31: 0
A32: 1905 | B32: Land | G32: 0 | H32: 0 | I32: 0 | J32: 0 | L32: 0 | M32: 0 | O32: 0
A33: 1908 | B33: Buildings & Fixtures | G33: 0 | H33: 0 | I33: 0 | J33: 0 | L33: 0 | M33: 0 | O33: 0
A34: 1910 | B34: Leasehold Improvements | G34: 0 | H34: 0 | I34: 0 | J34: 0 | L34: 0 | M34: 0 | O34: 0
A35: 1915 | B35: Office Furniture & Equipment (10 years) | G35: 0 | H35: 0 | I35: 0 | J35: 0 | L35: 0 | M35: 0 | O35: 0
A36: 1915 | B36: Office Furniture & Equipment (5 years) | G36: 0 | H36: 0 | I36: 0 | J36: 0 | L36: 0 | M36: 0 | O36: 0
A37: 1920 | B37: Computer Equipment - Hardware | G37: 0 | H37: 0 | I37: 0 | J37: 0 | L37: 0 | M37: 0 | O37: 0
A38: 1920 | B38: Computer Equip.-Hardware(Post Mar. 22/04) | G38: 0 | H38: 0 | I38: 0 | J38: 0 | L38: 0 | M38: 0 | O38: 0
A39: 1920 | B39: Computer Equip.-Hardware(Post Mar. 19/07) | G39: 0 | H39: 0 | I39: 0 | J39: 0 | L39: 0 | M39: 0 | O39: 0
A40: 1930 | B40: Transportation Equipment | G40: 0 | H40: 0 | I40: 0 | J40: 0 | L40: 0 | M40: 0 | O40: 0
A41: 1935 | B41: Stores Equipment | G41: 0 | H41: 0 | I41: 0 | J41: 0 | L41: 0 | M41: 0 | O41: 0
A42: 1940 | B42: Tools, Shop & Garage Equipment | G42: 0 | H42: 0 | I42: 0 | J42: 0 | L42: 0 | M42: 0 | O42: 0
A43: 1945 | B43: Measurement & Testing Equipment | G43: 0 | H43: 0 | I43: 0 | J43: 0 | L43: 0 | M43: 0 | O43: 0
A44: 1950 | B44: Power Operated Equipment | G44: 0 | H44: 0 | I44: 0 | J44: 0 | L44: 0 | M44: 0 | O44: 0
A45: 1955 | B45: Communications Equipment | G45: 0 | H45: 0 | I45: 0 | J45: 0 | L45: 0 | M45: 0 | O45: 0
A46: 1955 | B46: Communication Equipment (Smart Meters) | G46: 0 | H46: 0 | I46: 0 | J46: 0 | L46: 0 | M46: 0 | O46: 0
A47: 1960 | B47: Miscellaneous Equipment | G47: 0 | H47: 0 | I47: 0 | J47: 0 | L47: 0 | M47: 0 | O47: 0
A48: 1975 | B48: Load Management Controls Utility Premises | G48: 0 | H48: 0 | I48: 0 | J48: 0 | L48: 0 | M48: 0 | O48: 0
A49: 1980 | B49: System Supervisor Equipment | G49: 0 | H49: 0 | I49: 0 | J49: 0 | L49: 0 | M49: 0 | O49: 0
A50: 1985 | B50: Miscellaneous Fixed Assets | G50: 0 | H50: 0 | I50: 0 | J50: 0 | L50: 0 | M50: 0 | O50: 0
A51: 1995 | B51: Contributions & Grants | G51: 0 | H51: 0 | I51: 0 | J51: 0 | L51: 0 | M51: 0 | O51: 0
A52: etc. | G52: 0 | H52: 0 | I52: 0 | J52: 0 | L52: 0 | M52: 0 | O52: 0
G53: 0 | H53: 0 | I53: 0 | J53: 0 | L53: 0 | M53: 0 | O53: 0
B54: Total | C54: =SUM(C16:C53) -> 0 | D54: =SUM(D16:D53) -> 0 | H54: =SUM(H16:H53) -> 0 | I54: 0 | J54: 0 | K54: 0 | L54: 0 | M54: 0 | N54: =SUM(N16:N53) -> 0 | O54: 0
A56: Notes:
A58: 1 | B58: Board policy of the "half-year" rule - the applicant must ensure that additions in the year attract a half-year depreciation expense in the first year. Deviations from this standard practice must be supported in the application.
A59: 2 | B59: The applicant must provide an explanation of material variances in evidence
A60: 3 | B60: The applicant should ensure that the years for new additions of assets are the asset useful lives determined by management in accordance with IFRS.
A61: 4 | B61: A recalculation should be performed to determine the average remaining life of opening balance of assets (i.e. excluding 2011 additions) under IFRS. For example, Asset A had a useful life of 20 years under CGAAP. On January 1, 2011, the date of transition, Asset A was 3 years depreciated. As a result, Asset A would have a remaining service life of 17 years (20 years less 3 years) under CGAAP as of January 1, 2011. Due to the transition to IFRS, management re-assessed the asset useful lives under IFRS principles and concluded that the revised useful life of Asset A is now 30 years. Therefore, the average remaining useful life of opening balance of Asset A is determined to be 27 years (30 years less 3 years) under IFRS as of January 1, 2011.
A62: 5 | B62: NBV must exclude assets still on the books but which have been fully amortized or depreciated.
A63: 6 | B63: This column refers to the calculated full year depreciation but excludes the depreciation expense on assets fully depreciated during the year. This column is used for the purpose of calculating depreciation expense in the following year on the next worksheet.
A65: General: | B65: Applicants must provide a breakdown of depreciation and amortization expense in the above format for all relevant accounts. Asset Retirement Obligations (AROs), depreciation and accretion expense should be disclosed separately consistent with the Notes of historical Audited Financial Statements.

Sheet App.2-CC_MIFRS_DepExp_2012
J1: File Number: | K1: ='LDC Info'!$E$18 -> EB-2012-0109
J2: Exhibit:
J3: Tab:
J4: Schedule:
J5: Page: | K5: 10
J7: Date:
A9: Appendix 2-CC
A10: Depreciation and Amortization Expense
A11: Assumes the applicant adopted IFRS for financial reporting purposes January 1, 2012
C12: 2012 | D12: MIFRS
A14: Account | B14: Description | C14: Additions | D14: Years (new additions only) | E14: Depreciation Rate on New Additions | F14: 2012 Depreciation Expense 1 | G14: 2012 Depreciation Expense per Apppendix 2-B Fixed Assets, Column K (l) | H14: Variance 2 | I14: Depreciation Expense on 2012 Full Year Additions | J14: Less Depreciation Expense on Assets Fully Depreciated during the year (o) | K14: 2012 Full Year Depreciation 3
C15: (d) | D15: (f) | E15: (g) = 1 / (f) | F15: (h)=2011 Full Year Deprecation + ((d)*0.5)/(f) | H15: (m) = (h) - (l) | I15: (n)=((d))/(f) | K15: (o) = 2011 Full Year Depreciation + (n) - (o)
A16: 1611 | B16: Computer Software (Formally known as Account 1925) | E16: =IF(D16=0,0,1/D16) -> 0 | F16: =IF(D16=0,+'App.2-CB_MIFRS_DepExp_2011'!O16,+'App.2-CB_MIFRS_DepExp_2011'!O16+((C16*0.5)/D16)) -> 0 | H16: =IF(ISERROR(+F16-G16), 0, +F16-G16) -> 0 | I16: =IF(D16=0,0,+(C16)/D16) -> 0 | K16: =IF(ISERROR(+I16+'App.2-CB_MIFRS_DepExp_2011'!O16-J16), 0, +I16+'App.2-CB_MIFRS_DepExp_2011'!O16-J16) -> 0
A17: 1612 | B17: Land Rights (Formally known as Account 1906) | E17: 0 | F17: =IF(D17=0,+'App.2-CB_MIFRS_DepExp_2011'!O17,+'App.2-CB_MIFRS_DepExp_2011'!O17+((C17*0.5)/D17)) -> 0 | H17: 0 | I17: 0 | K17: =IF(ISERROR(+I17+'App.2-CB_MIFRS_DepExp_2011'!O17-J17), 0, +I17+'App.2-CB_MIFRS_DepExp_2011'!O17-J17) -> 0
A18: 1805 | B18: Land | E18: 0 | F18: =IF(D18=0,+'App.2-CB_MIFRS_DepExp_2011'!O18,+'App.2-CB_MIFRS_DepExp_2011'!O18+((C18*0.5)/D18)) -> 0 | H18: 0 | I18: 0 | K18: =IF(ISERROR(+I18+'App.2-CB_MIFRS_DepExp_2011'!O18-J18), 0, +I18+'App.2-CB_MIFRS_DepExp_2011'!O18-J18) -> 0
A19: 1808 | B19: Buildings | E19: 0 | F19: =IF(D19=0,+'App.2-CB_MIFRS_DepExp_2011'!O19,+'App.2-CB_MIFRS_DepExp_2011'!O19+((C19*0.5)/D19)) -> 0 | H19: 0 | I19: 0 | K19: =IF(ISERROR(+I19+'App.2-CB_MIFRS_DepExp_2011'!O19-J19), 0, +I19+'App.2-CB_MIFRS_DepExp_2011'!O19-J19) -> 0
A20: 1810 | B20: Leasehold Improvements | E20: 0 | F20: =IF(D20=0,+'App.2-CB_MIFRS_DepExp_2011'!O20,+'App.2-CB_MIFRS_DepExp_2011'!O20+((C20*0.5)/D20)) -> 0 | H20: 0 | I20: 0 | K20: =IF(ISERROR(+I20+'App.2-CB_MIFRS_DepExp_2011'!O20-J20), 0, +I20+'App.2-CB_MIFRS_DepExp_2011'!O20-J20) -> 0
A21: 1815 | B21: Transformer Station Equipment >50 kV | E21: 0 | F21: =IF(D21=0,+'App.2-CB_MIFRS_DepExp_2011'!O21,+'App.2-CB_MIFRS_DepExp_2011'!O21+((C21*0.5)/D21)) -> 0 | H21: 0 | I21: 0 | K21: =IF(ISERROR(+I21+'App.2-CB_MIFRS_DepExp_2011'!O21-J21), 0, +I21+'App.2-CB_MIFRS_DepExp_2011'!O21-J21) -> 0
A22: 1820 | B22: Distribution Station Equipment <50 kV | E22: 0 | F22: =IF(D22=0,+'App.2-CB_MIFRS_DepExp_2011'!O22,+'App.2-CB_MIFRS_DepExp_2011'!O22+((C22*0.5)/D22)) -> 0 | H22: 0 | I22: 0 | K22: =IF(ISERROR(+I22+'App.2-CB_MIFRS_DepExp_2011'!O22-J22), 0, +I22+'App.2-CB_MIFRS_DepExp_2011'!O22-J22) -> 0
A23: 1825 | B23: Storage Battery Equipment | E23: 0 | F23: =IF(D23=0,+'App.2-CB_MIFRS_DepExp_2011'!O23,+'App.2-CB_MIFRS_DepExp_2011'!O23+((C23*0.5)/D23)) -> 0 | H23: 0 | I23: 0 | K23: =IF(ISERROR(+I23+'App.2-CB_MIFRS_DepExp_2011'!O23-J23), 0, +I23+'App.2-CB_MIFRS_DepExp_2011'!O23-J23) -> 0
A24: 1830 | B24: Poles, Towers & Fixtures | E24: 0 | F24: =IF(D24=0,+'App.2-CB_MIFRS_DepExp_2011'!O24,+'App.2-CB_MIFRS_DepExp_2011'!O24+((C24*0.5)/D24)) -> 0 | H24: 0 | I24: 0 | K24: =IF(ISERROR(+I24+'App.2-CB_MIFRS_DepExp_2011'!O24-J24), 0, +I24+'App.2-CB_MIFRS_DepExp_2011'!O24-J24) -> 0
A25: 1835 | B25: Overhead Conductors & Devices | E25: 0 | F25: =IF(D25=0,+'App.2-CB_MIFRS_DepExp_2011'!O25,+'App.2-CB_MIFRS_DepExp_2011'!O25+((C25*0.5)/D25)) -> 0 | H25: 0 | I25: 0 | K25: =IF(ISERROR(+I25+'App.2-CB_MIFRS_DepExp_2011'!O25-J25), 0, +I25+'App.2-CB_MIFRS_DepExp_2011'!O25-J25) -> 0
A26: 1840 | B26: Underground Conduit | E26: 0 | F26: =IF(D26=0,+'App.2-CB_MIFRS_DepExp_2011'!O26,+'App.2-CB_MIFRS_DepExp_2011'!O26+((C26*0.5)/D26)) -> 0 | H26: 0 | I26: 0 | K26: =IF(ISERROR(+I26+'App.2-CB_MIFRS_DepExp_2011'!O26-J26), 0, +I26+'App.2-CB_MIFRS_DepExp_2011'!O26-J26) -> 0
A27: 1845 | B27: Underground Conductors & Devices | E27: 0 | F27: =IF(D27=0,+'App.2-CB_MIFRS_DepExp_2011'!O27,+'App.2-CB_MIFRS_DepExp_2011'!O27+((C27*0.5)/D27)) -> 0 | H27: 0 | I27: 0 | K27: =IF(ISERROR(+I27+'App.2-CB_MIFRS_DepExp_2011'!O27-J27), 0, +I27+'App.2-CB_MIFRS_DepExp_2011'!O27-J27) -> 0
A28: 1850 | B28: Line Transformers | E28: 0 | F28: =IF(D28=0,+'App.2-CB_MIFRS_DepExp_2011'!O28,+'App.2-CB_MIFRS_DepExp_2011'!O28+((C28*0.5)/D28)) -> 0 | H28: 0 | I28: 0 | K28: =IF(ISERROR(+I28+'App.2-CB_MIFRS_DepExp_2011'!O28-J28), 0, +I28+'App.2-CB_MIFRS_DepExp_2011'!O28-J28) -> 0
A29: 1855 | B29: Services (Overhead & Underground) | E29: 0 | F29: =IF(D29=0,+'App.2-CB_MIFRS_DepExp_2011'!O29,+'App.2-CB_MIFRS_DepExp_2011'!O29+((C29*0.5)/D29)) -> 0 | H29: 0 | I29: 0 | K29: =IF(ISERROR(+I29+'App.2-CB_MIFRS_DepExp_2011'!O29-J29), 0, +I29+'App.2-CB_MIFRS_DepExp_2011'!O29-J29) -> 0
A30: 1860 | B30: Meters | E30: 0 | F30: =IF(D30=0,+'App.2-CB_MIFRS_DepExp_2011'!O30,+'App.2-CB_MIFRS_DepExp_2011'!O30+((C30*0.5)/D30)) -> 0 | H30: 0 | I30: 0 | K30: =IF(ISERROR(+I30+'App.2-CB_MIFRS_DepExp_2011'!O30-J30), 0, +I30+'App.2-CB_MIFRS_DepExp_2011'!O30-J30) -> 0
A31: 1860 | B31: Meters (Smart Meters) | E31: 0 | F31: =IF(D31=0,+'App.2-CB_MIFRS_DepExp_2011'!O31,+'App.2-CB_MIFRS_DepExp_2011'!O31+((C31*0.5)/D31)) -> 0 | H31: 0 | I31: 0 | K31: =IF(ISERROR(+I31+'App.2-CB_MIFRS_DepExp_2011'!O31-J31), 0, +I31+'App.2-CB_MIFRS_DepExp_2011'!O31-J31) -> 0
A32: 1905 | B32: Land | E32: 0 | F32: =IF(D32=0,+'App.2-CB_MIFRS_DepExp_2011'!O32,+'App.2-CB_MIFRS_DepExp_2011'!O32+((C32*0.5)/D32)) -> 0 | H32: 0 | I32: 0 | K32: =IF(ISERROR(+I32+'App.2-CB_MIFRS_DepExp_2011'!O32-J32), 0, +I32+'App.2-CB_MIFRS_DepExp_2011'!O32-J32) -> 0
A33: 1908 | B33: Buildings & Fixtures | E33: 0 | F33: =IF(D33=0,+'App.2-CB_MIFRS_DepExp_2011'!O33,+'App.2-CB_MIFRS_DepExp_2011'!O33+((C33*0.5)/D33)) -> 0 | H33: 0 | I33: 0 | K33: =IF(ISERROR(+I33+'App.2-CB_MIFRS_DepExp_2011'!O33-J33), 0, +I33+'App.2-CB_MIFRS_DepExp_2011'!O33-J33) -> 0
A34: 1910 | B34: Leasehold Improvements | E34: 0 | F34: =IF(D34=0,+'App.2-CB_MIFRS_DepExp_2011'!O34,+'App.2-CB_MIFRS_DepExp_2011'!O34+((C34*0.5)/D34)) -> 0 | H34: 0 | I34: 0 | K34: =IF(ISERROR(+I34+'App.2-CB_MIFRS_DepExp_2011'!O34-J34), 0, +I34+'App.2-CB_MIFRS_DepExp_2011'!O34-J34) -> 0
A35: 1915 | B35: Office Furniture & Equipment (10 years) | E35: 0 | F35: =IF(D35=0,+'App.2-CB_MIFRS_DepExp_2011'!O35,+'App.2-CB_MIFRS_DepExp_2011'!O35+((C35*0.5)/D35)) -> 0 | H35: 0 | I35: 0 | K35: =IF(ISERROR(+I35+'App.2-CB_MIFRS_DepExp_2011'!O35-J35), 0, +I35+'App.2-CB_MIFRS_DepExp_2011'!O35-J35) -> 0
A36: 1915 | B36: Office Furniture & Equipment (5 years) | E36: 0 | F36: =IF(D36=0,+'App.2-CB_MIFRS_DepExp_2011'!O36,+'App.2-CB_MIFRS_DepExp_2011'!O36+((C36*0.5)/D36)) -> 0 | H36: 0 | I36: 0 | K36: =IF(ISERROR(+I36+'App.2-CB_MIFRS_DepExp_2011'!O36-J36), 0, +I36+'App.2-CB_MIFRS_DepExp_2011'!O36-J36) -> 0
A37: 1920 | B37: Computer Equipment - Hardware | E37: 0 | F37: =IF(D37=0,+'App.2-CB_MIFRS_DepExp_2011'!O37,+'App.2-CB_MIFRS_DepExp_2011'!O37+((C37*0.5)/D37)) -> 0 | H37: 0 | I37: 0 | K37: =IF(ISERROR(+I37+'App.2-CB_MIFRS_DepExp_2011'!O37-J37), 0, +I37+'App.2-CB_MIFRS_DepExp_2011'!O37-J37) -> 0
A38: 1920 | B38: Computer Equip.-Hardware(Post Mar. 22/04) | E38: 0 | F38: =IF(D38=0,+'App.2-CB_MIFRS_DepExp_2011'!O38,+'App.2-CB_MIFRS_DepExp_2011'!O38+((C38*0.5)/D38)) -> 0 | H38: 0 | I38: 0 | K38: =IF(ISERROR(+I38+'App.2-CB_MIFRS_DepExp_2011'!O38-J38), 0, +I38+'App.2-CB_MIFRS_DepExp_2011'!O38-J38) -> 0
A39: 1920 | B39: Computer Equip.-Hardware(Post Mar. 19/07) | E39: 0 | F39: =IF(D39=0,+'App.2-CB_MIFRS_DepExp_2011'!O39,+'App.2-CB_MIFRS_DepExp_2011'!O39+((C39*0.5)/D39)) -> 0 | H39: 0 | I39: 0 | K39: =IF(ISERROR(+I39+'App.2-CB_MIFRS_DepExp_2011'!O39-J39), 0, +I39+'App.2-CB_MIFRS_DepExp_2011'!O39-J39) -> 0
A40: 1930 | B40: Transportation Equipment | E40: 0 | F40: =IF(D40=0,+'App.2-CB_MIFRS_DepExp_2011'!O40,+'App.2-CB_MIFRS_DepExp_2011'!O40+((C40*0.5)/D40)) -> 0 | H40: 0 | I40: 0 | K40: =IF(ISERROR(+I40+'App.2-CB_MIFRS_DepExp_2011'!O40-J40), 0, +I40+'App.2-CB_MIFRS_DepExp_2011'!O40-J40) -> 0
A41: 1935 | B41: Stores Equipment | E41: 0 | F41: =IF(D41=0,+'App.2-CB_MIFRS_DepExp_2011'!O41,+'App.2-CB_MIFRS_DepExp_2011'!O41+((C41*0.5)/D41)) -> 0 | H41: 0 | I41: 0 | K41: =IF(ISERROR(+I41+'App.2-CB_MIFRS_DepExp_2011'!O41-J41), 0, +I41+'App.2-CB_MIFRS_DepExp_2011'!O41-J41) -> 0
A42: 1940 | B42: Tools, Shop & Garage Equipment | E42: 0 | F42: =IF(D42=0,+'App.2-CB_MIFRS_DepExp_2011'!O42,+'App.2-CB_MIFRS_DepExp_2011'!O42+((C42*0.5)/D42)) -> 0 | H42: 0 | I42: 0 | K42: =IF(ISERROR(+I42+'App.2-CB_MIFRS_DepExp_2011'!O42-J42), 0, +I42+'App.2-CB_MIFRS_DepExp_2011'!O42-J42) -> 0
A43: 1945 | B43: Measurement & Testing Equipment | E43: 0 | F43: =IF(D43=0,+'App.2-CB_MIFRS_DepExp_2011'!O43,+'App.2-CB_MIFRS_DepExp_2011'!O43+((C43*0.5)/D43)) -> 0 | H43: 0 | I43: 0 | K43: =IF(ISERROR(+I43+'App.2-CB_MIFRS_DepExp_2011'!O43-J43), 0, +I43+'App.2-CB_MIFRS_DepExp_2011'!O43-J43) -> 0
A44: 1950 | B44: Power Operated Equipment | E44: 0 | F44: =IF(D44=0,+'App.2-CB_MIFRS_DepExp_2011'!O44,+'App.2-CB_MIFRS_DepExp_2011'!O44+((C44*0.5)/D44)) -> 0 | H44: 0 | I44: 0 | K44: =IF(ISERROR(+I44+'App.2-CB_MIFRS_DepExp_2011'!O44-J44), 0, +I44+'App.2-CB_MIFRS_DepExp_2011'!O44-J44) -> 0
A45: 1955 | B45: Communications Equipment | E45: 0 | F45: =IF(D45=0,+'App.2-CB_MIFRS_DepExp_2011'!O45,+'App.2-CB_MIFRS_DepExp_2011'!O45+((C45*0.5)/D45)) -> 0 | H45: 0 | I45: 0 | K45: =IF(ISERROR(+I45+'App.2-CB_MIFRS_DepExp_2011'!O45-J45), 0, +I45+'App.2-CB_MIFRS_DepExp_2011'!O45-J45) -> 0
A46: 1955 | B46: Communication Equipment (Smart Meters) | E46: 0 | F46: =IF(D46=0,+'App.2-CB_MIFRS_DepExp_2011'!O46,+'App.2-CB_MIFRS_DepExp_2011'!O46+((C46*0.5)/D46)) -> 0 | H46: 0 | I46: 0 | K46: =IF(ISERROR(+I46+'App.2-CB_MIFRS_DepExp_2011'!O46-J46), 0, +I46+'App.2-CB_MIFRS_DepExp_2011'!O46-J46) -> 0
A47: 1960 | B47: Miscellaneous Equipment | E47: 0 | F47: =IF(D47=0,+'App.2-CB_MIFRS_DepExp_2011'!O47,+'App.2-CB_MIFRS_DepExp_2011'!O47+((C47*0.5)/D47)) -> 0 | H47: 0 | I47: 0 | K47: =IF(ISERROR(+I47+'App.2-CB_MIFRS_DepExp_2011'!O47-J47), 0, +I47+'App.2-CB_MIFRS_DepExp_2011'!O47-J47) -> 0
A48: 1975 | B48: Load Management Controls Utility Premises | E48: 0 | F48: =IF(D48=0,+'App.2-CB_MIFRS_DepExp_2011'!O48,+'App.2-CB_MIFRS_DepExp_2011'!O48+((C48*0.5)/D48)) -> 0 | H48: 0 | I48: 0 | K48: =IF(ISERROR(+I48+'App.2-CB_MIFRS_DepExp_2011'!O48-J48), 0, +I48+'App.2-CB_MIFRS_DepExp_2011'!O48-J48) -> 0
A49: 1980 | B49: System Supervisor Equipment | E49: 0 | F49: =IF(D49=0,+'App.2-CB_MIFRS_DepExp_2011'!O49,+'App.2-CB_MIFRS_DepExp_2011'!O49+((C49*0.5)/D49)) -> 0 | H49: 0 | I49: 0 | K49: =IF(ISERROR(+I49+'App.2-CB_MIFRS_DepExp_2011'!O49-J49), 0, +I49+'App.2-CB_MIFRS_DepExp_2011'!O49-J49) -> 0
A50: 1985 | B50: Miscellaneous Fixed Assets | E50: 0 | F50: =IF(D50=0,+'App.2-CB_MIFRS_DepExp_2011'!O50,+'App.2-CB_MIFRS_DepExp_2011'!O50+((C50*0.5)/D50)) -> 0 | H50: 0 | I50: 0 | K50: =IF(ISERROR(+I50+'App.2-CB_MIFRS_DepExp_2011'!O50-J50), 0, +I50+'App.2-CB_MIFRS_DepExp_2011'!O50-J50) -> 0
A51: 1995 | B51: Contributions & Grants | E51: 0 | F51: =IF(D51=0,+'App.2-CB_MIFRS_DepExp_2011'!O51,+'App.2-CB_MIFRS_DepExp_2011'!O51+((C51*0.5)/D51)) -> 0 | H51: 0 | I51: 0 | K51: =IF(ISERROR(+I51+'App.2-CB_MIFRS_DepExp_2011'!O51-J51), 0, +I51+'App.2-CB_MIFRS_DepExp_2011'!O51-J51) -> 0
A52: etc. | E52: 0 | F52: =IF(D52=0,+'App.2-CB_MIFRS_DepExp_2011'!O52,+'App.2-CB_MIFRS_DepExp_2011'!O52+((C52*0.5)/D52)) -> 0 | H52: 0 | I52: 0 | K52: =IF(ISERROR(+I52+'App.2-CB_MIFRS_DepExp_2011'!O52-J52), 0, +I52+'App.2-CB_MIFRS_DepExp_2011'!O52-J52) -> 0
E53: 0 | F53: =IF(D53=0,+'App.2-CB_MIFRS_DepExp_2011'!O53,+'App.2-CB_MIFRS_DepExp_2011'!O53+((C53*0.5)/D53)) -> 0 | H53: 0 | I53: 0 | K53: =IF(ISERROR(+I53+'App.2-CB_MIFRS_DepExp_2011'!O53-J53), 0, +I53+'App.2-CB_MIFRS_DepExp_2011'!O53-J53) -> 0
B54: Total | C54: =SUM(C16:C53) -> 0 | F54: =SUM(F16:F53) -> 0 | G54: 0 | H54: 0 | I54: 0 | J54: 0 | K54: 0
A56: Notes:
A57: 1 | B57: Board policy of the "half-year" rule - the applicant must ensure that additions in the year attract a half-year depreciation expense in the first year. Deviations from this standard practice must be supported in the application.
A58: 2 | B58: The applicant must provide an explanation of material variances in evidence
A59: 3 | B59: This column refers to the calculated full year depreciation but excludes the depreciation expense on assets fully depreciated during the year. This column is used for the purpose of calculating depreciation expense in the following year on the next worksheet.
A61: General: | B61: Applicants must provide a breakdown of depreciation and amortization expense in the above format for all relevant accounts. Asset Retirement Obligations (AROs), depreciation and accretion expense should be disclosed separately consistent with the Notes of historical Audited Financial Statements.

Sheet App.2-CD_MIFRS_DepExp_2013
G1: File Number: | H1: ='LDC Info'!$E$18 -> EB-2012-0109
G2: Exhibit:
G3: Tab:
G4: Schedule:
G5: Page: | H5: 11
G7: Date:
A9: Appendix 2-CD
A10: Depreciation and Amortization Expense
A11: Assumes the applicant adopted IFRS for financial reporting purposes January 1, 2012
C12: 2013 | D12: MIFRS
A14: Account | B14: Description | C14: Additions | D14: Years (new additions only) | E14: Depreciation Rate on New Additions | F14: 2013 Depreciation Expense 1 | G14: 2013 Depreciation Expense per Appendix 2-B Fixed Assets, Column K (l) | H14: Variance 2
C15: (d) | D15: (f) | E15: (g) = 1 / (f) | F15: (h)=2012 Full Year Depreciation + ((d)*0.5)/(f) | H15: (m) = (h) - (l)
A16: 1611 | B16: Computer Software (Formally known as Account 1925) | E16: =IF(D16=0,0,1/D16) -> 0 | F16: =IF(D16=0,'App.2-CC_MIFRS_DepExp_2012'!K16,+'App.2-CC_MIFRS_DepExp_2012'!K16+((C16*0.5)/D16)) -> 0 | H16: =IF(ISERROR(+F16-G16), 0, +F16-G16) -> 0
A17: 1612 | B17: Land Rights (Formally known as Account 1906) | E17: 0 | F17: =IF(D17=0,'App.2-CC_MIFRS_DepExp_2012'!K17,+'App.2-CC_MIFRS_DepExp_2012'!K17+((C17*0.5)/D17)) -> 0 | H17: 0
A18: 1805 | B18: Land | E18: 0 | F18: =IF(D18=0,'App.2-CC_MIFRS_DepExp_2012'!K18,+'App.2-CC_MIFRS_DepExp_2012'!K18+((C18*0.5)/D18)) -> 0 | H18: 0
A19: 1808 | B19: Buildings | E19: 0 | F19: =IF(D19=0,'App.2-CC_MIFRS_DepExp_2012'!K19,+'App.2-CC_MIFRS_DepExp_2012'!K19+((C19*0.5)/D19)) -> 0 | H19: 0
A20: 1810 | B20: Leasehold Improvements | E20: 0 | F20: =IF(D20=0,'App.2-CC_MIFRS_DepExp_2012'!K20,+'App.2-CC_MIFRS_DepExp_2012'!K20+((C20*0.5)/D20)) -> 0 | H20: 0
A21: 1815 | B21: Transformer Station Equipment >50 kV | E21: 0 | F21: =IF(D21=0,'App.2-CC_MIFRS_DepExp_2012'!K21,+'App.2-CC_MIFRS_DepExp_2012'!K21+((C21*0.5)/D21)) -> 0 | H21: 0
A22: 1820 | B22: Distribution Station Equipment <50 kV | E22: 0 | F22: =IF(D22=0,'App.2-CC_MIFRS_DepExp_2012'!K22,+'App.2-CC_MIFRS_DepExp_2012'!K22+((C22*0.5)/D22)) -> 0 | H22: 0
A23: 1825 | B23: Storage Battery Equipment | E23: 0 | F23: =IF(D23=0,'App.2-CC_MIFRS_DepExp_2012'!K23,+'App.2-CC_MIFRS_DepExp_2012'!K23+((C23*0.5)/D23)) -> 0 | H23: 0
A24: 1830 | B24: Poles, Towers & Fixtures | E24: 0 | F24: =IF(D24=0,'App.2-CC_MIFRS_DepExp_2012'!K24,+'App.2-CC_MIFRS_DepExp_2012'!K24+((C24*0.5)/D24)) -> 0 | H24: 0
A25: 1835 | B25: Overhead Conductors & Devices | E25: 0 | F25: =IF(D25=0,'App.2-CC_MIFRS_DepExp_2012'!K25,+'App.2-CC_MIFRS_DepExp_2012'!K25+((C25*0.5)/D25)) -> 0 | H25: 0
A26: 1840 | B26: Underground Conduit | E26: 0 | F26: =IF(D26=0,'App.2-CC_MIFRS_DepExp_2012'!K26,+'App.2-CC_MIFRS_DepExp_2012'!K26+((C26*0.5)/D26)) -> 0 | H26: 0
A27: 1845 | B27: Underground Conductors & Devices | E27: 0 | F27: =IF(D27=0,'App.2-CC_MIFRS_DepExp_2012'!K27,+'App.2-CC_MIFRS_DepExp_2012'!K27+((C27*0.5)/D27)) -> 0 | H27: 0
A28: 1850 | B28: Line Transformers | E28: 0 | F28: =IF(D28=0,'App.2-CC_MIFRS_DepExp_2012'!K28,+'App.2-CC_MIFRS_DepExp_2012'!K28+((C28*0.5)/D28)) -> 0 | H28: 0
A29: 1855 | B29: Services (Overhead & Underground) | E29: 0 | F29: =IF(D29=0,'App.2-CC_MIFRS_DepExp_2012'!K29,+'App.2-CC_MIFRS_DepExp_2012'!K29+((C29*0.5)/D29)) -> 0 | H29: 0
A30: 1860 | B30: Meters | E30: 0 | F30: =IF(D30=0,'App.2-CC_MIFRS_DepExp_2012'!K30,+'App.2-CC_MIFRS_DepExp_2012'!K30+((C30*0.5)/D30)) -> 0 | H30: 0
A31: 1860 | B31: Meters (Smart Meters) | E31: 0 | F31: =IF(D31=0,'App.2-CC_MIFRS_DepExp_2012'!K31,+'App.2-CC_MIFRS_DepExp_2012'!K31+((C31*0.5)/D31)) -> 0 | H31: 0
A32: 1905 | B32: Land | E32: 0 | F32: =IF(D32=0,'App.2-CC_MIFRS_DepExp_2012'!K32,+'App.2-CC_MIFRS_DepExp_2012'!K32+((C32*0.5)/D32)) -> 0 | H32: 0
A33: 1908 | B33: Buildings & Fixtures | E33: 0 | F33: =IF(D33=0,'App.2-CC_MIFRS_DepExp_2012'!K33,+'App.2-CC_MIFRS_DepExp_2012'!K33+((C33*0.5)/D33)) -> 0 | H33: 0
A34: 1910 | B34: Leasehold Improvements | E34: 0 | F34: =IF(D34=0,'App.2-CC_MIFRS_DepExp_2012'!K34,+'App.2-CC_MIFRS_DepExp_2012'!K34+((C34*0.5)/D34)) -> 0 | H34: 0
A35: 1915 | B35: Office Furniture & Equipment (10 years) | E35: 0 | F35: =IF(D35=0,'App.2-CC_MIFRS_DepExp_2012'!K35,+'App.2-CC_MIFRS_DepExp_2012'!K35+((C35*0.5)/D35)) -> 0 | H35: 0
A36: 1915 | B36: Office Furniture & Equipment (5 years) | E36: 0 | F36: =IF(D36=0,'App.2-CC_MIFRS_DepExp_2012'!K36,+'App.2-CC_MIFRS_DepExp_2012'!K36+((C36*0.5)/D36)) -> 0 | H36: 0
A37: 1920 | B37: Computer Equipment - Hardware | E37: 0 | F37: =IF(D37=0,'App.2-CC_MIFRS_DepExp_2012'!K37,+'App.2-CC_MIFRS_DepExp_2012'!K37+((C37*0.5)/D37)) -> 0 | H37: 0
A38: 1920 | B38: Computer Equip.-Hardware(Post Mar. 22/04) | E38: 0 | F38: =IF(D38=0,'App.2-CC_MIFRS_DepExp_2012'!K38,+'App.2-CC_MIFRS_DepExp_2012'!K38+((C38*0.5)/D38)) -> 0 | H38: 0
A39: 1920 | B39: Computer Equip.-Hardware(Post Mar. 19/07) | E39: 0 | F39: =IF(D39=0,'App.2-CC_MIFRS_DepExp_2012'!K39,+'App.2-CC_MIFRS_DepExp_2012'!K39+((C39*0.5)/D39)) -> 0 | H39: 0
A40: 1930 | B40: Transportation Equipment | E40: 0 | F40: =IF(D40=0,'App.2-CC_MIFRS_DepExp_2012'!K40,+'App.2-CC_MIFRS_DepExp_2012'!K40+((C40*0.5)/D40)) -> 0 | H40: 0
A41: 1935 | B41: Stores Equipment | E41: 0 | F41: =IF(D41=0,'App.2-CC_MIFRS_DepExp_2012'!K41,+'App.2-CC_MIFRS_DepExp_2012'!K41+((C41*0.5)/D41)) -> 0 | H41: 0
A42: 1940 | B42: Tools, Shop & Garage Equipment | E42: 0 | F42: =IF(D42=0,'App.2-CC_MIFRS_DepExp_2012'!K42,+'App.2-CC_MIFRS_DepExp_2012'!K42+((C42*0.5)/D42)) -> 0 | H42: 0
A43: 1945 | B43: Measurement & Testing Equipment | E43: 0 | F43: =IF(D43=0,'App.2-CC_MIFRS_DepExp_2012'!K43,+'App.2-CC_MIFRS_DepExp_2012'!K43+((C43*0.5)/D43)) -> 0 | H43: 0
A44: 1950 | B44: Power Operated Equipment | E44: 0 | F44: =IF(D44=0,'App.2-CC_MIFRS_DepExp_2012'!K44,+'App.2-CC_MIFRS_DepExp_2012'!K44+((C44*0.5)/D44)) -> 0 | H44: 0
A45: 1955 | B45: Communications Equipment | E45: 0 | F45: =IF(D45=0,'App.2-CC_MIFRS_DepExp_2012'!K45,+'App.2-CC_MIFRS_DepExp_2012'!K45+((C45*0.5)/D45)) -> 0 | H45: 0
A46: 1955 | B46: Communication Equipment (Smart Meters) | E46: 0 | F46: =IF(D46=0,'App.2-CC_MIFRS_DepExp_2012'!K46,+'App.2-CC_MIFRS_DepExp_2012'!K46+((C46*0.5)/D46)) -> 0 | H46: 0
A47: 1960 | B47: Miscellaneous Equipment | E47: 0 | F47: =IF(D47=0,'App.2-CC_MIFRS_DepExp_2012'!K47,+'App.2-CC_MIFRS_DepExp_2012'!K47+((C47*0.5)/D47)) -> 0 | H47: 0
A48: 1975 | B48: Load Management Controls Utility Premises | E48: 0 | F48: =IF(D48=0,'App.2-CC_MIFRS_DepExp_2012'!K48,+'App.2-CC_MIFRS_DepExp_2012'!K48+((C48*0.5)/D48)) -> 0 | H48: 0
A49: 1980 | B49: System Supervisor Equipment | E49: 0 | F49: =IF(D49=0,'App.2-CC_MIFRS_DepExp_2012'!K49,+'App.2-CC_MIFRS_DepExp_2012'!K49+((C49*0.5)/D49)) -> 0 | H49: 0
A50: 1985 | B50: Miscellaneous Fixed Assets | E50: 0 | F50: =IF(D50=0,'App.2-CC_MIFRS_DepExp_2012'!K50,+'App.2-CC_MIFRS_DepExp_2012'!K50+((C50*0.5)/D50)) -> 0 | H50: 0
A51: 1995 | B51: Contributions & Grants | E51: 0 | F51: =IF(D51=0,'App.2-CC_MIFRS_DepExp_2012'!K51,+'App.2-CC_MIFRS_DepExp_2012'!K51+((C51*0.5)/D51)) -> 0 | H51: 0
A52: etc. | E52: 0 | F52: =IF(D52=0,'App.2-CC_MIFRS_DepExp_2012'!K52,+'App.2-CC_MIFRS_DepExp_2012'!K52+((C52*0.5)/D52)) -> 0 | H52: 0
E53: 0 | F53: =IF(D53=0,'App.2-CC_MIFRS_DepExp_2012'!K53,+'App.2-CC_MIFRS_DepExp_2012'!K53+((C53*0.5)/D53)) -> 0 | H53: 0
B54: Total | C54: =SUM(C16:C53) -> 0 | F54: =SUM(F16:F53) -> 0 | G54: =SUM(G16:G53) -> 0 | H54: =SUM(H16:H53) -> 0
B55: Depreciation expense adjustment resulting from amortization of Account 1575 | F55: 0
B56: Total Depreciation expense to be included in the test year revenue requirement | F56: =+F54+F55 -> 0
A57: Notes:
A58: 1 | B58: Board policy of the "half-year" rule - the applicant must ensure that additions in the year attract a half-year depreciation expense in the first year. Deviations from this standard practice must be supported in the application.
A59: 2 | B59: The applicant must provide an explanation of material variances in evidence
A61: General: | B61: Applicants must provide a breakdown of depreciation and amortization expense in the above format for all relevant accounts. Asset Retirement Obligations (AROs), depreciation and accretion expense should be disclosed separately consistent with the Notes of historical Audited Financial Statements.

Sheet App.2-CE_CGAAP_DepExp_2011
K1: File Number: | L1: EB-2012-0109
K2: Exhibit:
K3: Tab:
K4: Schedule:
K5: Page: | L5: 12
K7: Date: | L7: July 17,2013
A9: Appendix 2-CE
A10: Depreciation and Amortization Expense
A11: Assumes the applicant adopted IFRS for financial reporting purposes January 1, 2013
C12: Year | D12: 2011 | E12: CGAAP
A14: Account | B14: Description | C14: Opening Regulatory Gross PP&E as at Jan 1, 2011 | D14: Less Fully Depreciated | E14: Net for Depreciation | F14: Additions | G14: Total for Depreciation | H14: Years | I14: Depreciation Rate | J14: 2011 Depreciation Expense | K14: 2011 Depreciation Expense per Appendix 2-B Fixed Assets, Column K (l) | L14: Variance 2
C15: (a) | D15: (b) | E15: (c) | F15: (d) | G15: (e) = (c) + ½ x (d) 1 | H15: (f) | I15: (g) = 1 / (f) | J15: (h) = (e) / (f) | L15: (m) = (h) - (l)
A16: 1611 | B16: Computer Software (Formally known as Account 1925) | C16: 0 | E16: =C16-D16 -> 0 | F16: 0 | G16: =E16+0.5*F16 -> 0 | I16: =IF(H16=0,"",1/H16) ->  | J16: =IF(H16=0,0,G16/H16) -> 0 | K16: 0 | L16: =IF(ISERROR(+J16-K16), "", +J16-K16) -> 0
A17: 1612 | B17: Land Rights (Formally known as Account 1906) | C17: 0 | E17: =C17-D17 -> 0 | F17: 0 | G17: =E17+0.5*F17 -> 0 | J17: 0 | K17: 0 | L17: =IF(ISERROR(+J17-K17), "", +J17-K17) -> 0
A18: 1805 | B18: Land | C18: 181960.63 | E18: 181960.63 | F18: 0 | G18: 181960.63 | J18: 0 | K18: 0 | L18: 0
A19: 1806 | B19: Land Rights | C19: 5968.42 | F19: 0 | K19: 0
A20: 1808 | B20: Buildings | C20: 1163731.71 | E20: 1163731.71 | F20: 0 | G20: 1163731.71 | H20: 50 | I20: 0.02 | J20: 23274.6342 | K20: 23274 | L20: 0.6342
A21: 1810 | B21: Leasehold Improvements | C21: 0 | E21: 0 | F21: 0 | G21: 0 | J21: 0 | K21: 0 | L21: 0
A22: 1815 | B22: Transformer Station Equipment >50 kV | C22: 4469541.3 | E22: 4469541.3 | F22: 38370.27 | G22: 4488726.435 | H22: 40 | I22: 0.025 | J22: 112218.1609 | K22: 112708.27 | L22: -490.109125
A23: 1820 | B23: Distribution Station Equipment <50 kV | C23: 74426.57 | E23: 74426.57 | F23: 0 | G23: 74426.57 | H23: 30 | I23: 0.03333333333 | J23: 2480.885667 | K23: 2481 | L23: -0.1143333333
A24: 1825 | B24: Storage Battery Equipment | C24: 0 | E24: 0 | F24: 0 | G24: 0 | J24: 0 | K24: 0 | L24: 0
A25: 1830 | B25: Poles, Towers & Fixtures | C25: 15293731.41 | E25: 15293731.41 | F25: 680278.43 | G25: 15633870.62 | H25: 25 | I25: 0.04 | J25: 625354.825 | K25: 638939.43 | L25: -13584.605
A26: 1835 | B26: Overhead Conductors & Devices | C26: 11460981.29 | E26: 11460981.29 | F26: 655233.47 | G26: 11788598.03 | H26: 25 | I26: 0.04 | J26: 471543.921 | K26: 484656.47 | L26: -13112.549
A27: 1840 | B27: Underground Conduit | C27: 12599180.64 | E27: 12599180.64 | F27: 686868.63 | G27: 12942614.95 | H27: 25 | I27: 0.04 | J27: 517704.5982 | K27: 531436.63 | L27: -13732.0318
A28: 1845 | B28: Underground Conductors & Devices | C28: 16270666.2 | E28: 16270666.2 | F28: 1145510.1 | G28: 16843421.25 | H28: 25 | I28: 0.04 | J28: 673736.85 | K28: 696655.1 | L28: -22918.25
A29: 1850 | B29: Line Transformers | C29: 16554086.34 | E29: 16554086.34 | F29: 478371.85 | G29: 16793272.27 | H29: 25 | I29: 0.04 | J29: 671730.8906 | K29: 681294.85 | L29: -9563.9594
A30: 1855 | B30: Services (Overhead & Underground) | C30: 1077422.88 | E30: 1077422.88 | F30: 191940.74 | G30: 1173393.25 | H30: 25 | I30: 0.04 | J30: 46935.73 | K30: 50765.74 | L30: -3830.01
A31: 1860 | B31: Meters | C31: 8733121.28 | E31: 8733121.28 | F31: 411891.78 | G31: 8939067.17 | H31: 25 | I31: =IF(H31=0,"",1/H31) -> 0.04 | J31: =IF(H31=0,0,G31/H31) -> 357562.6868 | K31: 629086.32 | L31: -271523.6332
A32: 1860 | B32: Meters (Smart Meters) | C32: 0 | E32: 0 | F32: 0 | G32: 0 | J32: 0 | K32: 0 | L32: 0
A33: 1905 | B33: Land | C33: 0 | E33: 0 | F33: 0 | G33: 0 | J33: 0 | K33: 0 | L33: 0
A34: 1908 | B34: Buildings & Fixtures | C34: 0 | E34: 0 | F34: 0 | G34: 0 | J34: 0 | K34: 0 | L34: 0
A35: 1910 | B35: Leasehold Improvements | C35: 0 | E35: 0 | F35: 0 | G35: 0 | J35: 0 | K35: 0 | L35: 0
A36: 1915 | B36: Office Furniture & Equipment (10 years) | C36: 0 | E36: 0 | F36: 0 | G36: 0 | J36: 0 | K36: 0 | L36: 0
A37: 1915 | B37: Office Furniture & Equipment (5 years) | C37: 0 | E37: 0 | F37: 0 | G37: 0 | J37: 0 | K37: 0 | L37: 0
A38: 1920 | B38: Computer Equipment - Hardware | C38: 0 | E38: 0 | F38: 0 | G38: 0 | J38: 0 | K38: 0 | L38: 0
A39: 1920 | B39: Computer Equip.-Hardware(Post Mar. 22/04) | C39: 0 | E39: 0 | F39: 0 | G39: 0 | J39: 0 | K39: 0 | L39: 0
A40: 1920 | B40: Computer Equip.-Hardware(Post Mar. 19/07) | C40: 0 | E40: 0 | F40: 0 | G40: 0 | J40: 0 | K40: 0 | L40: 0
A41: 1925 | B41: Computer Software | C41: 196386.06 | E41: 196386.06 | F41: 238942.91 | G41: 315857.515 | H41: 5 | I41: 0.2 | J41: 63171.503 | K41: 87063.91 | L41: -23892.407
A42: 1930 | B42: Transportation Equipment | C42: 2723343.94 | D42: 705917 | E42: 2017426.94 | F42: 309767 | G42: 2172310.44 | H42: 8 | I42: 0.125 | J42: 271538.805 | K42: 271416 | L42: 122.805
A43: 1935 | B43: Stores Equipment | C43: 0 | E43: 0 | F43: 0 | G43: 0 | J43: 0 | K43: 0 | L43: 0
A44: 1940 | B44: Tools, Shop & Garage Equipment | C44: 193313.02 | D44: 54401 | E44: 138912.02 | F44: 1380 | G44: 139602.02 | H44: 10 | I44: 0.1 | J44: 13960.202 | K44: 14030 | L44: -69.798
A45: 1945 | B45: Measurement & Testing Equipment | C45: 0 | E45: 0 | F45: 0 | G45: 0 | J45: 0 | K45: 0 | L45: 0
A46: 1950 | B46: Power Operated Equipment | C46: 0 | E46: 0 | F46: 0 | G46: 0 | J46: 0 | K46: 0 | L46: 0
A47: 1955 | B47: Communications Equipment | C47: 1176.32 | D47: 1176.32 | E47: 0 | F47: 0 | G47: 0 | J47: 0 | K47: 0 | L47: 0
A48: 1955 | B48: Communication Equipment (Smart Meters) | C48: 0 | E48: 0 | F48: 0 | G48: 0 | J48: 0 | K48: 0 | L48: 0
A49: 1960 | B49: Miscellaneous Equipment | C49: 0 | E49: 0 | F49: 0 | G49: 0 | J49: 0 | K49: 0 | L49: 0
A50: 1970 | B50: Load Management Controls - Customer Premises | C50: 547972.38 | D50: 547972.38 | E50: =C50-D50 -> 0 | F50: 0 | G50: =E50+0.5*F50 -> 0 | J50: =IF(H50=0,0,G50/H50) -> 0 | K50: 0 | L50: =IF(ISERROR(+J50-K50), "", +J50-K50) -> 0
A51: 1975 | B51: Load Management Controls Utility Premises | C51: 0 | E51: 0 | F51: 0 | G51: 0 | J51: 0 | K51: 0 | L51: 0
A52: 1980 | B52: System Supervisor Equipment | C52: 652617.3 | E52: 652617.3 | F52: 7701.54 | G52: 656468.07 | H52: 15 | I52: 0.06666666667 | J52: 43764.538 | K52: 43981.54 | L52: -217.002
A53: 1985 | B53: Miscellaneous Fixed Assets | C53: 0 | E53: 0 | F53: 0 | G53: 0 | J53: 0 | K53: 0 | L53: 0
A54: 1995 | B54: Contributions & Grants | C54: -3586012.84 | E54: -3586012.84 | F54: -265560.28 | G54: -3718792.98 | H54: 25 | I54: 0.04 | J54: -148751.7192 | K54: -154073.28 | L54: 5321.5608
A55: 2040 | B55: Plant Held for Future Use | C55: 51815.84 | F55: 2940 | G55: 1470 | J55: 0 | K55: 0 | L55: 0
A56: 2055 | B56: Work in Progress | C56: 104107.49 | F56: -80098.32 | G56: -40049.16 | J56: 0 | K56: 0 | L56: 0
A57: etc. | E57: 0 | F57: 0 | G57: 0 | J57: 0 | L57: 0
E58: 0 | G58: 0 | J58: 0 | L58: 0
B59: Total | C59: =SUM(C16:C58) -> 88769538.18 | D59: =SUM(D16:D58) -> 1309466.7 | E59: =SUM(E16:E58) -> 87298179.73 | F59: =SUM(F16:F58) -> 4503538.12 | G59: =SUM(G16:G58) -> 89549948.79 | J59: =SUM(J16:J58) -> 3746226.511 | K59: =SUM(K16:K58) -> 4113715.98 | L59: =SUM(L16:L58) -> -367489.4689
C60: 0 | F60: 0 | K60: 0
A61: Notes:
A62: 1 | B62: Board policy of the "half-year" rule - the applicant must ensure that additions in the year attract a half-year depreciation expense in the first year. Deviations from this standard practice must be supported in the application.
A63: 2 | B63: The applicant must provide an explanation of material variances in evidence
A64: General: | B64: Applicants must provide a breakdown of depreciation and amortization expense in the above format for all relevant accounts. Asset Retirement Obligations (AROs), depreciation and accretion expense should be disclosed separately consistent with the Notes of historical Audited Financial Statements.

Sheet App.2-CF_CGAAP_DepExp_2012
K1: File Number: | L1: EB-2012-0109
K2: Exhibit:
K3: Tab:
K4: Schedule:
K5: Page: | L5: 13
K7: Date: | L7: July 17,2013
A9: Appendix 2-CF
A10: Depreciation and Amortization Expense
A11: Assumes the applicant adopted IFRS for financial reporting purposes January 1, 2013
C12: Year | D12: 2012 | E12: CGAAP
A14: Account | B14: Description | C14: Opening Regulatory Gross PP&E as at Jan 1, 2012 | D14: Less Fully Depreciated | E14: Net for Depreciation | F14: Additions | G14: Total for Depreciation | H14: Years | I14: Depreciation Rate | J14: 2012 Depreciation Expense | K14: 2012 Depreciation Expense per Appendix 2-B Fixed Assets, Column K (l) | L14: Variance 2
C15: (a) | D15: (b) | E15: (c) | F15: (d) | G15: (e) = (c) + ½ x (d) 1 | H15: (f) | I15: (g) = 1 / (f) | J15: (h) = (e) / (f) | L15: (m) = (h) - (l)
A16: 1611 | B16: Computer Software (Formally known as Account 1925) | C16: 435328.97 | E16: =C16-D16 -> 435328.97 | F16: 180900 | G16: =E16+0.5*F16 -> 525778.97 | H16: 5 | I16: =IF(H16=0,0,1/H16) -> 0.2 | J16: =IF(H16=0,0,G16/H16) -> 105155.794 | K16: 122545 | L16: =IF(ISERROR(+J16-K16), 0, +J16-K16) -> -17389.206
A17: 1612 | B17: Land Rights (Formally known as Account 1906) | C17: 5968.42 | E17: =C17-D17 -> 5968.42 | F17: 64700 | G17: =E17+0.5*F17 -> 38318.42 | H17: 50 | I17: 0.02 | J17: 766.3684 | K17: 7262 | L17: -6495.6316
A18: 1805 | B18: Land | C18: 181960.63 | E18: 181960.63 | F18: 0 | G18: 181960.63 | I18: 0 | J18: 0 | K18: 0 | L18: 0
A19: 1806 | B19: Land Rights | C19: 0 | F19: 0 | K19: 0
A20: 1808 | B20: Buildings | C20: 1163731.71 | E20: 1163731.71 | F20: 0 | G20: 1163731.71 | H20: 50 | I20: 0.02 | J20: 23274.6342 | K20: 23274 | L20: 0.6342
A21: 1810 | B21: Leasehold Improvements | C21: 0 | E21: 0 | F21: 0 | G21: 0 | I21: 0 | J21: 0 | K21: 0 | L21: 0
A22: 1815 | B22: Transformer Station Equipment >50 kV | C22: 4507911.57 | E22: 4507911.57 | F22: 0 | G22: 4507911.57 | H22: 40 | I22: 0.025 | J22: 112697.7892 | K22: 112698 | L22: -0.21075
A23: 1820 | B23: Distribution Station Equipment <50 kV | C23: 74426.57 | E23: 74426.57 | F23: 0 | G23: 74426.57 | H23: 30 | I23: 0.03333333333 | J23: 2480.885667 | K23: 2481 | L23: -0.1143333333
A24: 1825 | B24: Storage Battery Equipment | C24: 0 | E24: 0 | F24: 0 | G24: 0 | I24: 0 | J24: 0 | K24: 0 | L24: 0
A25: 1830 | B25: Poles, Towers & Fixtures | C25: 15974009.84 | E25: 15974009.84 | F25: 584500 | G25: 16266259.84 | H25: 25 | I25: 0.04 | J25: 650650.3936 | K25: 663581 | L25: -12930.6064
A26: 1835 | B26: Overhead Conductors & Devices | C26: 12116214.76 | E26: 12116214.76 | F26: 959300 | G26: 12595864.76 | H26: 25 | I26: 0.04 | J26: 503834.5904 | K26: 522660 | L26: -18825.4096
A27: 1840 | B27: Underground Conduit | C27: 13286049.27 | E27: 13286049.27 | F27: 519300 | G27: 13545699.27 | H27: 25 | I27: 0.04 | J27: 541827.9708 | K27: 552655 | L27: -10827.0292
A28: 1845 | B28: Underground Conductors & Devices | C28: 17416176.3 | E28: 17416176.3 | F28: 1876200 | G28: 18354276.3 | H28: 25 | I28: 0.04 | J28: 734171.052 | K28: 772213 | L28: -38041.948
A29: 1850 | B29: Line Transformers | C29: 17032458.19 | E29: 17032458.19 | F29: 796400 | G29: 17430658.19 | H29: 25 | I29: 0.04 | J29: 697226.3276 | K29: 713874 | L29: -16647.6724
A30: 1855 | B30: Services (Overhead & Underground) | C30: 1269363.62 | E30: 1269363.62 | F30: 135200 | G30: 1336963.62 | H30: 25 | I30: 0.04 | J30: 53478.5448 | K30: 55543 | L30: -2064.4552
A31: 1860 | B31: Meters | C31: 9145013.06 | E31: 9145013.06 | F31: 274471 | G31: 9282248.56 | H31: 25 | I31: 0.04 | J31: 371289.9424 | K31: 378890 | L31: -7600.0576
A32: 1860 | B32: Meters (Smart Meters) | C32: 0 | E32: 0 | F32: 0 | G32: 0 | I32: 0 | J32: 0 | K32: 0 | L32: 0
A33: 1905 | B33: Land | C33: 0 | E33: 0 | F33: 0 | G33: 0 | I33: 0 | J33: 0 | K33: 0 | L33: 0
A34: 1908 | B34: Buildings & Fixtures | C34: 0 | E34: 0 | F34: 0 | G34: 0 | I34: 0 | J34: 0 | K34: 0 | L34: 0
A35: 1910 | B35: Leasehold Improvements | C35: 0 | E35: 0 | F35: 0 | G35: 0 | I35: 0 | J35: 0 | K35: 0 | L35: 0
A36: 1915 | B36: Office Furniture & Equipment (10 years) | C36: 0 | E36: 0 | F36: 5000 | G36: 2500 | H36: 10 | I36: 0.1 | J36: 250 | K36: 500 | L36: -250
A37: 1915 | B37: Office Furniture & Equipment (5 years) | C37: 0 | E37: 0 | F37: 0 | G37: 0 | I37: 0 | J37: 0 | K37: 0 | L37: 0
A38: 1920 | B38: Computer Equipment - Hardware | C38: 0 | E38: 0 | F38: 1000 | G38: 500 | H38: 4 | I38: 0.25 | J38: 125 | K38: 200 | L38: -75
A39: 1920 | B39: Computer Equip.-Hardware(Post Mar. 22/04) | C39: 0 | E39: 0 | F39: 0 | G39: 0 | I39: 0 | J39: 0 | K39: 0 | L39: 0
A40: 1920 | B40: Computer Equip.-Hardware(Post Mar. 19/07) | C40: 0 | E40: 0 | F40: 0 | G40: 0 | I40: 0 | J40: 0 | K40: 0 | L40: 0
A41: 1925 | B41: Computer Software | C41: 0 | F41: 0 | K41: 0
A42: 1930 | B42: Transportation Equipment | C42: 3033110.94 | D42: 1300989 | E42: 1732121.94 | F42: 325000 | G42: 1894621.94 | H42: 8 | I42: 0.125 | J42: 236827.7425 | K42: 203065 | L42: 33762.7425
A43: 1935 | B43: Stores Equipment | C43: 0 | E43: 0 | F43: 0 | G43: 0 | I43: 0 | J43: 0 | K43: 0 | L43: 0
A44: 1940 | B44: Tools, Shop & Garage Equipment | C44: 140292.16 | E44: 140292.16 | F44: 25000 | G44: 152792.16 | H44: 10 | I44: 0.1 | J44: 15279.216 | K44: 14030 | L44: 1249.216
A45: 1945 | B45: Measurement & Testing Equipment | C45: 0 | E45: 0 | F45: 0 | G45: 0 | I45: 0 | J45: 0 | K45: 0 | L45: 0
A46: 1950 | B46: Power Operated Equipment | C46: 0 | E46: 0 | F46: 0 | G46: 0 | I46: 0 | J46: 0 | K46: 0 | L46: 0
A47: 1955 | B47: Communications Equipment | C47: 0 | E47: 0 | F47: 0 | G47: 0 | I47: 0 | J47: 0 | K47: 0 | L47: 0
A48: 1955 | B48: Communication Equipment (Smart Meters) | C48: 0 | E48: 0 | F48: 0 | G48: 0 | I48: 0 | J48: 0 | K48: 0 | L48: 0
A49: 1960 | B49: Miscellaneous Equipment | C49: 0 | E49: 0 | F49: 0 | G49: 0 | I49: 0 | J49: 0 | K49: 0 | L49: 0
A50: 1970 | B50: Load Management Controls - Customer Premises | C50: 0 | F50: 0 | K50: 0 | L50: 0
A51: 1975 | B51: Load Management Controls Utility Premises | C51: 0 | E51: 0 | F51: 0 | G51: 0 | I51: 0 | J51: 0 | K51: 0 | L51: 0
A52: 1980 | B52: System Supervisor Equipment | C52: 660318.84 | E52: 660318.84 | F52: 83000 | G52: 701818.84 | H52: 15 | I52: 0.06666666667 | J52: 46787.92267 | K52: 48869 | L52: -2081.077333
A53: 1985 | B53: Miscellaneous Fixed Assets | C53: 0 | E53: 0 | F53: 0 | G53: 0 | I53: 0 | J53: 0 | K53: 0 | L53: 0
A54: 1995 | B54: Contributions & Grants | C54: -3851573.12 | E54: -3851573.12 | F54: -623500 | G54: -4163323.12 | H54: 25 | I54: 0.04 | J54: -166532.9248 | K54: -154072.28 | L54: -12460.6448
A55: 2040 | B55: Plant Held for Future Use | C55: 54755.84 | F55: 0 | K55: 0
A56: 2055 | B56: Work in Progress | C56: 24009.17 | F56: 0 | K56: 0
F57: 0
A58: etc. | E58: 0 | F58: 0 | G58: 0 | I58: 0 | J58: 0 | L58: 0
E59: 0 | G59: 0 | I59: 0 | J59: 0 | L59: 0
B60: Total | C60: =SUM(C16:C59) -> 92669526.74 | D60: =SUM(D16:D59) -> 1300989 | E60: =SUM(E16:E59) -> 91289772.73 | F60: =SUM(F16:F59) -> 5206471 | G60: =SUM(G16:G59) -> 93893008.23 | J60: =SUM(J16:J59) -> 3929591.249 | K60: =SUM(K16:K59) -> 4040267.72 | L60: =SUM(L16:L59) -> -110676.4705
C61: 0 | F61: 0
A62: Notes:
A63: 1 | B63: Board policy of the "half-year" rule - the applicant must ensure that additions in the year attract a half-year depreciation expense in the first year. Deviations from this standard practice must be supported in the application.
A64: 2 | B64: The applicant must provide an explanation of material variances in evidence
A66: General: | B66: Applicants must provide a breakdown of depreciation and amortization expense in the above format for all relevant accounts. Asset Retirement Obligations (AROs), depreciation and accretion expense should be disclosed separately consistent with the Notes of historical Audited Financial Statements.

Sheet App.2-CG_MIFRS_DepExp_2013
N1: File Number: | O1: EB-2012-0109
N2: Exhibit:
N3: Tab:
N4: Schedule:
N5: Page: | O5: 14
A6: Used this tab for the 2013 "MIFRS" Depreciation calculation
A7: 2013 is reported under CGAAP but BPI is aligning useful | N7: Date: | O7: July 17,2013
A8: lives and componentization with MIFRS
A9: Appendix 2-CG
A10: Depreciation and Amortization Expense
A11: Assumes the applicant adopted IFRS for financial reporting purposes January 1, 2013
C12: Year | D12: 2013 | E12: MIFRS
A14: Account | B14: Description | C14: Opening NBV as at Jan 1, 2013 5 | D14: Additions | E14: Average Remaining Life of Opening NBV 4 | F14: Years (new additions only) 3 | G14: Depreciation Rate on New Additions | H14: Depreciation Expense on Opening NBV | I14: Depreciation Expense on Additions 1 | J14: 2013 Depreciation Expense | K14: 2013 Depreciation Expense per Appendix 2-B Fixed Assets, Column K (l) | L14: Variance 2 | M14: Depreciation Expense on 2013 Full Year Additions | N14: Less Depreciation Expense on Assets Fully Depreciated during the year (o) | O14: 2013 Full Year Depreciation 6
C15: (a) | D15: (d) | E15: (i) | F15: (f) | G15: (g) = 1 / (f) | H15: (j) = (a) / (i) | I15: (h)=((d)*0.5)/(f) | J15: (k) = (j) + (h) | L15: (m) = (k) - (l) | M15: (n)=((d))/(f) | O15: (p) = (j) + (n) - (o)
A16: 1611 | B16: Computer Software (Formally known as Account 1925) | C16: 296469 | D16: 310000 | E16: 5 | F16: 5 | G16: =IF(F16=0,0,1/F16) -> 0.2 | H16: =IF(E16=0,0,+C16/E16) -> 59293.8 | I16: =IF(F16=0,0,+(D16*0.5)/F16) -> 31000 | J16: =IF(ISERROR(+H16+I16), 0, +H16+I16) -> 90293.8 | K16: 121073.624 | L16: =IF(ISERROR(+J16-K16), 0, +J16-K16) -> -30779.824 | M16: =IF(F16=0,0,+(D16)/F16) -> 62000 | O16: =IF(ISERROR(+M16+H16-N16), 0, +M16+H16-N16) -> 121293.8
A17: 1612 | B17: Land Rights (Formally known as Account 1906) | C17: 63406.42 | D17: 0 | E17: 50 | F17: 50 | G17: 0.02 | H17: 1268.1284 | I17: 0 | J17: 1268.1284 | K17: 1294 | L17: -25.8716 | M17: 0 | O17: =IF(ISERROR(+M17+H17-N17), 0, +M17+H17-N17) -> 1268.1284
A18: 1805 | B18: Land | C18: 181960.63 | D18: 0 | F18: 0 | G18: 0 | H18: 0 | I18: 0 | J18: 0 | K18: 0 | L18: 0 | M18: 0 | O18: 0
A19: 1806 | B19: Land Rights | C19: 0 | D19: 0 | F19: 0 | K19: 0 | L19: =IF(ISERROR(+J19-K19), 0, +J19-K19) -> 0 | M19: =IF(F19=0,0,+(D19)/F19) -> 0
A20: 1808 | B20: Buildings | C20: 969199.81 | D20: 0 | E20: 36.64 | G20: 0 | H20: 26451.95988 | I20: 0 | J20: 26451.95988 | K20: 27086 | L20: -634.0401201 | M20: 0 | O20: 26451.95988
A21: 1810 | B21: Leasehold Improvements | C21: 0 | D21: 0 | G21: 0 | H21: 0 | I21: 0 | J21: 0 | K21: 0 | L21: 0 | M21: 0 | O21: 0
A22: 1815 | B22: Transformer Station Equipment >50 kV | C22: 3614381 | D22: 0 | E22: 33.32 | G22: 0 | H22: 108474.8199 | I22: 0 | J22: 108474.8199 | K22: 104104 | L22: 4370.819928 | M22: 0 | O22: 108474.8199
A23: 1820 | B23: Distribution Station Equipment <50 kV | C23: 44402.06 | D23: 0 | E23: 9.63 | G23: 0 | H23: 4610.805815 | I23: 0 | J23: 4610.805815 | K23: 1560 | L23: 3050.805815 | M23: 0 | O23: 4610.805815
A24: 1825 | B24: Storage Battery Equipment | C24: 0 | D24: 0 | G24: 0 | H24: 0 | I24: 0 | J24: 0 | K24: 0 | L24: 0 | M24: 0 | O24: 0
A25: 1830 | B25: Poles, Towers & Fixtures | C25: 10132752 | D25: 215000 | G25: 0 | H25: 0 | I25: 0 | J25: 0 | K25: 374253 | L25: -374253 | M25: 0 | O25: 0
A26: 1835 | B26: Overhead Conductors & Devices | C26: 8684530 | D26: 958000 | G26: 0 | H26: 0 | I26: 0 | J26: 0 | K26: 243122 | L26: -243122 | M26: 0 | O26: 0
A27: 1840 | B27: Underground Conduit | C27: 8479323 | D27: 35000 | G27: 0 | H27: 0 | I27: 0 | J27: 0 | K27: 233392 | L27: -233392 | M27: 0 | O27: 0
A28: 1845 | B28: Underground Conductors & Devices | C28: 14475705.6 | D28: 856100 | G28: 0 | H28: 0 | I28: 0 | J28: 0 | K28: 640974 | L28: -640974 | M28: 0 | O28: 0
A29: 1850 | B29: Line Transformers | C29: 11444812 | D29: 502000 | G29: 0 | H29: 0 | I29: 0 | J29: 0 | K29: 447040 | L29: -447040 | M29: 0 | O29: 0
A30: 1855 | B30: Services (Overhead & Underground) | C30: 1140823 | D30: 110000 | G30: 0 | H30: 0 | I30: 0 | J30: 0 | K30: 56061 | L30: -56061 | M30: 0 | O30: 0
A31: 1860 | B31: Meters | C31: 8086389.33 | D31: 205000 | G31: 0 | H31: 0 | I31: 0 | J31: 0 | K31: 783165.3807 | L31: -783165.3807 | M31: 0 | O31: 0
A32: 1860 | B32: Meters (Smart Meters) | C32: 0 | D32: 0 | G32: 0 | H32: 0 | I32: 0 | J32: 0 | K32: 0 | L32: 0 | M32: 0 | O32: 0
A33: 1905 | B33: Land | C33: 0 | D33: 0 | G33: 0 | H33: 0 | I33: 0 | J33: 0 | K33: 0 | L33: 0 | M33: 0 | O33: 0
A34: 1908 | B34: Buildings & Fixtures | C34: 0 | D34: 0 | G34: 0 | H34: 0 | I34: 0 | J34: 0 | K34: 0 | L34: 0 | M34: 0 | O34: 0
A35: 1910 | B35: Leasehold Improvements | C35: 0 | D35: 0 | G35: 0 | H35: 0 | I35: 0 | J35: 0 | K35: 0 | L35: 0 | M35: 0 | O35: 0
A36: 1915 | B36: Office Furniture & Equipment (10 years) | C36: 4500 | D36: 0 | G36: 0 | H36: 0 | I36: 0 | J36: 0 | K36: 500 | L36: -500 | M36: 0 | O36: 0
A37: 1915 | B37: Office Furniture & Equipment (5 years) | C37: 0 | D37: 0 | G37: 0 | H37: 0 | I37: 0 | J37: 0 | K37: 0 | L37: 0 | M37: 0 | O37: 0
A38: 1920 | B38: Computer Equipment - Hardware | C38: 42739 | D38: 77500 | G38: 0 | H38: 0 | I38: 0 | J38: 0 | K38: 18325.732 | L38: -18325.732 | M38: 0 | O38: 0
A39: 1920 | B39: Computer Equip.-Hardware(Post Mar. 22/04) | C39: 0 | D39: 0 | G39: 0 | H39: 0 | I39: 0 | J39: 0 | K39: 0 | L39: 0 | M39: 0 | O39: 0
A40: 1920 | B40: Computer Equip.-Hardware(Post Mar. 19/07) | C40: 0 | D40: 0 | G40: 0 | H40: 0 | I40: 0 | J40: 0 | K40: 0 | L40: 0 | M40: 0 | O40: 0
A41: 1925 | B41: Computer Software | C41: 0 | D41: 0 | G41: =IF(F41=0,0,1/F41) -> 0 | H41: =IF(E41=0,0,+C41/E41) -> 0 | I41: =IF(F41=0,0,+(D41*0.5)/F41) -> 0 | K41: 0 | L41: =IF(ISERROR(+J41-K41), 0, +J41-K41) -> 0 | M41: =IF(F41=0,0,+(D41)/F41) -> 0 | O41: 0
A42: 1930 | B42: Transportation Equipment | C42: 1012938 | D42: 200000 | G42: 0 | H42: 0 | I42: 0 | J42: 0 | K42: 161947 | L42: -161947 | M42: 0 | O42: 0
A43: 1935 | B43: Stores Equipment | C43: 0 | D43: 0 | G43: 0 | H43: 0 | I43: 0 | J43: 0 | K43: 0 | L43: 0 | M43: 0 | O43: 0
A44: 1940 | B44: Tools, Shop & Garage Equipment | C44: 91987 | D44: 25000 | G44: 0 | H44: 0 | I44: 0 | J44: 0 | K44: 17781 | L44: -17781 | M44: 0 | O44: 0
A45: 1945 | B45: Measurement & Testing Equipment | C45: 0 | D45: 0 | G45: 0 | H45: 0 | I45: 0 | J45: 0 | K45: 0 | L45: 0 | M45: 0 | O45: 0
A46: 1950 | B46: Power Operated Equipment | C46: 0 | D46: 0 | G46: 0 | H46: 0 | I46: 0 | J46: 0 | K46: 0 | L46: 0 | M46: 0 | O46: 0
A47: 1955 | B47: Communications Equipment | C47: 0 | D47: 0 | G47: 0 | H47: 0 | I47: 0 | J47: 0 | K47: 0 | L47: 0 | M47: 0 | O47: 0
A48: 1955 | B48: Communication Equipment (Smart Meters) | C48: 0 | D48: 0 | G48: 0 | H48: 0 | I48: 0 | J48: 0 | K48: 0 | L48: 0 | M48: 0 | O48: 0
A49: 1960 | B49: Miscellaneous Equipment | C49: 0 | D49: 0 | G49: 0 | H49: 0 | I49: 0 | J49: 0 | K49: 0 | L49: 0 | M49: 0 | O49: 0
A50: 1970 | B50: Load Management Controls - Customer Premises | C50: 0 | D50: 0 | G50: =IF(F50=0,0,1/F50) -> 0 | H50: =IF(E50=0,0,+C50/E50) -> 0 | I50: =IF(F50=0,0,+(D50*0.5)/F50) -> 0 | K50: 0 | L50: =IF(ISERROR(+J50-K50), 0, +J50-K50) -> 0 | M50: =IF(F50=0,0,+(D50)/F50) -> 0 | O50: 0
A51: 1975 | B51: Load Management Controls Utility Premises | C51: 0 | D51: 0 | G51: 0 | H51: 0 | I51: 0 | J51: 0 | K51: 0 | L51: 0 | M51: 0 | O51: 0
A52: 1980 | B52: System Supervisor Equipment | C52: 544225.71 | D52: 150000 | G52: 0 | H52: 0 | I52: 0 | J52: 0 | K52: 31605 | L52: -31605 | M52: 0 | O52: 0
A53: 1985 | B53: Miscellaneous Fixed Assets | C53: 0 | D53: 0 | G53: 0 | H53: 0 | I53: 0 | J53: 0 | K53: 0 | L53: 0 | M53: 0 | O53: 0
A54: 1995 | B54: Contributions & Grants | C54: -3636217.72 | D54: -203440 | G54: 0 | H54: 0 | I54: 0 | J54: 0 | K54: -105753 | L54: 105753 | M54: 0 | O54: 0
A55: 2040 | B55: Plant Held for Future Use | C55: -0.16 | D55: 0 | G55: =IF(F55=0,0,1/F55) -> 0 | H55: =IF(E55=0,0,+C55/E55) -> 0 | I55: =IF(F55=0,0,+(D55*0.5)/F55) -> 0 | J55: =IF(ISERROR(+H55+I55), 0, +H55+I55) -> 0 | K55: 0 | L55: =IF(ISERROR(+J55-K55), 0, +J55-K55) -> 0 | M55: =IF(F55=0,0,+(D55)/F55) -> 0 | O55: 0
A56: 2055 | B56: Work in Progress | C56: 24009.17 | D56: 0 | G56: =IF(F56=0,0,1/F56) -> 0 | H56: =IF(E56=0,0,+C56/E56) -> 0 | I56: =IF(F56=0,0,+(D56*0.5)/F56) -> 0 | J56: =IF(ISERROR(+H56+I56), 0, +H56+I56) -> 0 | K56: 0 | L56: =IF(ISERROR(+J56-K56), 0, +J56-K56) -> 0 | M56: =IF(F56=0,0,+(D56)/F56) -> 0 | O56: 0
A57: etc. | G57: 0 | H57: 0 | I57: 0 | J57: 0 | L57: 0 | M57: 0 | O57: 0
G58: 0 | H58: 0 | I58: 0 | J58: 0 | L58: 0 | M58: 0 | O58: 0
B59: Total | C59: =SUM(C16:C58) -> 65698334.85 | D59: =SUM(D16:D58) -> 3440160 | H59: =SUM(H16:H58) -> 200099.514 | I59: 31000 | J59: 231099.514 | K59: 3157530.737 | L59: -2926431.223 | M59: 62000 | N59: =SUM(N16:N58) -> 0 | O59: 262099.514
C60: 0 | D60: 0 | K60: 0
A61: Notes:
A63: 1 | B63: Board policy of the "half-year" rule - the applicant must ensure that additions in the year attract a half-year depreciation expense in the first year. Deviations from this standard practice must be supported in the application.
A64: 2 | B64: The applicant must provide an explanation of material variances in evidence
A65: 3 | B65: The applicant should ensure that the years for new additions of assets are the asset useful lives determined by management in accordance with IFRS.
A66: 4 | B66: A recalculation should be performed to determine the average remaining life of opening balance of assets (i.e. excluding 2012 additions) under IFRS. For example, Asset A had a useful life of 20 years under CGAAP. On January 1, 2012, the date of transition, Asset A was 3 years depreciated. As a result, Asset A would have a remaining service life of 17 years (20 years less 3 years) under CGAAP as of January 1, 2012. Due to the transition to IFRS, management re-assessed the asset useful lives under IFRS principles and concluded that the revised useful life of Asset A is now 30 years. Therefore, the average remaining useful life of opening balance of Asset A is determined to be 27 years (30 years less 3 years) under IFRS as of January 1, 2012.
A67: 5 | B67: NBV must exclude assets still on the books but which have been fully amortized or depreciated.
A68: 6 | B68: This column refers to the calculated full year depreciation but excludes the depreciation expense on assets fully depreciated during the year. This column is used for the purpose of calculating depreciation expense in the following year on the next worksheet.
A70: General: | B70: Applicants must provide a breakdown of depreciation and amortization expense in the above format for all relevant accounts. Asset Retirement Obligations (AROs), depreciation and accretion expense should be disclosed separately consistent with the Notes of historical Audited Financial Statements.

Sheet App.2-CH_MIFRS_DepExp_2013
I1: File Number: | J1: EB-2012-0109
I2: Exhibit:
I3: Tab:
I4: Schedule:
I5: Page: | J5: 15
I7: Date: | J7: July 17,2013
A9: Appendix 2-CH
A10: Depreciation and Amortization Expense
A11: Assumes the applicant adopted IFRS for financial reporting purposes January 1, 2013
C12: Year | D12: 2013 | E12: MIFRS
A14: Account | B14: Description | C14: Additions | D14: Years (new additions only) | E14: Depreciation Rate on New Additions | F14: 2013 Depreciation Expense 1 | G14: 2013 Depreciation Expense per Appendix 2-B Fixed Assets, Column K (l) | H14: Variance 2
C15: (d) | D15: (f) | E15: (g) = 1 / (f) | F15: (h)=2012 Full Year Depreciation + ((d)*0.5)/(f) | H15: (m) = (h) - (l)
A16: 1611 | B16: Computer Software (Formally known as Account 1925) | E16: =IF(D16=0,0,1/D16) -> 0 | F16: 121293.8 | H16: =IF(ISERROR(+F16-G16), 0, +F16-G16) -> 121293.8
A17: 1612 | B17: Land Rights (Formally known as Account 1906) | E17: 0 | F17: 1268.1284 | H17: 1268.1284
A18: 1805 | B18: Land | E18: 0 | F18: 0 | H18: 0
A19: 1808 | B19: Buildings | E19: 0 | F19: 26451.95988 | H19: 26451.95988
A20: 1810 | B20: Leasehold Improvements | E20: 0 | F20: 0 | H20: 0
A21: 1815 | B21: Transformer Station Equipment >50 kV | E21: 0 | F21: 108474.8199 | H21: 108474.8199
A22: 1820 | B22: Distribution Station Equipment <50 kV | E22: 0 | F22: 4610.805815 | H22: 4610.805815
A23: 1825 | B23: Storage Battery Equipment | E23: 0 | F23: 0 | H23: 0
A24: 1830 | B24: Poles, Towers & Fixtures | E24: 0 | F24: 0 | H24: 0
A25: 1835 | B25: Overhead Conductors & Devices | E25: 0 | F25: 0 | H25: 0
A26: 1840 | B26: Underground Conduit | E26: 0 | F26: 0 | H26: 0
A27: 1845 | B27: Underground Conductors & Devices | E27: 0 | F27: 0 | H27: 0
A28: 1850 | B28: Line Transformers | E28: 0 | F28: 0 | H28: 0
A29: 1855 | B29: Services (Overhead & Underground) | E29: 0 | F29: 0 | H29: 0
A30: 1860 | B30: Meters | E30: 0 | F30: 0 | H30: 0
A31: 1860 | B31: Meters (Smart Meters) | E31: 0 | F31: 0 | H31: 0
A32: 1905 | B32: Land | E32: 0 | F32: 0 | H32: 0
A33: 1908 | B33: Buildings & Fixtures | E33: 0 | F33: 0 | H33: 0
A34: 1910 | B34: Leasehold Improvements | E34: 0 | F34: 0 | H34: 0
A35: 1915 | B35: Office Furniture & Equipment (10 years) | E35: 0 | F35: 0 | H35: 0
A36: 1915 | B36: Office Furniture & Equipment (5 years) | E36: 0 | F36: 0 | H36: 0
A37: 1920 | B37: Computer Equipment - Hardware | E37: 0 | F37: 0 | H37: 0
A38: 1920 | B38: Computer Equip.-Hardware(Post Mar. 22/04) | E38: 0 | F38: 0 | H38: 0
A39: 1920 | B39: Computer Equip.-Hardware(Post Mar. 19/07) | E39: 0 | F39: 0 | H39: 0
A40: 1930 | B40: Transportation Equipment | E40: 0 | F40: 0 | H40: 0
A41: 1935 | B41: Stores Equipment | E41: 0 | F41: 0 | H41: 0
A42: 1940 | B42: Tools, Shop & Garage Equipment | E42: 0 | F42: 0 | H42: 0
A43: 1945 | B43: Measurement & Testing Equipment | E43: 0 | F43: 0 | H43: 0
A44: 1950 | B44: Power Operated Equipment | E44: 0 | F44: 0 | H44: 0
A45: 1955 | B45: Communications Equipment | E45: 0 | F45: 0 | H45: 0
A46: 1955 | B46: Communication Equipment (Smart Meters) | E46: 0 | F46: 0 | H46: 0
A47: 1960 | B47: Miscellaneous Equipment | E47: 0 | F47: 0 | H47: 0
A48: 1975 | B48: Load Management Controls Utility Premises | E48: 0 | F48: 0 | H48: 0
A49: 1980 | B49: System Supervisor Equipment | E49: 0 | F49: 0 | H49: 0
A50: 1985 | B50: Miscellaneous Fixed Assets | E50: 0 | F50: 0 | H50: 0
A51: 1995 | B51: Contributions & Grants | E51: 0 | F51: 0 | H51: 0
A52: etc. | E52: 0 | F52: 0 | H52: 0
E53: 0 | F53: 0 | H53: 0
B54: Total | C54: =SUM(C16:C53) -> 0 | F54: =SUM(F16:F53) -> 262099.514 | G54: =SUM(G16:G53) -> 0 | H54: =SUM(H16:H53) -> 262099.514
B55: Depreciation expense adjustment resulting from amortization of Account 1575 | F55: 0
B56: Total Depreciation expense to be included in the test year revenue requirement | F56: =+F55+F54 -> 262099.514
A58: Notes:
A59: 1 | B59: Board policy of the "half-year" rule - the applicant must ensure that additions in the year attract a half-year depreciation expense in the first year. Deviations from this standard practice must be supported in the application.
A60: 2 | B60: The applicant must provide an explanation of material variances in evidence
A63: General: | B63: Applicants must provide a breakdown of depreciation and amortization expense in the above format for all relevant accounts. Asset Retirement Obligations (AROs), depreciation and accretion expense should be disclosed separately consistent with the Notes of historical Audited Financial Statements.

Sheet App.2-CI_AltAccStd_DepExp
K1: File Number: | L1: ='LDC Info'!$E$18 -> EB-2012-0109
K2: Exhibit:
K3: Tab:
K4: Schedule:
K5: Page: | L5: 16
K7: Date:
A9: Appendix 2-CI
A10: Depreciation and Amortization Expense
A11: Assumes the applicant adopted an alternate accounting standard other than IFRS for financial reporting purposes. For applicants adopting an Alternate Accounting Standard for financial reporting purposes January 1, 2012, applicants must complete 4 versions of the table below (2011 CGAAP, 2011 Alternate Accounting Standard, 2012 Alternate Accounting Standard and 2013 Alternate Accounting Standard). For applicants adopting an Alternate Accounting Standard for financial reporting purposes January 1, 2013, applicants must complete 4 versions of the table below (2011 CGAAP, 2012 CGAAP, 2012 Alternate Accounting Standard and 2013 Alternate Accounting Standard).
B12: Year | E12: Accounting Standard
A14: Account | B14: Description | C14: Opening Regulatory Gross PP&E | D14: Less Fully Depreciated | E14: Net for Depreciation | F14: Additions | G14: Total for Depreciation | H14: Years | I14: Depreciation Rate | J14: Depreciation Expense | K14: Depreciation Expense per Appendix 2-B Fixed Assets, Column K (l) | L14: Variance 2
C15: (a) | D15: (b) | E15: (c) | F15: (d) | G15: (e) = (c) + ½ x (d) 1 | H15: (f) | I15: (g) = 1 / (f) | J15: (h) = (e) / (f) | L15: (m) = (h) - (l)
A16: 1611 | B16: Computer Software (Formally known as Account 1925) | E16: =C16-D16 -> 0 | G16: =E16+0.5*F16 -> 0 | I16: =IF(H16=0,0,1/H16) -> 0 | J16: =IF(H16=0,0,G16/H16) -> 0 | L16: =IF(ISERROR(+J16-K16), 0, +J16-K16) -> 0
A17: 1612 | B17: Land Rights (Formally known as Account 1906) | E17: =C17-D17 -> 0 | G17: =E17+0.5*F17 -> 0 | I17: 0 | J17: 0 | L17: 0
A18: 1805 | B18: Land | E18: 0 | G18: 0 | I18: 0 | J18: 0 | L18: 0
A19: 1808 | B19: Buildings | E19: 0 | G19: 0 | I19: 0 | J19: 0 | L19: 0
A20: 1810 | B20: Leasehold Improvements | E20: 0 | G20: 0 | I20: 0 | J20: 0 | L20: 0
A21: 1815 | B21: Transformer Station Equipment >50 kV | E21: 0 | G21: 0 | I21: 0 | J21: 0 | L21: 0
A22: 1820 | B22: Distribution Station Equipment <50 kV | E22: 0 | G22: 0 | I22: 0 | J22: 0 | L22: 0
A23: 1825 | B23: Storage Battery Equipment | E23: 0 | G23: 0 | I23: 0 | J23: 0 | L23: 0
A24: 1830 | B24: Poles, Towers & Fixtures | E24: 0 | G24: 0 | I24: 0 | J24: 0 | L24: 0
A25: 1835 | B25: Overhead Conductors & Devices | E25: 0 | G25: 0 | I25: 0 | J25: 0 | L25: 0
A26: 1840 | B26: Underground Conduit | E26: 0 | G26: 0 | I26: 0 | J26: 0 | L26: 0
A27: 1845 | B27: Underground Conductors & Devices | E27: 0 | G27: 0 | I27: 0 | J27: 0 | L27: 0
A28: 1850 | B28: Line Transformers | E28: 0 | G28: 0 | I28: 0 | J28: 0 | L28: 0
A29: 1855 | B29: Services (Overhead & Underground) | E29: 0 | G29: 0 | I29: 0 | J29: 0 | L29: 0
A30: 1860 | B30: Meters | E30: 0 | G30: 0 | I30: 0 | J30: 0 | L30: 0
A31: 1860 | B31: Meters (Smart Meters) | E31: 0 | G31: 0 | I31: 0 | J31: 0 | L31: 0
A32: 1905 | B32: Land | E32: 0 | G32: 0 | I32: 0 | J32: 0 | L32: 0
A33: 1908 | B33: Buildings & Fixtures | E33: 0 | G33: 0 | I33: 0 | J33: 0 | L33: 0
A34: 1910 | B34: Leasehold Improvements | E34: 0 | G34: 0 | I34: 0 | J34: 0 | L34: 0
A35: 1915 | B35: Office Furniture & Equipment (10 years) | E35: 0 | G35: 0 | I35: 0 | J35: 0 | L35: 0
A36: 1915 | B36: Office Furniture & Equipment (5 years) | E36: 0 | G36: 0 | I36: 0 | J36: 0 | L36: 0
A37: 1920 | B37: Computer Equipment - Hardware | E37: 0 | G37: 0 | I37: 0 | J37: 0 | L37: 0
A38: 1920 | B38: Computer Equip.-Hardware(Post Mar. 22/04) | E38: 0 | G38: 0 | I38: 0 | J38: 0 | L38: 0
A39: 1920 | B39: Computer Equip.-Hardware(Post Mar. 19/07) | E39: 0 | G39: 0 | I39: 0 | J39: 0 | L39: 0
A40: 1930 | B40: Transportation Equipment | E40: 0 | G40: 0 | I40: 0 | J40: 0 | L40: 0
A41: 1935 | B41: Stores Equipment | E41: 0 | G41: 0 | I41: 0 | J41: 0 | L41: 0
A42: 1940 | B42: Tools, Shop & Garage Equipment | E42: 0 | G42: 0 | I42: 0 | J42: 0 | L42: 0
A43: 1945 | B43: Measurement & Testing Equipment | E43: 0 | G43: 0 | I43: 0 | J43: 0 | L43: 0
A44: 1950 | B44: Power Operated Equipment | E44: 0 | G44: 0 | I44: 0 | J44: 0 | L44: 0
A45: 1955 | B45: Communications Equipment | E45: 0 | G45: 0 | I45: 0 | J45: 0 | L45: 0
A46: 1955 | B46: Communication Equipment (Smart Meters) | E46: 0 | G46: 0 | I46: 0 | J46: 0 | L46: 0
A47: 1960 | B47: Miscellaneous Equipment | E47: 0 | G47: 0 | I47: 0 | J47: 0 | L47: 0
A48: 1975 | B48: Load Management Controls Utility Premises | E48: 0 | G48: 0 | I48: 0 | J48: 0 | L48: 0
A49: 1980 | B49: System Supervisor Equipment | E49: 0 | G49: 0 | I49: 0 | J49: 0 | L49: 0
A50: 1985 | B50: Miscellaneous Fixed Assets | E50: 0 | G50: 0 | I50: 0 | J50: 0 | L50: 0
A51: 1995 | B51: Contributions & Grants | E51: 0 | G51: 0 | I51: 0 | J51: 0 | L51: 0
A52: etc. | E52: 0 | G52: 0 | I52: 0 | J52: 0 | L52: 0
E53: 0 | G53: 0 | I53: 0 | J53: 0 | L53: 0
B54: Total | C54: =SUM(C16:C53) -> 0 | D54: =SUM(D16:D53) -> 0 | E54: =SUM(E16:E53) -> 0 | F54: 0 | G54: 0 | J54: =SUM(J16:J53) -> 0 | K54: =SUM(K16:K53) -> 0 | L54: =SUM(L16:L53) -> 0
A56: Notes:
A58: 1 | B58: Board policy of the "half-year" rule - the applicant must ensure that additions in the year attract a half-year depreciation expense in the first year. Deviations from this standard practice must be supported in the application.
A59: 2 | B59: The applicant must provide an explanation of material variances in evidence
A62: General: | B62: Applicants must provide a breakdown of depreciation and amortization expense in the above format for all relevant accounts. Asset Retirement Obligations (AROs), depreciation and accretion expense should be disclosed separately consistent with the Notes of historical Audited Financial Statements.

Sheet App.2-D_Overhead
L1: File Number: | M1: EB-2012-0109
L2: Exhibit: | M2: 2,4
L3: Tab:
L4: Schedule:
L5: Page:
L7: Date: | M7: July 17,2013
A9: Appendix 2-D
A10: Overhead Expense
A12: The following table should be completed based on the information requested below. An explanation should be provided for any blank entries. The entries should include overhead costs that are currently capitalized on self-constructed assets under MIFRS or an alternate accounting standard.
E13: (A) 1 | F13: (B) | G13: (C) | H13: (D) | I13: (E) 1 | J13: (F) | K13: (G)
A14: Nature of the Overhead Costs | E14: Dollar | F14: Dollar | G14: Dollar | H14: Dollar Impact - | I14: Dollar Impact - | J14: Directly | K14: Reasons why the overhead costs are allowed to be
E15: Impact on PP&E | F15: Impact on PP&E | G15: Impact on PP&E | H15: PP&E Variance | I15: PP&E Variance | J15: Attributable? | K15: capitalized under MIFRS or an alternate accounting
E16: Historic Year | F16: Bridge Year | G16: Test Year | H16: Test versus Bridge | I16: Test versus Historic | J16: (Y/N) | K16: standard given limitations on capitalized overhead
A17: employee benefits | H17: =+G17-F17 -> 0 | I17: =+G17-E17 -> 0
A18: costs of site preparation | H18: 0 | I18: 0
A19: initial delivery and handling costs | H19: 0 | I19: 0
A20: costs of testing whether the asset is functioning properly | H20: 0 | I20: 0
A21: professional fees | H21: 0 | I21: 0
H22: 0 | I22: 0
A23: costs of opening a new facility | H23: 0 | I23: 0
A24: costs of introducing a new product or service (including costs of advertising and promotional activities) | H24: 0 | I24: 0
A25: costs of conducting business in a new location or with a new class of customer (including costs of staff training) | H25: 0 | I25: 0
A26: administration and other general overhead costs | H26: 0 | I26: 0
H27: 0 | I27: 0
H28: 0 | I28: 0
H29: 0 | I29: 0
A30: Insert description of additional item(s) and new rows if needed. | H30: 0 | I30: 0
A31: Total | E31: =SUM(E17:E30) -> 0 | F31: =SUM(F17:F30) -> 0 | G31: =SUM(G17:G30) -> 0 | H31: =SUM(H17:H30) -> 0 | I31: =SUM(I17:I30) -> 0
A34: The following table should be completed based on the information requested below. An explanation should be provided for any blank entries. The entries should include overhead costs that were capitalized on self-constructed assets under CGAAP but are no longer capitalized under MIFRS or an alternate accounting standard and are included in OM&A.
E35: (A) 1 | F35: (B) | G35: (C) | H35: (D) | I35: (E) 1 | J35: (F) | K35: (G)
A36: Nature of the Overhead Costs | E36: Dollar | F36: Dollar | G36: Dollar | H36: Dollar Impact - | I36: Dollar Impact - | J36: Directly | K36: Reasons why the overhead costs are not allowed to be
E37: Impact on OM&A | F37: Impact on OM&A | G37: Impact on OM&A | H37: OM&A Variance | I37: OM&A Variance | J37: Attributable? | K37: capitalized under MIFRS or an alternate accounting
E38: Historic Year | F38: Bridge Year | G38: Test Year | H38: Test versus Bridge | I38: Test versus Historic | J38: (Y/N) | K38: standard given limitations on capitalized overhead
A39: employee benefits | H39: =+G39-F39 -> 0 | I39: =+G39-E39 -> 0
A40: costs of site preparation | H40: =+G40-F40 -> 0 | I40: =+G40-E40 -> 0
A41: initial delivery and handling costs (STORES - 22% markup on inventory) | E41: 255114.26 | F41: =261939.04/1104874.93*987000 -> 233993.7539 | H41: =+G41-F41 -> -233993.7539 | I41: =+G41-E41 -> -255114.26
A42: costs of testing whether the asset is functioning properly | H42: =+G42-F42 -> 0 | I42: =+G42-E42 -> 0
A43: professional fees | H43: =+G43-F43 -> 0 | I43: =+G43-E43 -> 0
A45: costs of opening a new facility | H45: =+G45-F45 -> 0 | I45: =+G45-E45 -> 0
A46: costs of introducing a new product or service (including costs of advertising and promotional activities) | H46: 0 | I46: 0
A47: costs of conducting business in a new location or with a new class of customer (including costs of staff training) | H47: 0 | I47: 0
A48: administration and other general overhead costs | E48: 333432.6 | F48: =235684.38/1104874.93*987000 -> 210540.1044 | H48: -210540.1044 | I48: -333432.6
A49: percentage allocation of senior management salaries, benefits and related expenses | E49: 573586.43 | F49: =607251.51/1104874.93*987000 -> 542466.1417 | H49: -542466.1417 | I49: -573586.43
H50: 0 | I50: 0
H51: 0 | I51: 0
A52: Insert description of additional item(s) and new rows if needed. | H52: 0 | I52: 0
A53: Total | E53: =SUM(E39:E52) -> 1162133.29 | F53: =SUM(F39:F52) -> 987000 | G53: =SUM(G39:G52) -> 0 | H53: =SUM(H39:H52) -> -987000 | I53: =SUM(I39:I52) -> -1162133.29
A55: Notes:
A56: 1 | B56: If the applicant chooses to adopt IFRS or an alternate accounting standard for financial reporting purposes in 2013, the applicant does not need to complete Columns A, E. If the applicant adopts IFRS or an alternate accounting standard for financial reporting purposes in 2012, the applicant must complete all columns.

Sheet App.2-EA_PP&E Deferral Account
H1: File Number: | I1: ='LDC Info'!$E$18 -> EB-2012-0109
H2: Exhibit:
H3: Tab:
H4: Schedule:
H5: Page: | I5: 17
H7: Date:
A9: Appendix 2-EA
A10: IFRS-CGAAP Transitional PP&E Amounts
A11: 2012 Adopters of IFRS for Financial Reporting Purposes
A13: For applicants that adopt IFRS on January 1, 2012 for financial reporting purposes
A15: Note: this sheet should be filled out if the applicant adopts IFRS for its financial reporting purpose as of January 1, 2012.
B17: 2009 Rebasing Year | C17: 2010 | D17: 2011 | E17: 2012 | F17: 2013 Rebasing Year | G17: 2014 | H17: 2015 | I17: 2016
A18: Reporting Basis | B18: CGAAP | C18: IRM | D18: IRM | E18: IRM | F18: MIFRS | G18: IRM | H18: IRM | I18: IRM
A19: Forecast vs. Actual Used in Rebasing Year | B19: Forecast | C19: Actual | D19: Actual | E19: Forecast | F19: Forecast
D20: $ | E20: $
A21: PP&E Values under CGAAP
A22: Opening net PP&E - Note 1
A23: Additions
A24: Depreciation (amounts should be negative)
A25: Closing net PP&E (1) | D25: =D22+D23+D24 -> 0 | E25: =E22+E23+E24 -> 0
A27: PP&E Values under MIFRS (Starts from 2011, the transition year)
A28: Opening net PP&E - Note 1
A29: Additions
A30: Depreciation (amounts should be negative)
A31: Closing net PP&E (2) | D31: =SUM(D28:D30) -> 0 | E31: =SUM(E28:E30) -> 0
A33: Difference in Closing net PP&E, CGAAP vs. MIFRS (Shown as adjustment to rate base on rebasing) | D33: =D25-D31 -> 0 | E33: =E25-E31 -> 0
A35: Account 1575 - IFRS-CGAAP Transitional PP&E Amounts
A36: Opening balance | D36: 0 | E36: =D40 -> 0 | F36: =E40 -> 0 | G36: =F40 -> 0 | H36: =G40 -> 0 | I36: =H40 -> 0
A37: Amounts added in the year | D37: =D33 -> 0 | E37: =E33-D33 -> 0
A38: Sub-total | D38: =D36+D37 -> 0 | E38: 0 | F38: 0 | G38: 0 | H38: 0 | I38: 0
A39: Amount of amortization, included in depreciation expense - Note 2 | F39: =IF(ISERROR(-E33/I44), 0, -E33/I44) -> 0 | G39: =+F39 -> 0 | H39: =+F39 -> 0 | I39: =+F39 -> 0
A40: Closing balance in deferral account | D40: =D38+D39 -> 0 | E40: 0 | F40: =IF(ISERROR(F38+F39), 0, F38+F39) -> 0 | G40: 0 | H40: 0 | I40: 0
A42: Effect on Revenue Requirement
A43: Amortization of deferred balance as above - Note 2 | F43: =IF(ISERROR(E33/I44), 0, E33/I44) -> 0 | H43: WACC
A44: Return on Rate Base Associated with deferred PP&E balance at WACC - Note 3 | F44: =E33*I43 -> 0 | H44: Disposition Period - Note 4 | I44: 4 | J44: Years
A45: Amount included in Revenue Requirement on rebasing | F45: =F43+F44 -> 0
A47: Notes:
A48: 1 For an applicant that adopts IFRS on January 1, 2012, the PP&E values as of January 1, 2011 under both CGAAP and MIFRS should be the same.
A49: 2 Amortization of the deferred balance in Account 1575 will start from the rebasing year.
A50: Assume the utility requests for a certain disposition period, the amortization that should be included in the depreciation expense is calculated as:
A51: the opening balance of Account 1575 / the approved disposition period
A52: 3 Return on rate base associated with deferred balance is calculated as:
A53: the deferred account opening balance as of 2013 rebasing year x WACC
A54: * Please note that the calculation should be adjusted once WACC is updated and finalized in the rate application.
A55: 4 Consistent with the 4 year normal rate cycle, the model is using a 4 year amortization period as a default selection to "clear" the PP&E deferral account through a one-time adjustment to ratebase to capture and remove the impact of the accounting policy changes as caused by the transition from CGAAP to MIFRS.

Sheet App.2-EB_PP&E Deferral Account
H1: File Number: | I1: ='LDC Info'!$E$18 -> EB-2012-0109
H2: Exhibit:
H3: Tab:
H4: Schedule:
H5: Page: | I5: 18
H7: Date:
A9: Appendix 2-EB
A10: IFRS-CGAAP Transitional PP&E Amounts
A11: 2013 Adopters of IFRS for Financial Reporting Purposes
A13: For applicants that adopt IFRS on January 1, 2013 for financial reporting purposes
A15: Note: this sheet should be filled out if the applicant adopts IFRS for its financial reporting purpose as of January 1, 2013.
B17: 2009 Rebasing Year | C17: 2010 | D17: 2011 | E17: 2012 | F17: 2013 Rebasing Year | G17: 2014 | H17: 2015 | I17: 2016
A18: Reporting Basis | B18: CGAAP | C18: IRM | D18: IRM | E18: IRM | F18: MIFRS | G18: IRM | H18: IRM | I18: IRM
A19: Forecast vs. Actual Used in Rebasing Year | B19: Forecast | C19: Actual | D19: Actual | E19: Forecast | F19: Forecast
D20: $ | E20: $ | F20: $ | G20: $ | H20: $ | I20: $
A21: PP&E Values under CGAAP
A22: Opening net PP&E - Note 1
A23: Additions
A24: Depreciation (amounts should be negative)
A25: Closing net PP&E (1) | E25: =SUM(E22:E24) -> 0
A27: PP&E Values under MIFRS (Starts from 2012, the transition year)
A28: Opening net PP&E - Note 1
A29: Additions
A30: Depreciation (amounts should be negative)
A31: Closing net PP&E (2) | E31: =SUM(E28:E30) -> 0
A33: Difference in Closing net PP&E, CGAAP vs. MIFRS (Shown as adjustment to rate base on rebasing) | E33: =E25-E31 -> 0
A35: Account 1575 - IFRS-CGAAP Transitional PP&E Amounts
A36: Opening balance | E36: =D40 -> 0 | F36: =E40 -> 0 | G36: =F40 -> 0 | H36: =G40 -> 0 | I36: =H40 -> 0
A37: Amounts added in the year | E37: =E33-D33 -> 0
A38: Sub-total | E38: =E36+E37 -> 0 | F38: =F36+F37 -> 0 | G38: =G36+G37 -> 0 | H38: =H36+H37 -> 0 | I38: =I36+I37 -> 0
A39: Amount of amortization, included in depreciation expense - Note 2 | F39: =IF(ISERROR(-E33/I44), 0, -E33/I44) -> 0 | G39: =+F39 -> 0 | H39: =+F39 -> 0 | I39: =+F39 -> 0
A40: Closing balance in deferral account | E40: =E38+E39 -> 0 | F40: =IF(ISERROR(F38+F39), 0, F38+F39) -> 0 | G40: =G38+G39 -> 0 | H40: =H38+H39 -> 0 | I40: =I38+I39 -> 0
A42: Effect on Revenue Requirement
A43: Amortization of deferred balance as above - Note 2 | F43: =IF(ISERROR(E33/I44), 0, E33/I44) -> 0 | H43: WACC
A44: Return on Rate Base Associated with deferred PP&E balance at WACC - Note 3 | F44: =E33*I43 -> 0 | H44: Disposition Period - Note 4 | I44: 4 | J44: Years
A45: Amount included in Revenue Requirement on rebasing | F45: =F43+F44 -> 0
A47: Notes:
A48: 1 For an applicant that adopts IFRS on January 1, 2013, the PP&E values as of January 1, 2012 under both CGAAP and MIFRS should be the same.
A49: 2 Amortization of the deferred balance in Account 1575 will start from the rebasing year.
A50: Assume the utility requests for a certain disposition period, the amortization that should be included in the depreciation expense is calculated as:
A51: the opening balance of Account 1575 / the approved disposition period
A52: 3 Return on rate base associated with deferred balance is calculated as:
A53: the deferred account opening balance as of 2013 rebasing year x WACC
A54: * Please note that the calculation should be adjusted once WACC is updated and finalized in the rate application.
A55: 4 Consistent with the 4 year normal rate cycle, the model is using a 4 year amortization period as a default selection to "clear" the PP&E deferral account through a one-time adjustment to ratebase to capture and remove the impact of the accounting policy changes as caused by the transition from CGAAP to MIFRS.

Sheet App.2-F_Other_Oper_Rev
G1: File Number: | H1: ='LDC Info'!$E$18 -> EB-2012-0109
G2: Exhibit: | H2: 3
G3: Tab: | H3: 3
G4: Schedule: | H4: 3
G5: Page: | H5: 19
G7: Date: | H7: July 17,2013
A9: Appendix 2-F
A10: Other Operating Revenue
A12: USoA # | B12: USoA Description | C12: 2008 Actual | D12: 2009 Actual | E12: 2010 Actual | F12: 2011 Actual² | G12: Bridge Year³ | H12: Test Year
G13: 2012 | H13: 2013
B14: Reporting Basis | H14: CGAAP
A15: 4235 | B15: Misc. Service Revenue | C15: 589630.74 | D15: 575803.94 | E15: 635866.92 | F15: 469499.89 | G15: 403588 | H15: 422134
A16: 4225 | B16: Late Payment Charges | C16: 108432.71 | D16: 99278.33 | E16: 7650.68 | F16: 111987.79 | G16: 122798 | H16: 120000
A17: 4082 | B17: Retailer Services Revenue | C17: 74088.67 | D17: 80803.93 | E17: 66001.44 | F17: 53468.88 | G17: 31557 | H17: 38639
A18: 4080 | B18: SSS Admin Fees | C18: 93320.08 | D18: 93674.54 | E18: 96005.13 | F18: 99725.03 | G18: 103910 | H18: 104830
A19: 4084 | B19: Serv Trans by REQ (STR) | C19: 26850 | D19: 19257.75 | E19: 17860.5 | F19: 14821 | G19: 18441 | H19: 11660
A20: 4210 | B20: Rent from Electric Property | C20: 96294.39 | D20: 121417.6 | E20: 103841.84 | F20: 104422.11 | G20: 106000 | H20: 108120
A21: 4215 | B21: Other Utility Operating Inc | C21: 0 | D21: 0 | E21: 0 | F21: 0 | G21: 0 | H21: 0
A22: 4220 | B22: Other Electric Revenue | C22: 2832.56 | D22: 565.55 | E22: 1087.62 | F22: 188.5 | G22: 0 | H22: 0
A23: 4240 | B23: Provision for Rate Refunds | C23: 0 | D23: 0 | E23: 0 | F23: 0 | G23: 0 | H23: 0
A24: 4335 | B24: P&L from FI Hedges | C24: 0 | D24: 0 | E24: 0 | F24: 0 | G24: 0 | H24: 0
A25: 4355 | B25: Gain on Disposition of Utility and Other Property | C25: 4550 | D25: -22968.7 | E25: 51066.58 | F25: 19025.11 | G25: 0 | H25: 0
A26: 4360 | B26: Loss on Disposal of Property | C26: 0 | D26: 0 | E26: 0 | F26: 0 | G26: 0 | H26: 0
A27: 4375 | B27: Revenue from Non-Utility Operations | C27: 541188.45 | D27: 2189506.33 | E27: 1130495.2 | F27: 723013.85 | G27: 3897395 | H27: 5165361
A28: 4380 | B28: Expenses from Non-Utility Operations | C28: -482836.23 | D28: -1846308.83 | E28: -926976.27 | F28: -735092.98 | G28: -3897395 | H28: -5165361
A29: 4390 | B29: Misc. Non-Operating Income | C29: 70258.82 | D29: 35377.15 | E29: 37988.78 | F29: 28525.2 | G29: 12800 | H29: 20000
A30: 4405 | B30: Interest & Dividend Income | C30: 385735.95 | D30: 128822.54 | E30: 129665.79 | F30: 278195.09 | G30: 271024 | H30: 275539
A32: Specific Service Charges | C32: =C15 -> 589630.74 | D32: =D15 -> 575803.94 | E32: =E15 -> 635866.92 | F32: 469499.89 | G32: 403588 | H32: 422134
A33: Late Payment Charges | C33: =C16 -> 108432.71 | D33: =D16 -> 99278.33 | E33: 7650.68 | F33: 111987.79 | G33: 122798 | H33: 120000
A34: Other Operating Revenues | C34: =SUM(C17:C23) -> 293385.7 | D34: =SUM(D17:D23) -> 315719.37 | E34: =SUM(E17:E23) -> 284796.53 | F34: 272625.52 | G34: 259908 | H34: 263249
A35: Other Income or Deductions | C35: =SUM(C24:C30) -> 518896.99 | D35: =SUM(D24:D30) -> 484428.49 | E35: 422240.08 | F35: 313666.27 | G35: 283824 | H35: 295539
A36: Total* | C36: =SUM(C32:C35) -> 1510346.14 | D36: =SUM(D32:D35) -> 1475230.13 | E36: 1350554.21 | F36: 1167779.47 | G36: 1070118 | H36: 1100922
A37: * Please note- For 2013 Test, revenues from Standby rates have also been included as a revenue offset. Total other revenues including Standby revenues of $60 224 total $1 161 146
A39: Description | D39: Account(s)
A40: Specific Service Charges: | D40: 4235
A41: Late Payment Charges: | D41: 4225
A42: Other Distribution Revenues: | D42: 4080, 4082, 4084, 4090, 4205, 4210, 4215, 4220, 4240, 4245
A43: Other Income and Expenses: | D43: 4305, 4310, 4315, 4320, 4325, 4330, 4335, 4340, 4345, 4350, 4355, 4360, 4365, 4370, 4375, 4380, 4385, 4390, 4395, 4398, 4405, 4415
A46: Note: Add all applicable accounts listed above to the table and include all relevant information.
A47: The above table assumes adoption of MIFRS as of January 1, 2013. If the adoption year differs, please adjust the table accordingly.
A50: Account Breakdown Details
A52: For each "Other Operating Revenue" and "Other Income or Deductions" Account, a detailed breakdown of the account components is required. See the example below for Account 4405, Interest and Dividend Income.
A55: Account 4210- Rent from Electric Property
C56: 2008 Actual | D56: 2009 Actual | E56: 2010 Actual | F56: 2011 Actual² | G56: Bridge Year³ | H56: Test Year
A57: Reporting Basis | G57: 2012 | H57: 2013
A58: Pole Rental Revenues | D58: 121417.6 | E58: 103841.84 | F58: 104422.11 | G58: 106000 | H58: 108120
A59: Total | D59: =SUM(D58:D58) -> 121417.6 | E59: =SUM(E58:E58) -> 103841.84 | F59: =SUM(F58:F58) -> 104422.11 | G59: =SUM(G58:G58) -> 106000 | H59: =SUM(H58:H58) -> 108120
A62: Account 4220- Other Electric Revenue
C63: 2008 Actual | D63: 2009 Actual | E63: 2010 Actual | F63: 2011 Actual² | G63: Bridge Year³ | H63: Test Year
A64: Reporting Basis | G64: 2012 | H64: 2013
A65: Other Electric Revenue | C65: 2832.56 | D65: 565.55 | E65: 1087.62 | F65: 188.5 | G65: 0 | H65: 0
A66: Total | C66: =SUM(C65:C65) -> 2832.56 | D66: 565.55 | E66: 1087.62 | F66: 188.5 | G66: 0 | H66: 0
A69: Account 4355-Gain on Disposition of Utility and Other Property
C70: 2008 Actual | D70: 2009 Actual | E70: 2010 Actual | F70: 2011 Actual² | G70: Bridge Year³ | H70: Test Year
A71: Reporting Basis | G71: 2012 | H71: 2013
A72: Gain on Disposition of Utility and Other Property | C72: 4550 | D72: -22968.7 | E72: 51066.58 | F72: 19025.11 | G72: 0 | H72: 0
A73: Total | C73: =SUM(C72:C72) -> 4550 | D73: =SUM(D72:D72) -> -22968.7 | E73: 51066.58 | F73: 19025.11 | G73: 0 | H73: 0
A76: Account 4375- Revenues from Non-Utility Operations
C77: 2008 Actual | D77: 2009 Actual | E77: 2010 Actual | F77: 2011 Actual² | G77: Bridge Year³ | H77: Test Year
A78: Reporting Basis | G78: 2012 | H78: 2013
A79: OPA Revenues and Incentives | C79: 333873.76 | D79: 1848103.66 | E79: 954753.74 | F79: 691180.42 | G79: 3897395 | H79: =H27 -> 5165361
A80: Street Light Revenue | C80: 161356.48 | D80: 60929.46 | E80: 0 | F80: 0 | G80: 0
A81: CDM Bonus | C81: 45958.21 | D81: 280473.21 | E81: 175741.46 | F81: 31833.43 | G81: 0
A82: Total | C82: =SUM(C79:C81) -> 541188.45 | D82: =SUM(D79:D81) -> 2189506.33 | E82: 1130495.2 | F82: 723013.85 | G82: 3897395 | H82: 5165361
A85: Account 4380- Expenses fron Non-Utility Operations
C86: 2008 Actual | D86: 2009 Actual | E86: 2010 Actual | F86: 2011 Actual² | G86: Bridge Year³ | H86: Test Year
A87: Reporting Basis | G87: 2012 | H87: 2013
A88: OPA Incentives and Expense | C88: -321479.75 | D88: -1785379.37 | E88: -926976.27 | F88: -735092.98 | G88: -3897395 | H88: =H28 -> -5165361
A89: Street Light Revenue | C89: -161356.48 | D89: -60929.46 | E89: 0 | F89: 0 | G89: 0
A90: Total | C90: =SUM(C88:C89) -> -482836.23 | D90: =SUM(D88:D89) -> -1846308.83 | E90: =SUM(E88:E89) -> -926976.27 | F90: -735092.98 | G90: -3897395 | H90: -5165361
A92: Account 4405- Interest and Dividend Income
C93: 2008 Actual | D93: 2009 Actual | E93: 2010 Actual | F93: 2011 Actual² | G93: Bridge Year³ | H93: Test Year
A94: Reporting Basis | G94: 2012 | H94: 2013
A95: Interest on Taxes | C95: 1557.71 | D95: 59271.79 | E95: 1668.07
A96: Bank Deposit Interest | C96: 341698.74 | D96: 44524.57 | E96: 83436.45 | F96: 157625.98 | G96: 130500 | H96: 120000
A97: Interest on Accounts Receivable | C97: 998.11 | D97: 3744.12 | E97: 1125.01 | F97: 5035.83 | G97: 1200 | H97: 3500
A98: Regulatory Asset Interest | C98: 41481.39 | D98: 21282.06 | E98: 45686.28 | F98: 115533.28 | G98: 139324 | H98: 152039
A99: Total | C99: =SUM(C95:C98) -> 385735.95 | D99: =SUM(D95:D98) -> 128822.54 | E99: =SUM(E95:E98) -> 131915.81 | F99: =SUM(F95:F98) -> 278195.09 | G99: =SUM(G95:G98) -> 271024 | H99: =SUM(H96:H98) -> 275539

Sheet App.2-G_Detailed_OM&A_Expenses
I1: File Number: | J1: EB-2012-0109
I2: Exhibit: | J2: 4
I3: Tab:
I4: Schedule:
I5: Page: | J5: 20
I7: Date: | J7: July 17,2013
A9: Appendix 2-G
A10: Detailed, Account by Account, OM&A Expense Table
A11: (excluding Depreciation and Amortization)
A14: Account | B14: Description | C14: Last Rebasing Year (2008 Actuals) | D14: 2009 Actual | E14: 2010 Actual | F14: 2011 Actual² | G14: 2011 Actual² | H14: Bridge Year 2012³ | I14: Bridge Year 2012³ | J14: Test Year 2013
A15: Reporting Basis | C15: CGAAP | D15: CGAAP | E15: CGAAP | F15: CGAAP | H15: CGAAP | J15: CGAAP
A16: Operations
A17: 5005 | B17: Operation Supervision and Engineering | C17: 311749 | D17: 332926.4 | E17: 335122.63 | F17: 327413.65 | H17: 226223 | J17: 273250
A18: 5010 | B18: Load Dispatching | C18: 38989.01 | D18: 35700.09 | E18: 49739.08 | F18: 31918.02 | H18: 45927 | J18: 114745
A19: 5012 | B19: Station Buildings and Fixtures Expense | C19: 40427.75 | D19: 33982.44 | E19: 29812.49 | F19: 25755.04 | H19: 29252 | J19: 29322
A20: 5014 | B20: Transformer Station Equipment - Operation Labour | C20: 6001.62 | D20: 5595.6 | E20: 7008.84 | F20: 15354.16 | H20: 7906 | J20: 24787
A21: 5015 | B21: Transformer Station Equipment - Operation Supplies and Expenses | C21: 77927.69 | D21: 67308.07 | E21: 72587.13 | F21: 96170.5 | H21: 75365 | J21: 102609
A22: 5016 | B22: Distribution Station Equipment - Operation Labour | C22: 2480.68 | D22: 2387.06 | E22: 1276.66 | F22: 4207.98 | H22: 1743 | J22: 1962
A23: 5017 | B23: Distribution Station Equipment - Operation Supplies and Expenses | C23: 3421.08 | D23: 1512.25 | E23: 1133.69 | F23: 1154.95 | H23: 400 | J23: 520
A24: 5020 | B24: Overhead Distribution Lines and Feeders - Operation Labour | C24: 1222.05 | D24: 2522.64 | E24: 1770.89 | F24: 1927.65 | H24: 985 | J24: 1962
A25: 5025 | B25: Overhead Distribution Lines and Feeders - Operation Supplies and Expenses | C25: 720.48 | D25: 6292.85 | E25: 6026.43 | F25: 1976.34 | H25: 10893 | J25: 12752
A26: 5030 | B26: Overhead Sub-transmission Feeders - Operation | C26: 0 | D26: 0 | E26: 0 | F26: 0 | H26: 0 | J26: 0
A27: 5035 | B27: Overhead Distribution Transformers - Operation | C27: 1043.97 | D27: 8986.19 | E27: 9393.34 | F27: 3868.05 | H27: 2989 | J27: 5154
A28: 5040 | B28: Underground Distribution Lines and Feeders - Operation Labour | C28: 1137.18 | D28: 138.82 | E28: 1670.6 | F28: 1178.14 | H28: 670 | J28: 0
A29: 5045 | B29: Underground Distribution Lines and Feeders - Operation Supplies and Expenses | C29: 11204.41 | D29: 5624.52 | E29: 10635.28 | F29: 6267.08 | H29: 9508 | J29: 11990
A30: 5050 | B30: Underground Sub-transmission Feeders - Operation | C30: 0 | D30: 0 | E30: 0 | F30: 0 | H30: 0 | J30: 0
A31: 5055 | B31: Underground Distribution Transformers - Operation | C31: 1829.99 | D31: 1386.74 | E31: 1735.73 | F31: 685.19 | H31: 665 | J31: 0
A32: 5060 | B32: Street Lighting and Signal System Expense | C32: 0 | D32: 0 | E32: 0 | F32: 0 | H32: 0 | J32: 0
A33: 5065 | B33: Meter Expense | C33: 305437 | D33: 285758.17 | E33: 265761.75 | F33: 363773.21 | H33: 464155 | J33: 593094
A34: 5070 | B34: Customer Premises - Operation Labour | C34: 897.27 | D34: 315.29 | E34: 333.76 | F34: 460.96 | H34: 710 | J34: 5292
A35: 5075 | B35: Customer Premises - Operation Materials and Expenses | C35: 0 | D35: 0 | E35: 0 | F35: 0 | H35: 0 | J35: 0
A36: 5085 | B36: Miscellaneous Distribution Expenses | C36: 214419.04 | D36: 253078.12 | E36: 186167.12 | F36: 182823 | H36: 221832 | J36: 329209
A37: 5090 | B37: Underground Distribution Lines and Feeders - Rental Paid | C37: 0 | D37: 0 | E37: 0 | F37: 0 | H37: 0 | J37: 0
A38: 5095 | B38: Overhead Distribution Lines and Feeders - Rental Paid | C38: 0 | D38: 13596.35 | E38: 19982.8 | F38: 6869.06 | H38: 7343 | J38: 25403
A39: 5096 | B39: Other Rent | C39: 0 | D39: 0 | E39: 8233.06 | F39: 4539.64 | H39: 4732 | J39: 44455
A40: Total - Operations | C40: =SUM(C17:C39) -> 1018908.22 | D40: 1057111.6 | E40: 1008391.28 | F40: 1076342.62 | G40: 0 | H40: 1111298 | I40: 0 | J40: 1576506
A41: Account | B41: Description | C41: =C14 -> Last Rebasing Year (2008 Actuals) | E41: 2010 Actual | F41: 2011 Actual² | G41: 2011 Actual² | H41: Bridge Year 2012³ | I41: Bridge Year 2012³ | J41: Test Year 2013
A42: Maintenance
A43: 5105 | B43: Maintenance Supervision and Engineering | C43: 301446.33 | D43: 304848.83 | E43: 325801.17 | F43: 307486.4 | H43: 432478 | J43: 499599
A44: 5110 | B44: Maintenance of Buildings and Fixtures - Distribution Stations | C44: 0 | D44: 431 | E44: 1031.22 | F44: 1891.99 | H44: 1559 | J44: 2158
A45: 5112 | B45: Maintenance of Transformer Station Equipment | C45: 0 | D45: 0 | E45: 0 | F45: 0 | H45: 0 | J45: 0
A46: 5114 | B46: Maintenance of Distribution Station Equipment | C46: 7164.02 | D46: 9409.43 | E46: 10704.22 | F46: 5684 | H46: 6747 | J46: 9805
A47: 5120 | B47: Maintenance of Poles, Towers and Fixtures | C47: 182780.21 | D47: 135623.83 | E47: 57113.45 | F47: 44138.61 | H47: 32442 | J47: 75414
A48: 5125 | B48: Maintenance of Overhead Conductors and Devices | C48: 116671.06 | D48: 128911.77 | E48: 109022.58 | F48: 196827.12 | H48: 184573 | J48: 242022
A49: 5130 | B49: Maintenance of Overhead Services | C49: 230266.37 | D49: 200497.91 | E49: 229756.91 | F49: 218602.26 | H49: 192135 | J49: 247604
A50: 5135 | B50: Overhead Distribution Lines and Feeders - Right of Way | C50: 443358.64 | D50: 399182.99 | E50: 396203.24 | F50: 348542.16 | H50: 415898 | J50: 499535
A51: 5145 | B51: Maintenance of Underground Conduit | C51: 43295.03 | D51: 75395.01 | E51: 38898.48 | F51: 54613.68 | H51: 52661 | J51: 56902
A52: 5150 | B52: Maintenance of Underground Conductors and Devices | C52: 78959.92 | D52: 138559.93 | E52: 89625.82 | F52: 71834.65 | H52: 70158 | J52: 82311
A53: 5155 | B53: Maintenance of Underground Services | C53: 210769.36 | D53: 221815.45 | E53: 143094.58 | F53: 138372.07 | H53: 109059 | J53: 124877
A54: 5160 | B54: Maintenance of Line Transformers | C54: 142264.74 | D54: 108654.05 | E54: 279921.46 | F54: 68590.53 | H54: 305006 | J54: 192863
A55: 5165 | B55: Maintenance of Street Lighting and Signal Systems | C55: 0 | D55: 0 | E55: 0 | F55: 0 | H55: 0 | J55: 0
A56: 5170 | B56: Sentinel Lights - Labour | C56: 0 | D56: 0 | E56: 0 | F56: 0 | H56: 0 | J56: 0
A57: 5172 | B57: Sentinel Lights - Materials and Expenses | C57: 0 | D57: 0 | E57: 0 | F57: 0 | H57: 0 | J57: 0
A58: 5175 | B58: Maintenance of Meters | C58: 170.84 | D58: 26.02 | E58: 0 | F58: 0 | H58: 153 | J58: 0
A59: 5178 | B59: Customer Installations Expenses - Leased Property | C59: 0 | D59: 0 | E59: 0 | F59: 0 | H59: 0 | J59: 0
A60: 5195 | B60: Maintenance of Other Installations on Customer Premises | C60: 0 | D60: 0 | E60: 0 | F60: 0 | H60: 0 | J60: 0
A61: Total - Maintenance | C61: =SUM(C43:C60) -> 1757146.52 | D61: 1723356.22 | E61: 1681173.13 | F61: 1456583.47 | G61: 0 | H61: 1802869 | I61: 0 | J61: 2033090
A62: Account | B62: Description | C62: =C41 -> Last Rebasing Year (2008 Actuals) | E62: 2010 Actual | F62: 2011 Actual² | G62: 2011 Actual² | H62: Bridge Year 2012³ | I62: Bridge Year 2012³ | J62: Test Year 2013
A63: Billing and Collecting
A64: 5305 | B64: Supervision | C64: 167396.72 | D64: 175292.37 | E64: 181121.02 | F64: 161326.36 | H64: 223136 | J64: 292372
A65: 5310 | B65: Meter Reading Expense | C65: 409719.47 | D65: 440325.26 | E65: 402412.36 | F65: 354421.94 | H65: 274993 | J65: 240556
A66: 5315 | B66: Customer Billing | C66: 517915.53 | D66: 542936.48 | E66: 555894.28 | F66: 495100.55 | H66: 542425 | J66: 964616
A67: 5320 | B67: Collecting | C67: 334793.43 | D67: 350584.73 | E67: 362242.04 | F67: 322652.73 | H67: 359916 | J67: 536496
A68: 5325 | B68: Collecting - Cash Over and Short | C68: 0 | D68: 0 | E68: 0 | F68: 0 | H68: 0 | J68: 0
A69: 5330 | B69: Collection Charges | C69: 282.27 | D69: 547.52 | E69: 453.71 | F69: 833.22 | H69: 1000 | J69: 500
A70: 5335 | B70: Bad Debt Expense | C70: 130318.21 | D70: 257772.27 | E70: 211526.98 | F70: 307531.54 | H70: 300000 | J70: 306000
A71: 5340 | B71: Miscellaneous Customer Accounts Expenses | C71: 418491.79 | D71: 438230.91 | E71: 452802.54 | F71: 403315.91 | H71: 506862 | J71: 522675
A72: Total - Billing and Collecting | C72: =SUM(C64:C71) -> 1978917.42 | D72: 2205689.54 | E72: 2166452.93 | F72: 2045182.25 | G72: 0 | H72: 2208332 | I72: 0 | J72: 2863215
A73: Account | B73: Description | C73: =C62 -> Last Rebasing Year (2008 Actuals) | E73: 2010 Actual | F73: 2011 Actual² | G73: 2011 Actual² | H73: Bridge Year 2012³ | I73: Bridge Year 2012³ | J73: Test Year 2013
A74: Community Relations
A75: 5405 | B75: Supervision | C75: 0 | D75: 0 | E75: 0 | F75: 0 | H75: 0 | J75: 0
A76: 5410 | B76: Community Relations - Sundry | C76: 106287.64 | D76: 119559.21 | E76: 113350.68 | F76: 106211.08 | H76: 156330 | J76: 152526
A77: 5415 | B77: Energy Conservation | C77: 0 | D77: 0 | E77: 0 | F77: 0 | H77: 0 | J77: 0
A78: 5420 | B78: Community Safety Program | C78: 6948.94 | D78: 8270.03 | E78: 18028.51 | F78: 9412.07 | H78: 12807 | J78: 19051
A79: 5425 | B79: Miscellaneous Customer Service and Informational Expenses | C79: 0 | D79: 0 | E79: 0 | F79: 0 | H79: 0 | J79: 61200
A80: 5505 | B80: Supervision | C80: 0 | D80: 0 | E80: 0 | F80: 0 | H80: 0 | J80: 0
A81: 5510 | B81: Demonstrating and Selling Expense | C81: 0 | D81: 0 | E81: 0 | F81: 0 | H81: 0 | J81: 0
A82: 5515 | B82: Advertising Expenses | C82: 0 | D82: 0 | E82: 0 | F82: 0 | H82: 0 | J82: 0
A83: 5520 | B83: Miscellaneous Sales Expense | C83: 0 | D83: 0 | E83: 0 | F83: 0 | H83: 0 | J83: 0
A84: Total - Community Relations | C84: =SUM(C75:C83) -> 113236.58 | D84: 127829.24 | E84: 131379.19 | F84: 115623.15 | G84: 0 | H84: 169137 | I84: 0 | J84: 232777
A85: Account | B85: Description | C85: =C73 -> Last Rebasing Year (2008 Actuals) | E85: 2010 Actual | F85: 2011 Actual² | G85: 2011 Actual² | H85: Bridge Year 2012³ | I85: Bridge Year 2012³ | J85: Test Year 2013
A86: Administrative and General Expenses
A87: 5605 | B87: Executive Salaries and Expenses | C87: 424359.82 | D87: 388053.05 | E87: 403907.61 | F87: 319672.67 | H87: 533369 | J87: 729401
A88: 5610 | B88: Management Salaries and Expenses | C88: 370449.08 | D88: 397061.29 | E88: 402930.18 | F88: 302362.9 | H88: 340676 | J88: 384158
A89: 5615 | B89: General Administrative Salaries and Expenses | C89: 909393.12 | D89: 867658.18 | E89: 917873.88 | F89: 884743.91 | H89: 875650.96 | J89: 582990
A90: 5620 | B90: Office Supplies and Expenses | C90: 65707.31 | D90: 65075.29 | E90: 57259.8 | F90: 51082.21 | H90: 58468 | J90: 80250
A91: 5625 | B91: Administrative Expense Transferred - Credit | C91: 0 | D91: 0 | E91: 0 | F91: 0 | H91: 0 | J91: 0
A92: 5630 | B92: Outside Services Employed | C92: 110785.82 | D92: 39291.38 | E92: 58600.07 | F92: 127714.97 | H92: 138735 | J92: 220000
A93: 5635 | B93: Property Insurance | C93: 151792.88 | D93: 99319.86 | E93: 74245.31 | F93: 99677.92 | H93: 100861 | J93: 133133
A94: 5640 | B94: Injuries and Damages | C94: 12642.12 | D94: 0 | E94: 0 | F94: 0 | H94: 0 | J94: 0
A95: 5645 | B95: OMERS Pensions and Benefits | C95: 220062.3 | D95: 244531.55 | E95: 215392.73 | F95: 175099.34 | H95: 302000 | J95: 108000
A96: 5646 | B96: Employee Pensions and OPEB | C96: 0 | D96: 0 | E96: 0 | F96: 0 | H96: 0 | J96: 0
A97: 5647 | B97: Employee Sick Leave | C97: 0 | D97: 0 | E97: 0 | F97: 0 | H97: 0 | J97: 0
A98: 5650 | B98: Franchise Requirements | C98: 50129.79 | D98: 50605.5 | E98: 53426.87 | F98: 53775 | H98: 57569 | J98: 59000
A99: 5655 | B99: Regulatory Expenses | C99: 248012.35 | D99: 284560.46 | E99: 184345.89 | F99: 120735.35 | H99: 135500 | J99: 144500
A100: 5660 | B100: General Advertising Expenses | C100: 27062.36 | D100: 20789.41 | E100: 27398.32 | F100: 15893.5 | H100: 13600 | J100: 40000
A101: 5665 | B101: Miscellaneous General Expenses | C101: 184694.96 | D101: 119196.29 | E101: 84704.87 | F101: 151291.4 | H101: 8341 | J101: -1995
A102: 5670 | B102: Rent | C102: 0 | D102: 0 | E102: 0 | F102: 0 | H102: 0 | J102: 0
A103: 5672 | B103: Lease Payment Charge | C103: 0 | D103: 0 | E103: 0 | F103: 0 | H103: 0 | J103: 0
A104: 5675 | B104: Maintenance of General Plant | C104: 0 | D104: 0 | E104: 0 | F104: 0 | H104: 0 | J104: 0
A105: 5680 | B105: Electrical Safety Authority Fees | C105: 15642.11 | D105: 16129.26 | E105: 16166.63 | F105: 16012.68 | H105: 16400 | J105: 19000
A106: 5681 | B106: Special Purpose Charge Expense | C106: 0 | D106: 0 | E106: 376534 | F106: 0 | H106: 0 | J106: 0
A107: 5685 | B107: Independent Electricity System Operator Fees and Penalties | C107: 54424.72 | D107: 51566.47 | E107: 51566.47 | F107: 51757.74 | H107: 60000 | J107: 0
A108: 5695 | B108: OM&A Contra Account | C108: -19371.22 | D108: -29755.82 | E108: 46970.78 | F108: -51215.29 | H108: -120132 | J108: 0
A109: 6205 | B109: Donations | H109: 0
A110: 6205 | B110: Donations, Sub-account LEAP Funding | C110: 0 | D110: 0 | E110: 0 | F110: 0
A111: Total - Administrative and General Expenses | C111: =SUM(C87:C110) -> 2825787.52 | D111: =SUM(D87:D110) -> 2614082.17 | E111: =SUM(E87:E110) -> 2971323.41 | F111: 2318604.3 | G111: 0 | H111: 2521037.96 | I111: 0 | J111: 2498437
A112: Total OM&A | C112: =C40+C61+C72+C84+C111 -> 7693996.26 | D112: 7728068.77 | E112: 7958719.94 | F112: 7012335.79 | G112: 0 | H112: 7812673.96 | I112: 0 | J112: 9204025
A113: Adjustments for non-recoverable items
A114: 5681 | B114: Special Purpose Charge Expense | C114: 0 | D114: 0 | E114: 376534 | F114: 0 | H114: 0 | J114: 0
A115: 6205 | B115: Donations1 | H115: 0
A119: Total Recoverable OM&A | C119: =C112-SUM(C114:C118) -> 7693996.26 | D119: 7728068.77 | E119: 7582185.94 | F119: 7012335.79 | G119: 0 | H119: 7812673.96 | I119: 0 | J119: 9204025
A121: 1 Account 6205 - Donations is generally non-recoverable. However, the sub-account LEAP funding of account 6205 is generally recoverable.
A123: Note:
A124: 1 | B124: If it has been more than three years since the applicant last filed a cost of service application, additional years of historical actuals should be incorporated into the table, as necessary, to go back to the last cost of service application. If the applicant last filed a cost of service application less than three years ago, a minimum of three years of actual information is required.
A125: 2 | B125: If the applicant is adopting IFRS or an alternate accounting standard as of January 1, 2012 for financial reporting purposes, 2011 must be presented on both a CGAAP and MIFRS (or alternate accounting standard) basis.
A126: 3 | B126: If the applicant is adopting IFRS or an alternate accounting standard as of January 1, 2013 for financial reporting purposes, 2012 must be presented on both a CGAAP and MIFRS (or alternate accounting standard) basis.

Sheet App.2-H_OM&A_Detailed_Analysis
K1: File Number: | L1: EB-2012-0109
K2: Exhibit: | L2: 4
K3: Tab:
K4: Schedule:
K5: Page: | L5: 21
K7: Date: | L7: July 17,2013
A9: Appendix 2-H
A10: OM&A Detailed Variance Analysis
A11: (excluding Depreciation and Amortization)
A14: Account | B14: Description | C14: Last Board-approved Rebasing Year (2008 Year) | D14: 2008 Actual | E14: Most Current Actuals Year 2011 | F14: Test Year 2013 | G14: 2008 Board Approved Versus 2008 Actual | I14: Test Year Versus Last Rebasing | K14: Test Year Versus Most Current Actuals
G15: Variance ($) | H15: Percentage Change (%) | I15: Variance ($) | J15: Percentage Change (%) | K15: Variance ($) | L15: Percentage Change (%)
A16: Reporting Basis | C16: CGAAP | D16: CGAAP | E16: CGAAP | F16: CGAAP
A17: Operations
A18: 5005 | B18: Operation Supervision and Engineering | C18: 244352 | D18: 311749 | E18: 327413.65 | F18: 273250 | G18: =D18-C18 -> 67397 | H18: =IF(C18=0,"",(D18/C18)-1) -> 0.2758193098 | I18: =F18-C18 -> 28898 | J18: =IF(C18=0,"",(F18/C18)-1) -> 0.1182638161 | K18: =F18-E18 -> -54163.65 | L18: =IF(E18=0,"",(F18/E18)-1) -> -0.1654288085
A19: 5010 | B19: Load Dispatching | C19: 16375 | D19: 38989.01 | E19: 31918.02 | F19: 114745 | G19: =D19-C19 -> 22614.01 | H19: =IF(C19=0,"",(D19/C19)-1) -> 1.381008244 | I19: =F19-C19 -> 98370 | J19: =IF(C19=0,"",(F19/C19)-1) -> 6.007328244 | K19: =F19-E19 -> 82826.98 | L19: =IF(E19=0,"",(F19/E19)-1) -> 2.594991168
A20: 5012 | B20: Station Buildings and Fixtures Expense | C20: 36464 | D20: 40427.75 | E20: 25755.04 | F20: 29322 | G20: 3963.75 | H20: 0.1087031044 | I20: -7142 | J20: -0.1958644142 | K20: 3566.96 | L20: 0.138495611
A21: 5014 | B21: Transformer Station Equipment - Operation Labour | C21: 6205 | D21: 6001.62 | E21: 15354.16 | F21: 24787 | G21: -203.38 | H21: -0.03277679291 | I21: 18582 | J21: 2.994681708 | K21: 9432.84 | L21: 0.6143507688
A22: 5015 | B22: Transformer Station Equipment - Operation Supplies and Expenses | C22: 51220 | D22: 77927.69 | E22: 96170.5 | F22: 102609 | G22: 26707.69 | H22: 0.5214308864 | I22: 51389 | J22: 1.003299492 | K22: 6438.5 | L22: 0.06694880447
A23: 5016 | B23: Distribution Station Equipment - Operation Labour | C23: 1959 | D23: 2480.68 | E23: 4207.98 | F23: 1962 | G23: 521.68 | H23: 0.2662991322 | I23: 3 | J23: 0.001531393568 | K23: -2245.98 | L23: -0.5337430311
A24: 5017 | B24: Distribution Station Equipment - Operation Supplies and Expenses | C24: 3612 | D24: 3421.08 | E24: 1154.95 | F24: 520 | G24: -190.92 | H24: -0.05285714286 | I24: -3092 | J24: -0.8560354374 | K24: -634.95 | L24: -0.5497640591
A25: 5020 | B25: Overhead Distribution Lines and Feeders - Operation Labour | C25: 3019 | D25: 1222.05 | E25: 1927.65 | F25: 1962 | G25: -1796.95 | H25: -0.5952136469 | I25: -1057 | J25: -0.3501159324 | K25: 34.35 | L25: 0.01781962493
A26: 5025 | B26: Overhead Distribution Lines and Feeders - Operation Supplies and Expenses | C26: 13806 | D26: 720.48 | E26: 1976.34 | F26: 12752 | G26: -13085.52 | H26: -0.9478139939 | I26: -1054 | J26: -0.07634361872 | K26: 10775.66 | L26: 5.452331077
A27: 5030 | B27: Overhead Sub-transmission Feeders - Operation | C27: 0 | D27: 0 | E27: 0 | F27: 0 | G27: 0 | I27: 0 | K27: 0
A28: 5035 | B28: Overhead Distribution Transformers - Operation | C28: 14800 | D28: 1043.97 | E28: 3868.05 | F28: 5154 | G28: -13756.03 | H28: -0.9294614865 | I28: -9646 | J28: -0.6517567568 | K28: 1285.95 | L28: 0.3324543375
A29: 5040 | B29: Underground Distribution Lines and Feeders - Operation Labour | C29: 1043 | D29: 1137.18 | E29: 1178.14 | F29: 0 | G29: 94.18 | H29: 0.09029721956 | I29: -1043 | J29: -1 | K29: -1178.14 | L29: -1
A30: 5045 | B30: Underground Distribution Lines and Feeders - Operation Supplies and Expenses | C30: 18921 | D30: 11204.41 | E30: 6267.08 | F30: 11990 | G30: -7716.59 | H30: -0.4078320385 | I30: -6931 | J30: -0.3663125628 | K30: 5722.92 | L30: 0.9131716844
A31: 5050 | B31: Underground Sub-transmission Feeders - Operation | C31: 0 | D31: 0 | E31: 0 | F31: 0 | G31: 0 | I31: 0 | K31: 0
A32: 5055 | B32: Underground Distribution Transformers - Operation | C32: 3290 | D32: 1829.99 | E32: 685.19 | F32: 0 | G32: -1460.01 | H32: -0.4437720365 | I32: -3290 | J32: -1 | K32: -685.19 | L32: -1
A33: 5060 | B33: Street Lighting and Signal System Expense | C33: 0 | D33: 0 | E33: 0 | F33: 0 | G33: 0 | I33: 0 | K33: 0
A34: 5065 | B34: Meter Expense | C34: 452578 | D34: 305437 | E34: 363773.21 | F34: 593094 | G34: -147141 | H34: -0.3251174383 | I34: 140516 | J34: 0.3104790776 | K34: 229320.79 | L34: 0.6303949375
A35: 5070 | B35: Customer Premises - Operation Labour | C35: 5979 | D35: 897.27 | E35: 460.96 | F35: 5292 | G35: -5081.73 | H35: -0.8499297541 | I35: -687 | J35: -0.1149021576 | K35: 4831.04 | L35: 10.48038875
A36: 5075 | B36: Customer Premises - Operation Materials and Expenses | C36: 0 | D36: 0 | E36: 0 | F36: 0 | G36: 0 | I36: 0 | K36: 0
A37: 5085 | B37: Miscellaneous Distribution Expenses | C37: 118312 | D37: 214419.04 | E37: 182823 | F37: 329209 | G37: 96107.04 | H37: 0.8123186152 | I37: 210897 | J37: 1.78254953 | K37: 146386 | L37: 0.8006979428
A38: 5090 | B38: Underground Distribution Lines and Feeders - Rental Paid | C38: 0 | D38: 0 | E38: 0 | F38: 0 | G38: 0 | I38: 0 | K38: 0
A39: 5095 | B39: Overhead Distribution Lines and Feeders - Rental Paid | C39: 6285 | D39: 0 | E39: 6869.06 | F39: 25403 | G39: -6285 | H39: -1 | I39: 19118 | J39: 3.041845664 | K39: 18533.94 | L39: 2.698177043
A40: 5096 | B40: Other Rent | C40: 0 | D40: 0 | E40: 4539.64 | F40: 44455 | G40: 0 | I40: 44455 | K40: 39915.36 | L40: 8.792626728
A41: Total - Operations | C41: =SUM(C18:C40) -> 998220 | D41: =SUM(D18:D40) -> 1018908.22 | E41: =SUM(E18:E40) -> 1076342.62 | F41: =SUM(F18:F40) -> 1576506 | G41: 20688.22 | H41: 0.0207251107 | I41: 578286 | J41: 0.5793171846 | K41: 500163.38 | L41: 0.4646878891
A42: Account | B42: Description
A43: Maintenance
A44: 5105 | B44: Maintenance Supervision and Engineering | C44: 280966 | D44: 301446.33 | E44: 307486.4 | F44: 499599 | G44: =D44-C44 -> 20480.33 | H44: =IF(C44=0,"",(D44/C44)-1) -> 0.07289255639 | I44: =F44-C44 -> 218633 | J44: =IF(C44=0,"",(F44/C44)-1) -> 0.7781475339 | K44: =F44-E44 -> 192112.6 | L44: =IF(E44=0,"",(F44/E44)-1) -> 0.6247840555
A45: 5110 | B45: Maintenance of Buildings and Fixtures - Distribution Stations | C45: 3970 | D45: 0 | E45: 1891.99 | F45: 2158 | G45: -3970 | H45: =IF(C45=0,"",(D45/C45)-1) -> -1 | I45: -1812 | J45: -0.4564231738 | K45: 266.01 | L45: 0.1405979947
A46: 5112 | B46: Maintenance of Transformer Station Equipment | C46: 0 | D46: 0 | E46: 0 | F46: 0 | G46: 0 | I46: 0 | K46: 0
A47: 5114 | B47: Maintenance of Distribution Station Equipment | C47: 16206 | D47: 7164.02 | E47: 5684 | F47: 9805 | G47: -9041.98 | H47: -0.557940269 | I47: -6401 | J47: -0.3949771689 | K47: 4121 | L47: 0.7250175932
A48: 5120 | B48: Maintenance of Poles, Towers and Fixtures | C48: 153188 | D48: 182780.21 | E48: 44138.61 | F48: 75414 | G48: 29592.21 | H48: 0.1931757709 | I48: -77774 | J48: -0.5077029532 | K48: 31275.39 | L48: 0.7085721549
A49: 5125 | B49: Maintenance of Overhead Conductors and Devices | C49: 194468 | D49: 116671.06 | E49: 196827.12 | F49: 242022 | G49: -77796.94 | H49: -0.4000500854 | I49: 47554 | J49: 0.244533805 | K49: 45194.88 | L49: 0.2296171381
A50: 5130 | B50: Maintenance of Overhead Services | C50: 201225 | D50: 230266.37 | E50: 218602.26 | F50: 247604 | G50: 29041.37 | H50: 0.1443228724 | I50: 46379 | J50: 0.2304832898 | K50: 29001.74 | L50: 0.1326689852
A51: 5135 | B51: Overhead Distribution Lines and Feeders - Right of Way | C51: 333592 | D51: 443358.64 | E51: 348542.16 | F51: 499535 | G51: 109766.64 | H51: 0.3290445814 | I51: 165943 | J51: 0.4974429842 | K51: 150992.84 | L51: 0.433212556
A52: 5145 | B52: Maintenance of Underground Conduit | C52: 66733 | D52: 43295.03 | E52: 54613.68 | F52: 56902 | G52: -23437.97 | H52: -0.351220086 | I52: -9831 | J52: -0.1473184182 | K52: 2288.32 | L52: 0.04190012466
A53: 5150 | B53: Maintenance of Underground Conductors and Devices | C53: 111669 | D53: 78959.92 | E53: 71834.65 | F53: 82311 | G53: -32709.08 | H53: -0.2929110138 | I53: -29358 | J53: -0.2629019692 | K53: 10476.35 | L53: 0.1458397862
A54: 5155 | B54: Maintenance of Underground Services | C54: 204053 | D54: 210769.36 | E54: 138372.07 | F54: 124877 | G54: 6716.36 | H54: 0.03291478194 | I54: -79176 | J54: -0.3880168388 | K54: -13495.07 | L54: -0.09752741287
A55: 5160 | B55: Maintenance of Line Transformers | C55: 159264 | D55: 142264.74 | E55: 68590.53 | F55: 192863 | G55: -16999.26 | H55: -0.1067363623 | I55: 33599 | J55: 0.2109641853 | K55: 124272.47 | L55: 1.811802154
A56: 5165 | B56: Maintenance of Street Lighting and Signal Systems | C56: 0 | D56: 0 | E56: 0 | F56: 0 | G56: 0 | I56: 0 | K56: 0
A57: 5170 | B57: Sentinel Lights - Labour | C57: 0 | D57: 0 | E57: 0 | F57: 0 | G57: 0 | I57: 0 | K57: 0
A58: 5172 | B58: Sentinel Lights - Materials and Expenses | C58: 0 | D58: 0 | E58: 0 | F58: 0 | G58: 0 | I58: 0 | K58: 0
A59: 5175 | B59: Maintenance of Meters | C59: 0 | D59: 170.84 | E59: 0 | F59: 0 | G59: 170.84 | I59: 0 | K59: 0
A60: 5178 | B60: Customer Installations Expenses - Leased Property | C60: 0 | D60: 0 | E60: 0 | F60: 0 | G60: 0 | I60: 0 | K60: 0
A61: 5195 | B61: Maintenance of Other Installations on Customer Premises | C61: 0 | D61: 0 | E61: 0 | F61: 0 | G61: 0 | I61: 0 | K61: 0
A62: Total - Maintenance | C62: =SUM(C44:C61) -> 1725334 | D62: =SUM(D44:D61) -> 1757146.52 | E62: =SUM(E44:E61) -> 1456583.47 | F62: =SUM(F44:F61) -> 2033090 | G62: =D62-C62 -> 31812.52 | H62: 0.01843847046 | I62: 307756 | J62: 0.1783747379 | K62: 576506.53 | L62: 0.3957936788
A63: Account | B63: Description
A64: Billing and Collecting
A65: 5305 | B65: Supervision | C65: 135049 | D65: 167396.72 | E65: 161326.36 | F65: 292372 | G65: =D65-C65 -> 32347.72 | H65: =IF(C65=0,"",(D65/C65)-1) -> 0.2395258017 | I65: =F65-C65 -> 157323 | J65: =IF(C65=0,"",(F65/C65)-1) -> 1.164932728 | K65: =F65-E65 -> 131045.64 | L65: =IF(E65=0,"",(F65/E65)-1) -> 0.8123014739
A66: 5310 | B66: Meter Reading Expense | C66: 371227 | D66: 409719.47 | E66: 354421.94 | F66: 240556 | G66: 38492.47 | H66: 0.1036898448 | I66: -130671 | J66: -0.3519975648 | K66: -113865.94 | L66: -0.3212722666
A67: 5315 | B67: Customer Billing | C67: 466741 | D67: 517915.53 | E67: 495100.55 | F67: 964616 | G67: 51174.53 | H67: 0.1096422427 | I67: 497875 | J67: 1.066705089 | K67: 469515.45 | L67: 0.9483234264
A68: 5320 | B68: Collecting | C68: 300111 | D68: 334793.43 | E68: 322652.73 | F68: 536496 | G68: 34682.43 | H68: 0.1155653408 | I68: 236385 | J68: 0.7876585663 | K68: 213843.27 | L68: 0.6627660333
A69: 5325 | B69: Collecting - Cash Over and Short | C69: 0 | D69: 0 | E69: 0 | F69: 0 | G69: 0 | I69: 0 | K69: 0
A70: 5330 | B70: Collection Charges | C70: 2251 | D70: 282.27 | E70: 833.22 | F70: 500 | G70: -1968.73 | H70: -0.8746023989 | I70: -1751 | J70: -0.7778764993 | K70: -333.22 | L70: -0.3999183889
A71: 5335 | B71: Bad Debt Expense | C71: 183090 | D71: 130318.21 | E71: 307531.54 | F71: 306000 | G71: -52771.79 | H71: -0.2882286853 | I71: 122910 | J71: 0.6713091922 | K71: -1531.54 | L71: -0.004980107081
A72: 5340 | B72: Miscellaneous Customer Accounts Expenses | C72: 649367 | D72: 418491.79 | E72: 403315.91 | F72: 522675 | G72: -230875.21 | H72: -0.3555388709 | I72: -126692 | J72: -0.1951007674 | K72: 119359.09 | L72: 0.2959444124
A73: Total - Billing and Collecting | C73: =SUM(C65:C72) -> 2107836 | D73: =SUM(D65:D72) -> 1978917.42 | E73: =SUM(E65:E72) -> 2045182.25 | F73: =SUM(F65:F72) -> 2863215 | G73: =D73-C73 -> -128918.58 | H73: -0.06116157993 | I73: 755379 | J73: 0.3583670646 | K73: 818032.75 | L73: 0.3999803685
A74: Account | B74: Description
A75: Community Relations
A76: 5405 | B76: Supervision | C76: 0 | D76: 0 | E76: 0 | F76: 0 | G76: =D76-C76 -> 0 | H76: =IF(C76=0,"",(D76/C76)-1) ->  | I76: =F76-C76 -> 0 | J76: =IF(C76=0,"",(F76/C76)-1) ->  | K76: =F76-E76 -> 0 | L76: =IF(E76=0,"",(F76/E76)-1) -> 
A77: 5410 | B77: Community Relations - Sundry | C77: 114588 | D77: 106287.64 | E77: 106211.08 | F77: 152526 | G77: -8300.36 | H77: -0.07243655531 | I77: 37938 | J77: 0.3310817887 | K77: 46314.92 | L77: 0.4360648625
A78: 5415 | B78: Energy Conservation | C78: 0 | D78: 0 | E78: 0 | F78: 0 | G78: 0 | I78: 0 | K78: 0
A79: 5420 | B79: Community Safety Program | C79: 12743 | D79: 6948.94 | E79: 9412.07 | F79: 19051 | G79: -5794.06 | H79: -0.4546857098 | I79: 6308 | J79: 0.495016872 | K79: 9638.93 | L79: 1.024103093
A80: 5425 | B80: Miscellaneous Customer Service and Informational Expenses | C80: 0 | D80: 0 | E80: 0 | F80: 61200 | G80: 0 | I80: 61200 | K80: 61200
A81: 5505 | B81: Supervision | C81: 0 | D81: 0 | E81: 0 | F81: 0 | G81: 0 | I81: 0 | K81: 0
A82: 5510 | B82: Demonstrating and Selling Expense | C82: 0 | D82: 0 | E82: 0 | F82: 0 | G82: 0 | I82: 0 | K82: 0
A83: 5515 | B83: Advertising Expenses | C83: 0 | D83: 0 | E83: 0 | F83: 0 | G83: 0 | I83: 0 | K83: 0
A84: 5520 | B84: Miscellaneous Sales Expense | C84: 0 | D84: 0 | E84: 0 | F84: 0 | G84: 0 | I84: 0 | K84: 0
A85: Total - Community Relations | C85: =SUM(C76:C84) -> 127331 | D85: =SUM(D76:D84) -> 113236.58 | E85: =SUM(E76:E84) -> 115623.15 | F85: =SUM(F76:F84) -> 232777 | G85: =D85-C85 -> -14094.42 | H85: -0.1106911907 | I85: 105446 | J85: 0.8281251227 | K85: 117153.85 | L85: 1.013238698
A86: Account | B86: Description
A87: Administrative and General Expenses
A88: 5605 | B88: Executive Salaries and Expenses | C88: 392793 | D88: 424359.82 | E88: 319672.67 | F88: 729401 | G88: =D88-C88 -> 31566.82 | H88: =IF(C88=0,"",(D88/C88)-1) -> 0.08036502687 | I88: =F88-C88 -> 336608 | J88: =IF(C88=0,"",(F88/C88)-1) -> 0.8569602819 | K88: =F88-E88 -> 409728.33 | L88: =IF(E88=0,"",(F88/E88)-1) -> 1.281712103
A89: 5610 | B89: Management Salaries and Expenses | C89: 662071 | D89: 370449.08 | E89: 302362.9 | F89: 384158 | G89: -291621.92 | H89: -0.4404692548 | I89: -277913 | J89: -0.4197631372 | K89: 81795.1 | L89: 0.2705196305
A90: 5615 | B90: General Administrative Salaries and Expenses | C90: 664697 | D90: 909393.12 | E90: 884743.91 | F90: 582990 | G90: 244696.12 | H90: 0.3681318255 | I90: -81707 | J90: -0.122923678 | K90: -301753.91 | L90: -0.3410635627
A91: 5620 | B91: Office Supplies and Expenses | C91: 48202 | D91: 65707.31 | E91: 51082.21 | F91: 80250 | G91: 17505.31 | H91: 0.3631656363 | I91: 32048 | J91: 0.6648686776 | K91: 29167.79 | L91: 0.5709970262
A92: 5625 | B92: Administrative Expense Transferred - Credit | C92: 0 | D92: 0 | E92: 0 | F92: 0 | G92: 0 | I92: 0 | K92: 0
A93: 5630 | B93: Outside Services Employed | C93: 164324 | D93: 110785.82 | E93: 127714.97 | F93: 220000 | G93: -53538.18 | H93: -0.3258086463 | I93: 55676 | J93: 0.3388184319 | K93: 92285.03 | L93: 0.7225858488
A94: 5635 | B94: Property Insurance | C94: 0 | D94: 151792.88 | E94: 99677.92 | F94: 133133 | G94: 151792.88 | I94: 133133 | K94: 33455.08 | L94: 0.3356318029
A95: 5640 | B95: Injuries and Damages | C95: 0 | D95: 12642.12 | E95: 0 | F95: 0 | G95: 12642.12 | I95: 0 | K95: 0
A96: 5645 | B96: OMERS Pensions and Benefits | C96: 101036 | D96: 220062.3 | E96: 175099.34 | F96: 108000 | G96: 119026.3 | H96: 1.178058316 | I96: 6964 | J96: 0.06892592739 | K96: -67099.34 | L96: -0.3832072697
A97: 5646 | B97: Employee Pensions and OPEB | C97: 0 | D97: 0 | E97: 0 | F97: 0 | G97: 0 | I97: =F97-C97 -> 0 | J97: =IF(C97=0,"",(F97/C97)-1) ->  | K97: =F97-E97 -> 0 | L97: =IF(E97=0,"",(F97/E97)-1) -> 
A98: 5647 | B98: Employee Sick Leave | C98: 0 | D98: 0 | E98: 0 | F98: 0 | G98: 0 | I98: =F98-C98 -> 0 | J98: =IF(C98=0,"",(F98/C98)-1) ->  | K98: =F98-E98 -> 0 | L98: =IF(E98=0,"",(F98/E98)-1) -> 
A99: 5650 | B99: Franchise Requirements | C99: 49316 | D99: 50129.79 | E99: 53775 | F99: 59000 | G99: 813.79 | H99: 0.01650154108 | I99: 9684 | J99: 0.1963662909 | K99: 5225 | L99: 0.09716410972
A100: 5655 | B100: Regulatory Expenses | C100: 196822 | D100: 248012.35 | E100: 120735.35 | F100: 144500 | G100: 51190.35 | H100: 0.2600844926 | I100: -52322 | J100: -0.2658341039 | K100: 23764.65 | L100: 0.1968325764
A101: 5660 | B101: General Advertising Expenses | C101: 23802 | D101: 27062.36 | E101: 15893.5 | F101: 40000 | G101: 3260.36 | H101: 0.1369784052 | I101: 16198 | J101: 0.6805310478 | K101: 24106.5 | L101: 1.516752131
A102: 5665 | B102: Miscellaneous General Expenses | C102: 171754 | D102: 184694.96 | E102: 151291.4 | F102: -1995 | G102: 12940.96 | H102: 0.0753459017 | I102: -173749 | J102: -1.01161545 | K102: -153286.4 | L102: -1.013186473
A103: 5670 | B103: Rent | C103: 0 | D103: 0 | E103: 0 | F103: 0 | G103: 0 | I103: 0 | K103: 0
A104: 5672 | B104: Lease Payment Charge | C104: 0 | D104: 0 | E104: 0 | F104: 0 | G104: 0 | I104: 0 | K104: 0
A105: 5675 | B105: Maintenance of General Plant | C105: 54927 | D105: 0 | E105: 0 | F105: 0 | G105: -54927 | H105: -1 | I105: -54927 | J105: -1 | K105: 0
A106: 5680 | B106: Electrical Safety Authority Fees | C106: 18309 | D106: 15642.11 | E106: 16012.68 | F106: 19000 | G106: -2666.89 | H106: -0.1456600579 | I106: 691 | J106: 0.03774100169 | K106: 2987.32 | L106: 0.1865596515
A107: 5681 | B107: Special Purpose Charge Expense | C107: 0 | D107: 0 | E107: 0 | F107: 0 | G107: 0 | I107: 0 | K107: 0
A108: 5685 | B108: Independent Electricity System Operator Fees and Penalties | C108: 0 | D108: 54424.72 | E108: 51757.74 | F108: 0 | G108: 54424.72 | I108: 0 | K108: -51757.74 | L108: -1
A109: 5695 | B109: OM&A Contra Account | C109: 0 | D109: -19371.22 | E109: -51215.29 | F109: 0 | G109: -19371.22 | I109: 0 | K109: 51215.29 | L109: -1
A110: 6205 | B110: Donations | C110: 0 | G110: 0 | I110: =F110-C110 -> 0 | J110: =IF(C110=0,"",(F110/C110)-1) ->  | K110: =F110-E110 -> 0 | L110: =IF(E110=0,"",(F110/E110)-1) -> 
A111: 6205 | B111: Donations, Sub-account LEAP Funding | C111: 0 | D111: 0 | E111: 0 | G111: 0 | I111: 0 | K111: 0
A112: Total - Administrative and General Expenses | C112: =SUM(C88:C111) -> 2548053 | D112: =SUM(D88:D111) -> 2825787.52 | E112: =SUM(E88:E111) -> 2318604.3 | F112: =SUM(F88:F111) -> 2498437 | G112: =D112-C112 -> 277734.52 | H112: 0.1089987218 | I112: -49616 | J112: -0.01947212244 | K112: 179832.7 | L112: 0.07756075498
A113: Total OM&A | C113: =C112+C85+C73+C62+C41 -> 7506774 | D113: =D112+D85+D73+D62+D41 -> 7693996.26 | E113: =E112+E85+E73+E62+E41 -> 7012335.79 | F113: =F112+F85+F73+F62+F41 -> 9204025 | G113: =D113-C113 -> 187222.26 | H113: 0.02494044179 | I113: 1697251 | J113: 0.2260959235 | K113: 2191689.21 | L113: 0.3125476697
A114: Adjustments for non-recoverable items
A115: 5681 | B115: Special Purpose Charge Expense | C115: 0 | E115: 0 | F115: 0 | I115: =F115-C115 -> 0 | J115: =IF(C115=0,"",(F115/C115)-1) ->  | K115: =F115-E115 -> 0 | L115: =IF(E115=0,"",(F115/E115)-1) -> 
A116: 6205 | B116: Donations1 | C116: 0 | I116: =F116-C116 -> 0 | K116: =F116-E116 -> 0
I117: =F117-C117 -> 0 | K117: =F117-E117 -> 0
I118: =F118-C118 -> 0 | K118: =F118-E118 -> 0
I119: =F119-C119 -> 0 | K119: =F119-E119 -> 0
A120: Total Recoverable OM&A | C120: =C113-SUM(C115:C119) -> 7506774 | D120: =D113-SUM(D115:D119) -> 7693996.26 | E120: =E113-SUM(E115:E119) -> 7012335.79 | F120: =F113-SUM(F115:F119) -> 9204025 | G120: =D120-C120 -> 187222.26 | H120: =IF(C120=0,"",(D120/C120)-1) -> 0.02494044179 | I120: =I113-SUM(I115:I119) -> 1697251 | J120: 0.2260959235 | K120: =K113-SUM(K115:K119) -> 2191689.21 | L120: 0.3125476697
A122: 1 Account 6205 - Donations is generally non-recoverable. However, the sub-account LEAP funding of account 6205 is generally recoverable.
A125: Note:
A127: 1 | B127: If the applicant is adopting IFRS or an alternate accounting standard as of January 1, 2013 for financial reporting purposes, Column D "Most Current Actual Year" must be provided on CGAAP.
A128: 2 | B128: If the applicant is adopting IFRS or an alternate accounting standard as of January 1, 2012 for financial reporting purposes, Column D "Most Current Actual Year" must be provided on that standard.

Sheet App.2-I_OM&A_Summary_Analys
L1: File Number: | M1: EB-2012-0109
L2: Exhibit: | M2: 4
L3: Tab:
L4: Schedule:
L5: Page: | M5: 22
L7: Date: | M7: July 17,2013
A9: Appendix 2-I
A10: Summary of Recoverable OM&A Expenses
B13: Last Rebasing Year (2008 BA) | C13: Last Rebasing Year (2008 Actuals) | D13: 2009 Actuals | E13: 2010 Actuals | F13: 2011 Actuals | G13: 2012 Bridge Year | H13: 2013 Test Year
A14: Reporting Basis | B14: CGAAP | C14: CGAAP | D14: CGAAP | E14: CGAAP | F14: CGAAP | G14: CGAAP | H14: CGAAP
A15: Operations | B15: 998220 | C15: 1018908.22 | D15: 1057111.6 | E15: 1008391.28 | F15: 1076342.62 | G15: 1111298 | H15: 1576506
A16: Maintenance | B16: 1725334 | C16: 1757146.52 | D16: 1723356.22 | E16: 1681173.13 | F16: 1456583.47 | G16: 1802869 | H16: 2033090
A17: SubTotal | B17: =SUM(B15:B16) -> 2723554 | C17: 2776054.74 | D17: 2780467.82 | E17: 2689564.41 | F17: 2532926.09 | G17: 2914167 | H17: 3609596
A18: %Change (year over year) | E18: =IF(ISERROR((E17-C17)/C17), "", (E17-C17)/C17) -> -0.03115584457 | F18: =IF(ISERROR((F17-E17)/E17), "", (F17-E17)/E17) -> -0.05823928939 | G18: =IF(ISERROR((G17-F17)/F17), "", (G17-F17)/F17) -> 0.1505140286 | H18: =IF(ISERROR((H17-G17)/G17), "", (H17-G17)/G17) -> 0.238637319
A19: %Change (Test Year vs Last Rebasing Year - Actual) | H19: =IF(ISERROR((H17-C17)/C17), "", (H17-C17)/C17) -> 0.3002611036
A20: Billing and Collecting | B20: 2107836 | C20: 1978917.42 | D20: 2205689.54 | E20: 2166452.93 | F20: 2045182.25 | G20: 2208332 | H20: 2863215
A21: Community Relations | B21: 127331 | C21: 113236.58 | D21: 127829.24 | E21: 131379.19 | F21: 115623.15 | G21: 169137 | H21: 232777
A22: Administrative and General | B22: 2548053 | C22: 2825788 | D22: 2614082 | E22: 2594789 | F22: 2318604 | G22: 2521037.96 | H22: 2498437
A23: SubTotal | B23: =SUM(B20:B22) -> 4783220 | C23: 4917942 | D23: 4947600.78 | E23: 4892621.12 | F23: 4479409.4 | G23: 4898506.96 | H23: 5594429
A24: %Change (year over year) | E24: =IF(ISERROR((E23-C23)/C23), "", (E23-C23)/C23) -> -0.005148673978 | F24: =IF(ISERROR((F23-E23)/E23), "", (F23-E23)/E23) -> -0.08445610438 | G24: =IF(ISERROR((G23-F23)/F23), "", (G23-F23)/F23) -> 0.09356089667 | H24: =IF(ISERROR((H23-G23)/G23), "", (H23-G23)/G23) -> 0.1420681946
A25: %Change (Test Year vs Last Rebasing Year - Actual) | H25: =IF(ISERROR((H23-C23)/C23), "", (H23-C23)/C23) -> 0.1375548959
A26: Total | B26: =SUM(B23,B17) -> 7506774 | C26: 7693996.74 | D26: 7728068.6 | E26: 7582185.53 | F26: 7012335.49 | G26: 7812673.96 | H26: 9204025
A27: %Change (year over year) | E27: =IF(ISERROR((E26-C26)/C26), "", (E26-C26)/C26) -> -0.01453226636 | F27: =IF(ISERROR((F26-E26)/E26), "", (F26-E26)/E26) -> -0.0751564358 | G27: =IF(ISERROR((G26-F26)/F26), "", (G26-F26)/F26) -> 0.1141329406 | H27: =IF(ISERROR((H26-G26)/G26), "", (H26-G26)/G26) -> 0.1780889676
B30: =B13 -> Last Rebasing Year (2008 BA) | C30: Last Rebasing Year (2008 Actuals) | D30: =D13 -> 2009 Actuals | E30: 2010 Actuals | F30: 2011 Actuals | G30: 2012 Bridge Year | H30: 2013 Test Year
A31: Operations | B31: =B15 -> 998220 | C31: 1018908.22 | D31: =D15 -> 1057111.6 | E31: 1008391.28 | F31: 1076342.62 | G31: 1111298 | H31: 1576506
A32: Maintenance | B32: 1725334 | C32: 1757146.52 | D32: =D16 -> 1723356.22 | E32: 1681173.13 | F32: 1456583.47 | G32: 1802869 | H32: 2033090
A33: Billing and Collecting | B33: =B20 -> 2107836 | C33: 1978917.42 | D33: =D20 -> 2205689.54 | E33: 2166452.93 | F33: 2045182.25 | G33: 2208332 | H33: 2863215
A34: Community Relations | B34: 127331 | C34: 113236.58 | D34: =D21 -> 127829.24 | E34: 131379.19 | F34: 115623.15 | G34: 169137 | H34: 232777
A35: Administrative and General | B35: 2548053 | C35: 2825788 | D35: =D22 -> 2614082 | E35: 2594789 | F35: 2318604 | G35: 2521037.96 | H35: 2498437
A36: Total | B36: =SUM(B31:B35) -> 7506774 | C36: 7693996.74 | D36: 7728068.6 | E36: 7582185.53 | F36: 7012335.49 | G36: 7812673.96 | H36: 9204025
A37: %Change (year over year) | E37: =IF(ISERROR((E36-C36)/C36), "", (E36-C36)/C36) -> -0.01453226636 | F37: =IF(ISERROR((F36-E36)/E36), "", (F36-E36)/E36) -> -0.0751564358 | G37: =IF(ISERROR((G36-F36)/F36), "", (G36-F36)/F36) -> 0.1141329406 | H37: =IF(ISERROR((H36-G36)/G36), "", (H36-G36)/G36) -> 0.1780889676
B40: =B13 -> Last Rebasing Year (2008 BA) | C40: =C13 -> Last Rebasing Year (2008 Actuals) | D40: =+D13 -> 2009 Actuals | E40: Variance 2008 BA – 2008 Actuals | F40: =E13 -> 2010 Actuals | G40: Variance 2010 Actuals vs. 2008 Actuals | H40: =F13 -> 2011 Actuals | I40: Variance 2011 Actuals vs. 2010 Actuals | J40: =G13 -> 2012 Bridge Year | K40: Variance 2012 Bridge vs. 2011 Actuals | L40: =H13 -> 2013 Test Year | M40: Variance 2013 Test vs. 2012 Bridge
A41: Operations | B41: =B15 -> 998220 | C41: 1018908.22 | D41: 1057111.6 | E41: =B41-C41 -> -20688.22 | F41: =E15 -> 1008391.28 | G41: =F41-C41 -> -10516.94 | H41: =F15 -> 1076342.62 | I41: =H41-F41 -> 67951.34 | J41: =G15 -> 1111298 | K41: =J41-H41 -> 34955.38 | L41: =H15 -> 1576506 | M41: =L41-J41 -> 465208
A42: Maintenance | B42: 1725334 | C42: 1757146.52 | D42: 1723356.22 | E42: =B42-C42 -> -31812.52 | F42: =E16 -> 1681173.13 | G42: =F42-C42 -> -75973.39 | H42: =F16 -> 1456583.47 | I42: =H42-F42 -> -224589.66 | J42: =G16 -> 1802869 | K42: 346285.53 | L42: =H16 -> 2033090 | M42: 230221
A43: Billing and Collecting | B43: =B20 -> 2107836 | C43: 1978917.42 | D43: =D20 -> 2205689.54 | E43: =B43-C43 -> 128918.58 | F43: =E20 -> 2166452.93 | G43: =F43-C43 -> 187535.51 | H43: =F20 -> 2045182.25 | I43: -121270.68 | J43: =G20 -> 2208332 | K43: 163149.75 | L43: =H20 -> 2863215 | M43: 654883
A44: Community Relations | B44: 127331 | C44: 113236.58 | D44: =D21 -> 127829.24 | E44: =B44-C44 -> 14094.42 | F44: =E21 -> 131379.19 | G44: =F44-C44 -> 18142.61 | H44: =F21 -> 115623.15 | I44: -15756.04 | J44: =G21 -> 169137 | K44: 53513.85 | L44: =H21 -> 232777 | M44: 63640
A45: Administrative and General | B45: 2548053 | C45: 2825788 | D45: =D22 -> 2614082 | E45: =B45-C45 -> -277735 | F45: =E22 -> 2594789 | G45: =F45-C45 -> -230999 | H45: =F22 -> 2318604 | I45: -276185 | J45: =G22 -> 2521037.96 | K45: 202433.96 | L45: =H22 -> 2498437 | M45: -22600.96
A46: Total OM&A Expenses | B46: =SUM(B41:B45) -> 7506774 | C46: =SUM(C41:C45) -> 7693996.74 | D46: =SUM(D41:D45) -> 7728068.6 | E46: -187222.74 | F46: 7582185.53 | G46: -111811.21 | H46: 7012335.49 | I46: -569850.04 | J46: 7812673.96 | K46: 800338.47 | L46: 9204025 | M46: 1391351.04
A47: Variance from previous year | D47: =D46-C46 -> 34071.86 | F47: =F46-D46 -> -145883.07 | H47: =H46-F46 -> -569850.04 | J47: =J46-H46 -> 800338.47 | L47: =L46-J46 -> 1391351.04
A48: Percent change (year over year) | D48: =IF(ISERROR(D47/C46), "", D47/C46) -> 0.004428369435 | F48: =IF(ISERROR(F47/D46), "", F47/D46) -> -0.01887704128 | H48: =IF(ISERROR(H47/F46), "", H47/F46) -> -0.0751564358 | J48: =IF(ISERROR(J47/H46), "", J47/H46) -> 0.1141329406 | L48: =IF(ISERROR(L47/J46), "", L47/J46) -> 0.1780889676
A49: Percent Change: Test year vs. Most Current Actual | H49: =IF(ISERROR((L46-H46)/H46), "", (L46-H46)/H46) -> 0.3125477258
A50: Simple average of % variance for all years | H50: =IF(ISERROR((L46-C46)/C46), "", (L46-C46)/C46) -> 0.1962605796 | M50: =H50/5 -> 0.03925211593
A51: Compound Annual Growth Rate for all years | H51: =IF(ISERROR((L47-C47)/C47), "", (L47-C47)/C47) ->  | M51: =IF((L46-C46)=0,"",POWER((L46)/C46,1/5))-1 -> 0.03649010008
A52: Compound Growth Rate (2011 Actuals vs. 2008 Actuals) | H52: =IF(ISERROR((H46/C46)^(1/(2011-2008))-1),"",POWER((H46)/C46,1/3))-1 -> -0.03044995851
A54: Note:
A56: 1 "BA" = Board-Approved
A57: 2 If it has been more than three years since the applicant last filed a cost of service application, additional years of historical actuals should be incorporated into the table, as necessary, to go back to the last cost of service application. If the applicant last filed a cost of service application less than three years ago, a minimum of three years of actual information is required.
A59: 3 Recoverable OM&A that is included on these tables should be identical to the recoverable OM&A that is shown for the corresponding periods on Appendix 2-H.

Sheet App.2-J- Attached Seperately
G1: File Number: | H1: EB-2012-0109
G2: Exhibit: | H2: 4
G3: Tab:
G4: Schedule:
G5: Page:
G7: Date:
A10: Appendix 2-J has been attached separately due to an apparent glitch with this worksheet.
A11: OM&A Cost Driver Table
A13: OM&A | B13: Last Rebasing Year (2008 Actuals) | C13: 2009 Actuals | D13: 2010 Actuals | E13: 2011 Actuals | F13: 2012 Bridge Year | G13: 2013 Test Year
A35: Notes:
A37: 1 | B37: For each year, a detailed explanation for each cost driver and associated amount is
B38: required.
A39: 2 | B39: The closing balance for each year becomes the opening balance for the next year.
A40: 3 | B40: If it has been more than three years since the applicant last filed a cost of service application, additional years of historical actuals should be incorporated into the table, as necessary, to go back to the last cost of service application. If the applicant last filed a cost of service application less than three years ago, a minimum of three years of actual information is required.
A44: 4 | B44: Opening Balance for "Last Rebasing Year" (cell B15) should be equal to the Board-Approved amount.

Sheet App.2-K_Employee Costs
G1: File Number: | H1: ='LDC Info'!$E$18 -> EB-2012-0109
G2: Exhibit: | H2: 4
G3: Tab: | H3: 2
G4: Schedule: | H4: 4
G5: Page: | H5: 24
G7: Date: | H7: July 17,2013
A9: Appendix 2-K
A10: Employee Costs
B12: Last Rebasing Year (2008 Board-Approved) | C12: Last Rebasing Year (2008 Actuals) | D12: 2009 Actuals | E12: 2010 Actuals | F12: 2011 Actuals | G12: 2012 Bridge Year | H12: 2013 Test Year
A13: Reporting Basis | C13: CGAAP | D13: CGAAP | E13: CGAAP | F13: CGAAP | G13: CGAAP | H13: CGAAP
A14: Number of Employees (FTEs including Part-Time)1
A15: Executive | B15: 1.18 | G15: 5.55 | H15: 5
A16: Management | B16: 13.82 | C16: 12.2 | D16: 12.75 | E16: 12.8 | F16: 14.17333333 | G16: 11.7 | H16: 15.1367
A17: Non-Union | B17: 11.24 | C17: 4.45 | D17: 4.75 | E17: 4.75 | F17: 3.666666667 | G17: 4 | H17: 6.9347
A18: Union | B18: 45.63 | C18: 39.11666667 | D18: 39.35 | E18: 39.398 | F18: 38.99833333 | G18: 34.81 | H18: 43.118447
A19: Total | B19: =SUM(B15:B18) -> 71.87 | C19: =SUM(C15:C18) -> 55.76666667 | D19: =SUM(D15:D18) -> 56.85 | E19: =SUM(E15:E18) -> 56.948 | F19: 56.83833333 | G19: 56.06 | H19: 70.189847
A20: Number of Part-Time Employees
A21: Executive
A22: Management
A23: Non-Union
A24: Union | B24: =2*0.25+6*0.42 -> 3.02 | C24: 8 | D24: 11 | E24: 10 | F24: 8 | G24: 11 | H24: 2
A25: Total | B25: =SUM(B21:B24) -> 3.02 | C25: =SUM(C21:C24) -> 8 | D25: 11 | E25: 10 | F25: 8 | G25: 11 | H25: 2
A26: Total Salary and Wages
A27: Executive | G27: 712228.3875 | H27: 642510.1277
A28: Management | B28: 1559871 | C28: 1147193.562 | D28: 1219553.928 | E28: 1301936.132 | F28: 1402206.689 | G28: 962124.31 | H28: 1341843.896
A29: Non-Union | B29: 692837 | C29: 292969.47 | D29: 333514.26 | E29: 347469.19 | F29: 264318.24 | G29: 255555.16 | H29: 495259.0431
A30: Union | B30: 2539737 | C30: 2196880.599 | D30: 2329720.483 | E30: 2413325.7 | F30: 2480547.113 | G30: 2235144.945 | H30: 2807591.042
A31: Total | B31: =SUM(B27:B30) -> 4792445 | C31: =SUM(C27:C30) -> 3637043.631 | D31: 3882788.671 | E31: 4062731.022 | F31: 4147072.042 | G31: 4165052.802 | H31: 5287204.109
A32: Current Benefits
A33: Executive | G33: 130293.56 | H33: 127278.1967
A34: Management | B34: 335518 | C34: 237713.775 | D34: 253607.244 | E34: 268331.633 | F34: 265271.0137 | G34: 247095.3365 | H34: 241628.8244
A35: Non-Union | B35: 134221 | C35: 59072.266 | D35: 70465.74 | E35: 81231.96 | F35: 58529.69 | G35: 59752.8 | H35: 87600.30878
A36: Union | B36: 579203 | C36: 474509.062 | D36: 537307.929 | E36: 579923.289 | F36: 573341.99 | G36: 568261.8454 | H36: 597698.8431
A37: Total | B37: =SUM(B33:B36) -> 1048942 | C37: =SUM(C33:C36) -> 771295.103 | D37: 861380.913 | E37: 929486.882 | F37: 897142.6937 | G37: 1005403.542 | H37: 1054206.173
A38: Accrued Pension and Post-Retirement Benefits
A39: Executive | G39: 223955 | H39: 10653
A40: Management | G40: 16691 | H40: 25567
A41: Non-Union | G41: 6955 | H41: 10653
A42: Union | G42: 54400 | H42: 61128
A43: Total | B43: 849005 | C43: 220062 | D43: 244532 | E43: 215393 | F43: 175099 | G43: =SUM(G39:G42) -> 302001 | H43: 108001
A45: Executive | B45: =B33+B39 -> 0 | C45: 0 | D45: 0 | E45: 0 | F45: 0 | G45: 354248.56 | H45: 137931.1967
A46: Management | B46: 335518 | C46: 237713.775 | D46: 253607.244 | E46: 268331.633 | F46: 265271.0137 | G46: 263786.3365 | H46: 267195.8244
A47: Non-Union | B47: 134221 | C47: 59072.266 | D47: 70465.74 | E47: 81231.96 | F47: 58529.69 | G47: 66707.8 | H47: 98253.30878
A48: Union | B48: 579203 | C48: 474509.062 | D48: 537307.929 | E48: 579923.289 | F48: 573341.99 | G48: 622661.8454 | H48: =H36+H42 -> 658826.8431
A49: Total | B49: 1897947 | C49: 991357.103 | D49: 1105912.913 | E49: 1144879.882 | F49: 1072241.694 | G49: 1307404.542 | H49: 1162207.173
A50: Total Compensation (Salary, Wages, & Benefits)
A51: Executive | B51: =B27+B45 -> 0 | C51: 0 | D51: 0 | E51: 0 | F51: 0 | G51: 1066476.948 | H51: 780441.3245
A52: Management | B52: 1895389 | C52: 1384907.337 | D52: 1473161.172 | E52: 1570267.765 | F52: 1667477.703 | G52: 1225910.646 | H52: 1609039.72
A53: Non-Union | B53: 827058 | C53: 352041.736 | D53: 403980 | E53: 428701.15 | F53: 322847.93 | G53: 322262.96 | H53: 593512.3519
A54: Union | B54: 3118940 | C54: 2671389.661 | D54: 2867028.412 | E54: 2993248.989 | F54: 3053889.103 | G54: 2857806.79 | H54: =H30+H48 -> 3466417.885
A55: Total | B55: 6690392 | C55: 4628400.734 | D55: 4988701.584 | E55: 5207610.904 | F55: 5219313.736 | G55: =G31+G49 -> 5472457.344 | H55: =H31+H49 -> 6449411.282
A56: Compensation - Average Yearly Base Wages
A57: Executive | G57: 128329.4392 | H57: 128502.0255
A58: Management | B58: 1559871 | C58: 94031.09934 | D58: 95651.28847 | E58: 101713.7603 | F58: 98927.50819 | G58: 82032.07607 | H58: 88648.37751
A59: Non-Union | B59: 692837 | C59: 64478.82472 | D59: 70213.52842 | E59: 73111.73474 | F59: 71970.67909 | G59: 62948.4775 | H59: 71417.51526
A60: Union | B60: 2418902 | C60: 52243.31468 | D60: 56338.40699 | E60: 57941.78152 | F60: 60610.5885 | G60: 61558.1794 | H60: 63183.88605
A61: Total | C61: 62361.52734 | D61: 66314.59108 | E61: 69045.57105 | F61: 70898.22549 | G61: 72540.81007 | H61: 74141.83577
A62: Compensation - Average Yearly Overtime
A63: Executive | G63: 0 | H63: 0
A64: Management | B64: 0 | C64: 1.159836066 | D64: 0 | E64: 0 | F64: 5.230950141 | G64: 200.7709402 | H64: 0
A65: Non-Union | B65: 0 | C65: 1357.011236 | D65: 0 | E65: 39.67368421 | F65: 116.1136364 | G65: 940.3125 | H65: 0
A66: Union | B66: 120835 | C66: 3918.950311 | D66: 2866.687878 | E66: 3313.2492 | F66: 2995.901851 | G66: 2651.672508 | H66: 1929.568567
A67: Total | C67: 2857.425995 | D67: 1984.242181 | E67: 2295.494873 | F67: 2064.365053 | G67: 1755.529611 | H67: 1185.356623
A68: Compensation - Average Yearly Incentive Pay
A69: Executive | B69: 0 | C69: 0 | D69: 0 | E69: 0 | F69: 0 | G69: 0 | H69: 0
A70: Management | B70: 0 | C70: 0 | D70: 0 | E70: 0 | F70: 0 | G70: 0 | H70: 0
A71: Non-Union | B71: 0 | C71: 0 | D71: 0 | E71: 0 | F71: 0 | G71: 0 | H71: 0
A72: Union | B72: 0 | C72: 0 | D72: 0 | E72: 0 | F72: 0 | G72: 0 | H72: 0
A73: Total | B73: 0 | C73: 0 | D73: 0 | E73: 0 | F73: 0 | G73: 0 | H73: 0
A74: Compensation - Average Yearly Benefits
A75: Executive | C75: 0 | D75: 0 | E75: 0 | F75: 0 | G75: =(G39+G33)/G15 -> 63828.56937 | H75: 27586.23934
A76: Management | B76: =B46/B16 -> 24277.71346 | C76: =(C40+C34)/C16 -> 19484.73566 | D76: 19890.76424 | E76: 20963.40883 | F76: 18716.20511 | G76: 22545.84073 | H76: 17652.18472
A77: Non-Union | B77: =B47/B17 -> 11941.37011 | C77: =(C41+C35)/C17 -> 13274.66652 | D77: 14834.89263 | E77: 17101.46526 | F77: 15962.64273 | G77: 16676.95 | H77: 14168.3575
A78: Union | B78: 12693.46921 | C78: =(C42+C36)/C18 -> 12130.61087 | D78: 13654.58524 | E78: 14719.61239 | F78: 14701.70494 | G78: 17887.4417 | H78: 15279.46596
A79: Total | B79: =AVERAGE(B76:B78) -> 16304.18426 | C79: 17776.87573 | D79: 19453.17349 | E79: 20103.95241 | F79: 18864.76311 | G79: 23321.52233 | H79: 16558.05252
A81: Total Compensation | B81: =SUM(B51:B54) -> 5841387 | C81: 4408338.734 | D81: 4744169.584 | E81: 4992217.904 | F81: 5044214.736 | G81: 5472457.344 | H81: 6449411.282
A82: Total Compensation Capitalized (CGAAP) | C82: 590036 | D82: 581488 | E82: 797582 | F82: 797414 | G82: 755903 | H82: 872991
A83: Total Compensation Charged to OM&A (CGAAP) | B83: =B81-B82 -> 5841387 | C83: 3818302.734 | D83: 4162681.584 | E83: 4194635.904 | F83: 4246800.736 | G83: 4716554.344
A85: Total Compensation Capitalized (MIFRS)
A86: Total Compensation Charged to OM&A (MIFRS) | F86: =F81-F85 -> 5044214.736 | G86: =G81-G85 -> 5472457.344 | H86: =H81-H85 -> 6449411.282
A89: 1 If an applicant wishes to use headcount, it must also file the same schedule on an FTE basis.
A91: Note:
A92: 1 Please report compensation on a CGAAP and MIFRS basis for your transition year.

Sheet App.2-L_OM&A_per_Cust_FTEE
H1: File Number: | I1: EB-2012-0109
H2: Exhibit: | I2: 4
H3: Tab: | I3: 2
H4: Schedule: | I4: 1
H5: Page: | I5: 25
H7: Date: | I7: July 17,2013
A9: Appendix 2-L
A10: Recoverable OM&A Cost per Customer and per FTEE
C12: Last Rebasing Year (2008 Board-Approved) | D12: Last Rebasing Year (2008 Actuals) | E12: 2009 Actuals | F12: 2010 Actuals | G12: 2011 Actuals | H12: 2012 Bridge Year | I12: 2013 Test Year
A13: Reporting Basis | C13: CGAAP | D13: CGAAP | E13: CGAAP | F13: CGAAP | G13: CGAAP | H13: CGAAP | J13: MCGAAP
A14: Number of Customers | C14: 34960 | D14: 36756.25 | E14: 37038.16667 | F14: 37320.25 | G14: 37747 | H14: 38058.41667 | I14: 38547.58735
A15: Total Recoverable OM&A from Appendix 2-I | C15: 7506774 | D15: 7693996.26 | E15: 7728068.77 | F15: 7582185.94 | G15: 7012335.79 | H15: 7812673.96 | I15: 9204025
A16: OM&A cost per customer | C16: =IF(C14=0,"",C15/C14) -> 214.7246568 | D16: 209.324843 | E16: 208.6514929 | F16: 203.1654649 | G16: 185.7720028 | H16: 205.2811085 | I16: 238.7704558
A17: Number of FTEEs | C17: 71.87 | D17: 55.76666667 | E17: 57 | F17: 56.648 | G17: 56.83833333 | H17: 56.06 | I17: 70.189847
A18: Customers/FTEEs | C18: =IF(C17=0,"",C14/C17) -> 486.4338389 | D18: 659.10789 | E18: 649.7923977 | F18: 658.8096667 | G18: 664.1116617 | H18: 678.8872042 | I18: 549.1903601
A19: OM&A Cost per FTEE | C19: =IF(C17=0,"",C15/C17) -> 104449.3391 | D19: 137967.6556 | E19: 135580.1539 | F19: 133847.3722 | G19: 123373.3535 | H19: 139362.7178 | I19: 131130.4326
A21: Notes:
B25: The method of calculating the number of customers: the monthly average number (the sum of the total number of customers at the end of each month, divided by 12)
B26: The method of calculating the number of FTEEs - 61 direct employees of BPI and 9.5 indirect employees providing services through the Service Level Agreement

Sheet App.2-M_Regulatory_Costs
J1: File Number: | K1: EB-2012-0109
J2: Exhibit: | K2: 4
J3: Tab: | K3: 2
J4: Schedule: | K4: 1
J5: Page: | K5: 26
J7: Date: | K7: July 17,2013
A9: Appendix 2-M
A10: Regulatory Cost Schedule
A13: Regulatory Cost Category | C13: USoA Account | D13: USoA Account Balance | E13: Ongoing or One-time Cost? 2 | F13: Last Rebasing Year (2008 Board Approved) | G13: Most Current Actuals Year 2011 | H13: 2012 Bridge Year | I13: Annual % Change | J13: 2013 Test Year | K13: Annual % Change
A14: (A) | C14: (B) | D14: (C ) | E14: (D) | F14: (E) | G14: (F) | H14: (G) | I14: (H) = [(G)-(F)]/(F) | J14: (I) | K14: (J) = [(I)-(G)]/(G)
A15: 1 | B15: OEB Annual Assessment | C15: 5655 | E15: On-Going | F15: 100000 | G15: 104380 | H15: 108000 | I15: =IF(G15=0,"",(H15-G15)/G15) -> 0.03468097337 | J15: 108000 | K15: =IF(H15=0,"",(J15-H15)/H15) -> 0
A16: 2 | B16: OEB Section 30 Costs (Applicant-originated) | C16: 5655 | E16: On-Time | F16: 10000 | G16: 0 | H16: 0 | I16: =IF(G16=0,"",(H16-G16)/G16) ->  | K16: =IF(H16=0,"",(J16-H16)/H16) -> 
A17: 3 | B17: OEB Section 30 Costs (OEB-initiated) | C17: 5655 | E17: On-Time | F17: 5000 | G17: 0 | H17: 0 | J17: 10000
A18: 4 | B18: Expert Witness costs for regulatory matters | C18: 5655 | E18: On-Time | F18: 10000 | G18: 0 | H18: 0
A19: 5 | B19: Legal costs for regulatory matters | C19: 5630 | E19: On-Time | F19: 45000 | G19: 8478.58 | H19: 10000 | I19: 0.1794427841 | J19: 29750 | K19: 1.975
A20: 6 | B20: Consultants' costs for regulatory matters | C20: 5655 | E20: On-Time | F20: 50000 | G20: 9000 | H20: 10000 | I20: 0.1111111111 | J20: 29750 | K20: 1.975
A21: 7 | B21: Operating expenses associated with staff resources allocated to regulatory matters | C21: 5655 | E21: On-Going | F21: 274092.75 | G21: =96168+100587+21108 -> 217863 | H21: =102157.87+102295+5551 -> 210003.87 | I21: -0.03607372523 | J21: =163412.6+102295+17308 -> 283015.6 | K21: 0.3476684977
A22: 8 | B22: Operating expenses associated with other resources allocated to regulatory matters 1 | C22: 5655 | E22: On-Going | F22: 5000 | G22: =8469.2+12330 -> 20799.2 | H22: =8469.2+19253 -> 27722.2 | I22: 0.3328493404 | J22: =8469.2+12639 -> 21108.2 | K22: -0.2385813536
A23: 9 | B23: Other regulatory agency fees or assessments (ESA) | C23: 5655 | E23: On-Going | F23: 20000 | G23: 16013 | H23: 16400 | I23: 0.02416786361 | J23: 19000 | K23: 0.1585365854
A24: 10 | B24: Any other costs for regulatory matters (courier fees, communications company) | C24: 5655 | E24: On-Going | F24: 0 | G24: 533.53 | H24: 7000 | I24: 12.12016194 | K24: -1
A25: 11 | B25: Intervenor costs | C25: 5655 | E25: On-Time | F25: 0 | G25: 5498 | H25: 7500 | I25: 0.3641324118 | J25: 7500 | K25: 0
A26: 12 | B26: Sub-total - Ongoing Costs 3 | D26: =SUMIF($E15:$E25,$E11,D15:D25) -> 0 | F26: =F15+F21+F22+F23+F24 -> 399092.75 | G26: =G15+G21+G22+G23+G24 -> 359588.73 | H26: =H15+H21+H22+H23+H24 -> 369126.07 | I26: 0.02652291133 | J26: =J15+J21+J22+J23+J24 -> 431123.8 | K26: 0.167958145
A27: 13 | B27: Sub-total - One-time Costs 4 | D27: =SUMIF($E15:$E25,$E12,D15:D25) -> 0 | F27: =F16+F17+F18+F19+F20+F25 -> 120000 | G27: =G16+G17+G18+G19+G20+G25 -> 22976.58 | H27: =H16+H17+H18+H19+H20+H25 -> 27500 | I27: 0.1968709007 | J27: =J16+J17+J18+J19+J20+J25 -> 77000 | K27: 1.8
A28: 14 | B28: Total | D28: =D26+D27 -> 0 | F28: =F26+F27 -> 519092.75 | G28: =G26+G27 -> 382565.31 | H28: =H26+H27 -> 396626.07 | I28: 0.03675388132 | J28: =J26+J27 -> 508123.8 | K28: 0.2811154849
A31: 1 | B31: Please identify the resources involved.
A32: 2 | B32: Where a category's costs include both one-time and ongoing costs, the applicant should prove a separate breakdown between one-time and ongoing costs.
A33: 3 | B33: Sum of all ongoing costs identified in rows 1 to 11 inclusive.
A34: 4 | B34: Sum of all one-time costs identified in rows 1 to 11 inclusive.
A37: Please fill out the following table for all one-time costs related to this cost of service application
C39: Historical Year(s) | D39: =H13 -> 2012 Bridge Year | E39: =J13 -> 2013 Test Year
A40: 4 | B40: Expert Witness costs for regulatory matters | D40: =H18 -> 0 | E40: =J18 -> 0
A41: 6 | B41: Consultants' costs for regulatory matters | D41: =H20 -> 10000 | E41: =J20 -> 29750
A42: 7 | B42: Operating expenses associated with staff resources allocated to regulatory matters | D42: 0 | E42: 0
A43: 8 | B43: Operating expenses associated with other resources allocated to regulatory matters 1 | D43: 0 | E43: 0
A44: 11 | B44: Intervenor costs | D44: =H25 -> 7500 | E44: =J25 -> 7500
A46: There are no historical costs associated with completing the current Cost of Service rate application.

Sheet App.2-N_Corp_Cost_Alloc.2008 BA
F1: File Number: | G1: EB-2012-0109
F2: Exhibit: | G2: 4
F3: Tab:
F4: Schedule:
F5: Page: | G5: 27
F7: Date: | G7: July 17,2013
A9: Appendix 2-N
A10: Shared Services and Corporate Cost Allocation
B12: Year: | C12: 2008 Board Approved
A14: Shared Services
A16: Name of Company | C16: Service Offered | D16: Pricing Methdology | E16: Price for the Service | F16: Cost for the Service
A17: From | B17: To
E18: $ | F18: $
A19: City of Brantford | B19: Brantford Power Inc. | C19: Meeting Management Services | D19: Cost-based with mark-up as a proxy for market | E19: 13284 | F19: 13284
A20: City of Brantford | B20: Brantford Power Inc. | C20: Records Management | D20: Cost-based with mark-up as a proxy for market | E20: 20250 | F20: 20250
A21: City of Brantford | B21: Brantford Power Inc. | C21: Mail Services | D21: Cost-based with mark-up as a proxy for market | E21: 5738 | F21: 5738
A22: City of Brantford | B22: Brantford Power Inc. | C22: Insurance and Risk Management | D22: Market-based [premiums], Cost-based [Administration] | E22: 216000 | F22: 216000
A23: City of Brantford | B23: Brantford Power Inc. | C23: Customer Services | D23: Cost-based with mark-up as a proxy for market | E23: 1152752 | F23: 1152752
A24: City of Brantford | B24: Brantford Power Inc. | C24: Telephone Services | D24: Cost-based with mark-up as a proxy for market | E24: 40500 | F24: 40500
A25: City of Brantford | B25: Brantford Power Inc. | C25: Utilities Accounting | D25: Cost-based with mark-up as a proxy for market | E25: 359663 | F25: 359663
A26: City of Brantford | B26: Brantford Power Inc. | C26: Treasury, Purchasing | D26: Cost-based with mark-up as a proxy for market | E26: 172850 | F26: 172850
A27: City of Brantford | B27: Brantford Power Inc. | C27: Inventory Management | D27: Cost-based with mark-up as a proxy for market | E27: 268548 | F27: 268548
A28: City of Brantford | B28: Brantford Power Inc. | C28: IT Services | D28: Cost-based with mark-up as a proxy for market | E28: =126000+840000 -> 966000 | F28: =126000+840000 -> 966000
A29: City of Brantford | B29: Brantford Power Inc. | C29: Facilities | D29: Cost-based with mark-up as a proxy for market | E29: 807313 | F29: 807313
A30: City of Brantford | B30: Brantford Power Inc. | C30: Legal Services | D30: Cost-based with mark-up as a proxy for market | E30: 60314 | F30: 60314
A31: City of Brantford | B31: Brantford Power Inc. | C31: Human Resources | D31: Cost-based with mark-up as a proxy for market | E31: 67178 | F31: 67178
A32: City of Brantford | B32: Brantford Power Inc. | C32: Forestry | D32: Market-based [third-party services]; Cost-based [Administration] | E32: 331969 | F32: 331969
A33: City of Brantford | B33: Brantford Power Inc. | C33: Senior Management | D33: Cost-based with mark-up as a proxy for market | E33: 35025 | F33: 35025
A35: Total - Shared Services that BPI continues to purchase in 2013 under renegotiated Service Level Agreement | E35: =+E20+E21+E22+E24+E26+E28+E29+E30+E31+E32+E33 -> 2723137 | F35: =+F20+F21+F22+F24+F26+F28+F29+F30+F31+F32+F33 -> 2723137
A38: Corporate Cost Allocation
A40: Name of Company | C40: Service Offered | D40: Pricing Methdology | E40: % of Corporate Costs Allocated | F40: Amount Allocated
A41: From | B41: To
E42: % | F42: $
A43: City of Brantford | B43: Brantford Power Inc. | C43: Meeting Management Services | D43: % of time contracted | E43: 33 | F43: =+F19 -> 13284
A44: City of Brantford | B44: Brantford Hydro Inc. | E44: 33
A45: City of Brantford | B45: Brantford Energy Corporation | E45: 33
A46: City of Brantford | B46: Brantford Power Inc. | C46: Records Management | D46: % of total assets | E46: 90 | F46: =+F20 -> 20250
A47: City of Brantford | B47: Brantford Hydro Inc. | E47: 5
A48: City of Brantford | B48: Brantford Energy Corporation | E48: 5
A49: City of Brantford | B49: Brantford Power Inc. | C49: General Mail Services | D49: Estimate of time | E49: 85 | F49: =+F21 -> 5738
A50: City of Brantford | B50: Brantford Hydro Inc. | E50: 10
A51: City of Brantford | B51: Brantford Energy Corporation | E51: 5
A52: City of Brantford | B52: Brantford Power Inc. | C52: Insurance and Risk Management Services | D52: % of total assets | E52: 90 | F52: =+F22 -> 216000
A53: City of Brantford | B53: Brantford Hydro Inc. | E53: 5
A54: City of Brantford | B54: Brantford Energy Corporation | E54: 5
A55: City of Brantford | B55: Brantford Power Inc. | C55: Customer Services | D55: Estimate of time | E55: 96 | F55: =+F23 -> 1152752
A56: City of Brantford | B56: Brantford Hydro Inc. | E56: 4
A57: City of Brantford | B57: Brantford Energy Corporation | E57: 0
A58: City of Brantford | B58: Brantford Power Inc. | C58: Telephone Services | D58: % of total assets | E58: 90 | F58: =+F24 -> 40500
A59: City of Brantford | B59: Brantford Hydro Inc. | E59: 5
A60: City of Brantford | B60: Brantford Energy Corporation | E60: 5
A61: City of Brantford | B61: Brantford Power Inc. | C61: Treasury, Purchasing | D61: % of total assets | E61: 90 | F61: =+F26 -> 172850
A62: City of Brantford | B62: Brantford Hydro Inc. | E62: 5
A63: City of Brantford | B63: Brantford Energy Corporation | E63: 5
A64: City of Brantford | B64: Brantford Power Inc. | C64: Utilities Accounting Services - CFO | D64: % of time contracted | E64: 70 | F64: See Row 67
A65: City of Brantford | B65: Brantford Hydro Inc. | E65: 25
A66: City of Brantford | B66: Brantford Energy Corporation | E66: 5
A67: City of Brantford | B67: Brantford Power Inc. | C67: Utilities Accounting Services - Other | D67: Estimate of time | E67: 60 | F67: See Row 67
A68: City of Brantford | B68: Brantford Hydro Inc. | E68: 35
A69: City of Brantford | B69: Brantford Energy Corporation | E69: 5
A70: City of Brantford | B70: Brantford Power Inc. | C70: Utility Accounting Services - Total | F70: =+E25 -> 359663
A71: City of Brantford | B71: Brantford Power Inc. | C71: Inventory Management | D71: % of total assets | E71: 90 | F71: =+F27 -> 268548
A72: City of Brantford | B72: Brantford Hydro Inc. | E72: 5
A73: City of Brantford | B73: Brantford Energy Corporation | E73: 5
A74: City of Brantford | B74: Brantford Power Inc. | C74: Property Management - 84 Market Street | D74: % of square footage utilized | E74: 75 | F74: See Row 83
A75: City of Brantford | B75: Brantford Hydro Inc. | E75: 20
A76: City of Brantford | B76: Brantford Energy Corporation | E76: 5
A77: City of Brantford | B77: Brantford Power Inc. | C77: Property Management - 400 Grand River Avenue | E77: 95 | F77: See Row 83
A78: City of Brantford | B78: Brantford Hydro Inc. | E78: 5
A79: City of Brantford | B79: Brantford Energy Corporation | E79: 0
A80: City of Brantford | B80: Brantford Power Inc. | C80: Property Management - Vehicle Storage - 400 Grand River Avenue | E80: 98.4 | F80: See Row 83
A81: City of Brantford | B81: Brantford Hydro Inc. | E81: 1.6
A82: City of Brantford | B82: Brantford Energy Corporation | E82: 0
A83: City of Brantford | B83: Brantford Power Inc. | C83: Property Management - 220 Colborne Street | D83: % of total assets | E83: 90 | F83: See Row 83
A84: City of Brantford | B84: Brantford Hydro Inc. | E84: 5
A85: City of Brantford | B85: Brantford Energy Corporation | E85: 5
A86: City of Brantford | B86: Brantford Power Inc. | C86: Facilities - Total | F86: =+E29 -> 807313
A87: City of Brantford | B87: Brantford Power Inc. | C87: Legal Services | D87: % of total assets | E87: 90 | F87: =+F30 -> 60314
A88: City of Brantford | B88: Brantford Hydro Inc. | E88: 5
A89: City of Brantford | B89: Brantford Energy Corporation | E89: 5
A90: City of Brantford | B90: Brantford Power Inc. | C90: Human Resources | D90: % of total assets | E90: 90 | F90: =+E31 -> 67178
A91: City of Brantford | B91: Brantford Hydro Inc. | E91: 5
A92: City of Brantford | B92: Brantford Energy Corporation | E92: 5
A93: City of Brantford | B93: Brantford Power Inc. | C93: IT Services - Network | D93: % of total assets | E93: 90 | F93: See Row 96
A94: City of Brantford | B94: Brantford Hydro Inc. | E94: 5
A95: City of Brantford | B95: Brantford Energy Corporation | E95: 5
A96: City of Brantford | B96: Brantford Power Inc. | C96: IT Services - Utility Specific | D96: Actual csts for materials and projects plus allocation of administrative costs | E96: N/A | F96: See Row 96
A97: City of Brantford | B97: Brantford Hydro Inc. | E97: N/A
A98: City of Brantford | B98: Brantford Energy Corporation | E98: N/A
A99: City of Brantford | B99: Brantford Power Inc. | C99: IT Services - Total | F99: =+E28 -> 966000
A100: City of Brantford | B100: Brantford Power Inc. | C100: Senior Management Services | D100: Estimate of time | E100: 80 | F100: =+F33 -> 35025
A101: City of Brantford | B101: Brantford Hydro Inc. | E101: 10
A102: City of Brantford | B102: Brantford Energy Corporation | E102: 10
A107: Note:
A108: 1 | B108: This appendix must be completed in relation to each service provided or received for the Historical (actuals), Bridge and Test years.
B111: Prior to the renegotiation of the Service Level Agreement between BPI and the City, costs were passed from the City of Brantford to the Energy group of companies and then allocated among the Energy group. The table above sets out the allocation percentages in place at that time.

Sheet App.2-N_Corp_Cost_Alloc. 2008
F1: File Number: | G1: EB-2012-0109
F2: Exhibit: | G2: 4
F3: Tab:
F4: Schedule:
F5: Page: | G5: 28
F7: Date: | G7: July 17,2013
A9: Appendix 2-N
A10: Shared Services and Corporate Cost Allocation
B12: Year: | C12: 2008 Actual
A14: Shared Services
A16: Name of Company | C16: Service Offered | D16: Pricing Methdology | E16: Price for the Service | F16: Cost for the Service
A17: From | B17: To
E18: $ | F18: $
A19: City of Brantford | B19: Brantford Power Inc. | C19: Operations and Maintenance | D19: Cost-based with mark-up as a proxy for market | E19: 1296472.41 | F19: 1296472.41
A20: City of Brantford | B20: Brantford Power Inc. | C20: Vehicle Maintenance | D20: Cost-based with mark-up as a proxy for market | E20: 213715.42 | F20: 213715.42
A21: City of Brantford | B21: Brantford Power Inc. | C21: Engineering | D21: Cost-based with mark-up as a proxy for market | E21: 945736.76 | F21: 945736.76
A22: City of Brantford | B22: Brantford Power Inc. | C22: Metering & Settlement | D22: Cost-based with mark-up as a proxy for market | E22: 715665.71 | F22: 715665.71
A23: City of Brantford | B23: Brantford Power Inc. | C23: Line Locates | D23: Cost-based with mark-up as a proxy for market | E23: 95430.1 | F23: 95430.1
A24: City of Brantford | B24: Brantford Power Inc. | C24: Regulatory & Administration | D24: Cost-based with mark-up as a proxy for market | E24: 459615.72 | F24: 459615.72
A25: City of Brantford | B25: Brantford Power Inc. | C25: Meeting Management Services | D25: Cost-based with mark-up as a proxy for market | E25: 13284 | F25: 13284
A26: City of Brantford | B26: Brantford Power Inc. | C26: Records Management | D26: Cost-based with mark-up as a proxy for market | E26: 18728.52 | F26: 18728.52
A27: City of Brantford | B27: Brantford Power Inc. | C27: Mail Services | D27: Cost-based with mark-up as a proxy for market | E27: 5030.22 | F27: 5030.22
A28: City of Brantford | B28: Brantford Power Inc. | C28: Insurance and Risk Management | D28: Market-based [premiums], Cost-based [Administration] | E28: 190256.88 | F28: 190256.88
A29: City of Brantford | B29: Brantford Power Inc. | C29: Customer Services | D29: Cost-based with mark-up as a proxy for market | E29: 1048109.82 | F29: 1048109.82
A30: City of Brantford | B30: Brantford Power Inc. | C30: Telephone Services | D30: Cost-based with mark-up as a proxy for market | E30: 37795.87 | F30: 37795.87
A31: City of Brantford | B31: Brantford Power Inc. | C31: Utilities Accounting | D31: Cost-based with mark-up as a proxy for market | E31: 385228.41 | F31: 385228.41
A32: City of Brantford | B32: Brantford Power Inc. | C32: Treasury, Purchasing | D32: Cost-based with mark-up as a proxy for market | E32: 172850.4 | F32: 172850.4
A33: City of Brantford | B33: Brantford Power Inc. | C33: Inventory Management | D33: Cost-based with mark-up as a proxy for market | E33: 254360.22 | F33: 254360.22
A34: City of Brantford | B34: Brantford Power Inc. | C34: IT Services | D34: Cost-based with mark-up as a proxy for market | E34: 802580.27 | F34: 802580.27
A35: City of Brantford | B35: Brantford Power Inc. | C35: Facilities | D35: Cost-based with mark-up as a proxy for market | E35: 747335.53 | F35: 747335.53
A36: City of Brantford | B36: Brantford Power Inc. | C36: Legal Services | D36: Cost-based with mark-up as a proxy for market | E36: 136360.57 | F36: 136360.57
A37: City of Brantford | B37: Brantford Power Inc. | C37: Human Resources | D37: Cost-based with mark-up as a proxy for market | E37: 69824.98 | F37: 69824.98
A38: City of Brantford | B38: Brantford Power Inc. | C38: Forestry | D38: Market-based [third-party services]; Cost-based [Administration] | E38: 424149.98 | F38: 424149.98
A39: City of Brantford | B39: Brantford Power Inc. | C39: Senior Management | D39: Cost-based with mark-up as a proxy for market | E39: 33356.76 | F39: 33356.76
A41: Total - Shared Services that BPI continues to purchase in 2013 under renegotiated Service Level Agreement | E41: =+E26+E27+E28+E30+E32+E34+E35+E36+E37+E38+E39 -> 2638269.98 | F41: =+F26+F27+F28+F30+F32+F34+F35+F36+F37+F38+F39 -> 2638269.98
A43: Corporate Cost Allocation
A45: Name of Company | C45: Service Offered | D45: Pricing Methdology | E45: % of Corporate Costs Allocated | F45: Amount Allocated
A46: From | B46: To
E47: % | F47: $
A48: City of Brantford | B48: Brantford Power Inc. | C48: Meeting Management Services | D48: % of time contracted | E48: 33 | F48: =+F25 -> 13284
A49: City of Brantford | B49: Brantford Hydro Inc. | E49: 33
A50: City of Brantford | B50: Brantford Energy Corporation | E50: 33
A51: City of Brantford | B51: Brantford Power Inc. | C51: Records Management | D51: % of total assets | E51: 90 | F51: =+F26 -> 18728.52
A52: City of Brantford | B52: Brantford Hydro Inc. | E52: 5
A53: City of Brantford | B53: Brantford Energy Corporation | E53: 5
A54: City of Brantford | B54: Brantford Power Inc. | C54: General Mail Services | D54: Estimate of time | E54: 85 | F54: =+F27 -> 5030.22
A55: City of Brantford | B55: Brantford Hydro Inc. | E55: 10
A56: City of Brantford | B56: Brantford Energy Corporation | E56: 5
A57: City of Brantford | B57: Brantford Power Inc. | C57: Insurance and Risk Management Services | D57: % of total assets | E57: 90 | F57: =+F28 -> 190256.88
A58: City of Brantford | B58: Brantford Hydro Inc. | E58: 5
A59: City of Brantford | B59: Brantford Energy Corporation | E59: 5
A60: City of Brantford | B60: Brantford Power Inc. | C60: Customer Services | D60: Estimate of time | E60: 96 | F60: =+F29 -> 1048109.82
A61: City of Brantford | B61: Brantford Hydro Inc. | E61: 4
A62: City of Brantford | B62: Brantford Energy Inc. | E62: 0
A63: City of Brantford | B63: Brantford Power Inc. | C63: Telephone Services | D63: % of total assets | E63: 90 | F63: =+F30 -> 37795.87
A64: City of Brantford | B64: Brantford Hydro Inc. | E64: 5
A65: City of Brantford | B65: Brantford Energy Corporation | E65: 5
A66: City of Brantford | B66: Brantford Power Inc. | C66: Treasury, Purchasing | D66: % of total assets | E66: 90 | F66: =+F32 -> 172850.4
A67: City of Brantford | B67: Brantford Hydro Inc. | E67: 5
A68: City of Brantford | B68: Brantford Energy Corporation | E68: 5
A69: City of Brantford | B69: Brantford Power Inc. | C69: Utilities Accounting Services - CFO | D69: % of time contracted | E69: 70 | F69: See Row 67
A70: City of Brantford | B70: Brantford Hydro Inc. | E70: 25
A71: City of Brantford | B71: Brantford Energy Corporation | E71: 5
A72: City of Brantford | B72: Brantford Power Inc. | C72: Utilities Accounting Services - Other | D72: Estimate of time | E72: 60 | F72: See Row 67
A73: City of Brantford | B73: Brantford Hydro Inc. | E73: 35
A74: City of Brantford | B74: Brantford Energy Corporation | E74: 5
A75: City of Brantford | B75: Brantford Power Inc. | C75: Utility Accounting Services - Total | F75: =+F31 -> 385228.41
A76: City of Brantford | B76: Brantford Power Inc. | C76: Inventory Management | D76: % of total assets | E76: 90 | F76: =+F33 -> 254360.22
A77: City of Brantford | B77: Brantford Hydro Inc. | E77: 5
A78: City of Brantford | B78: Brantford Energy Corporation | E78: 5
A79: City of Brantford | B79: Brantford Power Inc. | C79: Property Management - 84 Market Street | D79: % of square footage utilized | E79: 75 | F79: See Row 83
A80: City of Brantford | B80: Brantford Hydro Inc. | E80: 20
A81: City of Brantford | B81: Brantford Energy Corporation | E81: 5
A82: City of Brantford | B82: Brantford Power Inc. | C82: Property Management - 400 Grand River Avenue | E82: 95 | F82: See Row 83
A83: City of Brantford | B83: Brantford Hydro Inc. | E83: 5
A84: City of Brantford | B84: Brantford Energy Corporation | E84: 0
A85: City of Brantford | B85: Brantford Power Inc. | C85: Property Management - Vehicle Storage - 400 Grand River Avenue | E85: 98.4 | F85: See Row 83
A86: City of Brantford | B86: Brantford Hydro Inc. | E86: 1.6
A87: City of Brantford | B87: Brantford Energy Corporation | E87: 0
A88: City of Brantford | B88: Brantford Power Inc. | C88: Property Management - 220 Colborne Street | D88: % of total assets | E88: 90 | F88: See Row 83
A89: City of Brantford | B89: Brantford Hydro Inc. | E89: 5
A90: City of Brantford | B90: Brantford Energy Corporation | E90: 5
A91: City of Brantford | B91: Brantford Power Inc. | C91: Facilities - Total | F91: =+F35 -> 747335.53
A92: City of Brantford | B92: Brantford Power Inc. | C92: Legal Services | D92: % of total assets | E92: 90 | F92: =+F36 -> 136360.57
A93: City of Brantford | B93: Brantford Hydro Inc. | E93: 5
A94: City of Brantford | B94: Brantford Energy Corporation | E94: 5
A95: City of Brantford | B95: Brantford Power Inc. | C95: Human Resources | D95: % of total assets | E95: 90 | F95: =+F37 -> 69824.98
A96: City of Brantford | B96: Brantford Hydro Inc. | E96: 5
A97: City of Brantford | B97: Brantford Energy Corporation | E97: 5
A98: City of Brantford | B98: Brantford Power Inc. | C98: IT Services - Network | D98: % of total assets | E98: 90 | F98: See Row 96
A99: City of Brantford | B99: Brantford Hydro Inc. | E99: 5
A100: City of Brantford | B100: Brantford Energy Corporation | E100: 5
A101: City of Brantford | B101: Brantford Power Inc. | C101: IT Services - Utility Specific | D101: Actual csts for materials and projects plus allocation of administrative costs | E101: N/A | F101: See Row 96
A102: City of Brantford | B102: Brantford Hydro Inc. | E102: N/A
A103: City of Brantford | B103: Brantford Energy Corporation | E103: N/A
A104: City of Brantford | B104: Brantford Power Inc. | C104: IT Services - Total | F104: =+F34 -> 802580.27
A105: City of Brantford | B105: Brantford Power Inc. | C105: Senior Management Services | D105: Estimate of time | E105: 80 | F105: =+F39 -> 33356.76
A106: City of Brantford | B106: Brantford Hydro Inc. | E106: 10
A107: City of Brantford | B107: Brantford Energy Corporation | E107: 10
A112: Note:
A113: 1 | B113: This appendix must be completed in relation to each service provided or received for the Historical (actuals), Bridge and Test years.
B116: Prior to the renegotiation of the Service Level Agreement between BPI and the City, costs were passed from the City of Brantford to the Energy group of companies and then allocated among the Energy group. The table above sets out the allocation percentages in place at that time.

Sheet App.2-N_Corp_Cost_Alloc. 2009
F1: File Number: | G1: EB-2012-0109
F2: Exhibit: | G2: 4
F3: Tab:
F4: Schedule:
F5: Page: | G5: 29
F7: Date: | G7: July 17,2013
A9: Appendix 2-N
A10: Shared Services and Corporate Cost Allocation
B12: Year: | C12: 2009
A14: Shared Services
A16: Name of Company | C16: Service Offered | D16: Pricing Methdology | E16: Price for the Service | F16: Cost for the Service
A17: From | B17: To
E18: $ | F18: $
A19: City of Brantford | B19: Brantford Power Inc. | C19: Operations and Maintenance | D19: Cost-based with mark-up as a proxy for market | E19: 1412335.55 | F19: 1412335.55
A20: City of Brantford | B20: Brantford Power Inc. | C20: Vehicle Maintenance | D20: Cost-based with mark-up as a proxy for market | E20: 206471.65 | F20: 206471.65
A21: City of Brantford | B21: Brantford Power Inc. | C21: Engineering | D21: Cost-based with mark-up as a proxy for market | E21: 968967.63 | F21: 968967.63
A22: City of Brantford | B22: Brantford Power Inc. | C22: Metering & Settlement | D22: Cost-based with mark-up as a proxy for market | E22: 984641.06 | F22: 984641.06
A23: City of Brantford | B23: Brantford Power Inc. | C23: Line Locates | D23: Cost-based with mark-up as a proxy for market | E23: 113817.06 | F23: 113817.06
A24: City of Brantford | B24: Brantford Power Inc. | C24: Regulatory & Administration | D24: Cost-based with mark-up as a proxy for market | E24: 499774.17 | F24: 499774.17
A25: City of Brantford | B25: Brantford Power Inc. | C25: Meeting Management Services | D25: Cost-based with mark-up as a proxy for market | E25: 13284 | F25: 13284
A26: City of Brantford | B26: Brantford Power Inc. | C26: Records Management | D26: Cost-based with mark-up as a proxy for market | E26: 18728.52 | F26: 18728.52
A27: City of Brantford | B27: Brantford Power Inc. | C27: Mail Services | D27: Cost-based with mark-up as a proxy for market | E27: 4726.29 | F27: 4726.29
A28: City of Brantford | B28: Brantford Power Inc. | C28: Insurance and Risk Management | D28: Market-based [premiums], Cost-based [Administration] | E28: 134301.58 | F28: 134301.58
A29: City of Brantford | B29: Brantford Power Inc. | C29: Customer Services | D29: Cost-based with mark-up as a proxy for market | E29: 1133497.1 | F29: 1133497.1
A30: City of Brantford | B30: Brantford Power Inc. | C30: Telephone Services | D30: Cost-based with mark-up as a proxy for market | E30: 43565.8 | F30: 43565.8
A31: City of Brantford | B31: Brantford Power Inc. | C31: Utilities Accounting | D31: Cost-based with mark-up as a proxy for market | E31: 371349.73 | F31: 371349.73
A32: City of Brantford | B32: Brantford Power Inc. | C32: Treasury, Purchasing | D32: Cost-based with mark-up as a proxy for market | E32: 157154.4 | F32: 157154.4
A33: City of Brantford | B33: Brantford Power Inc. | C33: Inventory Management | D33: Cost-based with mark-up as a proxy for market | E33: 272541.5 | F33: 272541.5
A34: City of Brantford | B34: Brantford Power Inc. | C34: IT Services | D34: Cost-based with mark-up as a proxy for market | E34: 786767.13 | F34: 786767.13
A35: City of Brantford | B35: Brantford Power Inc. | C35: Facilities | D35: Cost-based with mark-up as a proxy for market | E35: 692039.05 | F35: 692039.05
A36: City of Brantford | B36: Brantford Power Inc. | C36: Legal Services | D36: Cost-based with mark-up as a proxy for market | E36: 73283.59 | F36: 73283.59
A37: City of Brantford | B37: Brantford Power Inc. | C37: Human Resources | D37: Cost-based with mark-up as a proxy for market | E37: 70918.26 | F37: 70918.26
A38: City of Brantford | B38: Brantford Power Inc. | C38: Forestry | D38: Market-based [third-party services]; Cost-based [Administration] | E38: 380850 | F38: 380850
A39: City of Brantford | B39: Brantford Power Inc. | C39: Senior Management | D39: Cost-based with mark-up as a proxy for market | E39: 36128.04 | F39: 36128.04
A41: Total - Shared Services that BPI continues to purchase in 2013 under renegotiated Service Level Agreement | E41: =+E26+E27+E28+E30+E32+E34+E35+E36+E37+E38+E39 -> 2398462.66 | F41: =+F26+F27+F28+F30+F32+F34+F35+F36+F37+F38+F39 -> 2398462.66
A43: Corporate Cost Allocation
A45: Name of Company | C45: Service Offered | D45: Pricing Methdology | E45: % of Corporate Costs Allocated | F45: Amount Allocated
A46: From | B46: To
E47: % | F47: $
A48: City of Brantford | B48: Brantford Power Inc. | C48: Meeting Management Services | D48: % of time contracted | E48: 33 | F48: =+F25 -> 13284
A49: City of Brantford | B49: Brantford Hydro Inc. | E49: 33
A50: City of Brantford | B50: Brantford Energy Corporation | E50: 33
A51: City of Brantford | B51: Brantford Power Inc. | C51: Records Management | D51: % of total assets | E51: 90 | F51: =+F26 -> 18728.52
A52: City of Brantford | B52: Brantford Hydro Inc. | E52: 5
A53: City of Brantford | B53: Brantford Energy Corporation | E53: 5
A54: City of Brantford | B54: Brantford Power Inc. | C54: General Mail Services | D54: Estimate of time | E54: 85 | F54: =+F27 -> 4726.29
A55: City of Brantford | B55: Brantford Hydro Inc. | E55: 10
A56: City of Brantford | B56: Brantford Energy Corporation | E56: 5
A57: City of Brantford | B57: Brantford Power Inc. | C57: Insurance and Risk Management Services | D57: % of total assets | E57: 90 | F57: =+F30 -> 43565.8
A58: City of Brantford | B58: Brantford Hydro Inc. | E58: 5
A59: City of Brantford | B59: Brantford Energy Corporation | E59: 5
A60: City of Brantford | B60: Brantford Power Inc. | C60: Customer Services | D60: Estimate of time | E60: 96 | F60: =+F29 -> 1133497.1
A61: City of Brantford | B61: Brantford Hydro Inc. | E61: 4
A62: City of Brantford | B62: Brantford Energy Corporation | E62: 0
A63: City of Brantford | B63: Brantford Power Inc. | C63: Telephone Services | D63: % of total assets | E63: 90 | F63: =+F30 -> 43565.8
A64: City of Brantford | B64: Brantford Hydro Inc. | E64: 5
A65: City of Brantford | B65: Brantford Energy Corporation | E65: 5
A66: City of Brantford | B66: Brantford Power Inc. | C66: Treasury, Purchasing | D66: % of total assets | E66: 90 | F66: =+F32 -> 157154.4
A67: City of Brantford | B67: Brantford Hydro Inc. | E67: 5
A68: City of Brantford | B68: Brantford Energy Corporation | E68: 5
A69: City of Brantford | B69: Brantford Power Inc. | C69: Utilities Accounting Services - CFO | D69: % of time contracted | E69: 65 | F69: See Row 74
A70: City of Brantford | B70: Brantford Hydro Inc. | E70: 30
A71: City of Brantford | B71: Brantford Energy Corporation | E71: 5
A72: City of Brantford | B72: Brantford Power Inc. | C72: Utilities Accounting Services - Other | D72: Estimate of time | E72: 60 | F72: See Row 74
A73: City of Brantford | B73: Brantford Hydro Inc. | E73: 35
A74: City of Brantford | B74: Brantford Energy Corporation | E74: 5
A75: City of Brantford | B75: Brantford Power Inc. | C75: Utility Accounting Services - Total | F75: =+F31 -> 371349.73
A76: City of Brantford | B76: Brantford Power Inc. | C76: Inventory Management | D76: % of total assets | E76: 90 | F76: =+F33 -> 272541.5
A77: City of Brantford | B77: Brantford Hydro Inc. | E77: 5
A78: City of Brantford | B78: Brantford Energy Corporation | E78: 5
A79: City of Brantford | B79: Brantford Power Inc. | C79: Property Management - 84 Market Street | D79: % of square footage utilized | E79: 75 | F79: See Row 89
A80: City of Brantford | B80: Brantford Hydro Inc. | E80: 20
A81: City of Brantford | B81: Brantford Energy Corporation | E81: 5
A82: City of Brantford | B82: Brantford Power Inc. | C82: Property Management - 400 Grand River Avenue | E82: 95 | F82: See Row 89
A83: City of Brantford | B83: Brantford Hydro Inc. | E83: 5
A84: City of Brantford | B84: Brantford Energy Corporation | E84: 0
A85: City of Brantford | B85: Brantford Power Inc. | C85: Property Management - Vehicle Storage - 400 Grand River Avenue | E85: 98.4 | F85: See Row 89
A86: City of Brantford | B86: Brantford Hydro Inc. | E86: 1.6
A87: City of Brantford | B87: Brantford Energy Corporation | E87: 0
A88: City of Brantford | B88: Brantford Power Inc. | C88: Property Management - 220 Colborne Street | D88: % of total assets | E88: 90 | F88: See Row 89
A89: City of Brantford | B89: Brantford Hydro Inc. | E89: 5
A90: City of Brantford | B90: Brantford Energy Corporation | E90: 5
A91: City of Brantford | B91: Brantford Power Inc. | C91: Facilities - Total | F91: =+F35 -> 692039.05
A92: City of Brantford | B92: Brantford Power Inc. | C92: Legal Services | D92: % of total assets | E92: 90 | F92: =+F36 -> 73283.59
A93: City of Brantford | B93: Brantford Hydro Inc. | E93: 5
A94: City of Brantford | B94: Brantford Energy Corporation | E94: 5
A95: City of Brantford | B95: Brantford Power Inc. | C95: Human Resources | D95: % of total assets | E95: 90 | F95: =+F37 -> 70918.26
A96: City of Brantford | B96: Brantford Hydro Inc. | E96: 5
A97: City of Brantford | B97: Brantford Energy Corporation | E97: 5
A98: City of Brantford | B98: Brantford Power Inc. | C98: IT Services - Network | D98: % of total assets | E98: 90 | F98: See Row 103
A99: City of Brantford | B99: Brantford Hydro Inc. | E99: 5
A100: City of Brantford | B100: Brantford Energy Corporation | E100: 5
A101: City of Brantford | B101: Brantford Power Inc. | C101: IT Services - Utility Specific | D101: Actual csts for materials and projects plus allocation of administrative costs | E101: N/A | F101: See Row 103
A102: City of Brantford | B102: Brantford Hydro Inc. | E102: N/A
A103: City of Brantford | B103: Brantford Energy Corporation | E103: N/A
A104: City of Brantford | B104: Brantford Power Inc. | C104: IT Services - Total | F104: =+F34 -> 786767.13
A105: City of Brantford | B105: Brantford Power Inc. | C105: Senior Management Services | D105: Estimate of time | E105: 80 | F105: =+F39 -> 36128.04
A106: City of Brantford | B106: Brantford Hydro Inc. | E106: 10
A107: City of Brantford | B107: Brantford Energy Corporation | E107: 10
A112: Note:
A113: 1 | B113: This appendix must be completed in relation to each service provided or received for the Historical (actuals), Bridge and Test years.
A116: NOTES | B116: Prior to the renegotiation of the Service Level Agreement between BPI and the City, costs were passed from the City of Brantford to the Energy group of companies and then allocated among the Energy group. The table above sets out the allocation percentages in place at that time.

Sheet App.2-N_Corp_Cost_Alloc. 2010
F1: File Number: | G1: EB-2012-0109
F2: Exhibit: | G2: 4
F3: Tab:
F4: Schedule:
F5: Page: | G5: 30
F7: Date: | G7: July 17,2013
A9: Appendix 2-N
A10: Shared Services and Corporate Cost Allocation
B12: Year: | C12: 2010
A14: Shared Services
A16: Name of Company | C16: Service Offered | D16: Pricing Methdology | E16: Price for the Service | F16: Cost for the Service
A17: From | B17: To
E18: $ | F18: $
A19: City of Brantford | B19: Brantford Power Inc. | C19: Operations and Maintenance | D19: Cost-based with mark-up as a proxy for market | E19: 1463082.4 | F19: 1463082.4
A20: City of Brantford | B20: Brantford Power Inc. | C20: Vehicle Maintenance | D20: Cost-based with mark-up as a proxy for market | E20: 224170.33 | F20: 224170.33
A21: City of Brantford | B21: Brantford Power Inc. | C21: Engineering | D21: Cost-based with mark-up as a proxy for market | E21: 895601.15 | F21: 895601.15
A22: City of Brantford | B22: Brantford Power Inc. | C22: Metering & Settlement | D22: Cost-based with mark-up as a proxy for market | E22: 893460.65 | F22: 893460.65
A23: City of Brantford | B23: Brantford Power Inc. | C23: Line Locates | D23: Cost-based with mark-up as a proxy for market | E23: 105443.5 | F23: 105443.5
A24: City of Brantford | B24: Brantford Power Inc. | C24: Regulatory & Administration | D24: Cost-based with mark-up as a proxy for market | E24: 497003.83 | F24: 497003.83
A25: City of Brantford | B25: Brantford Power Inc. | C25: Meeting Management Services | D25: Cost-based with mark-up as a proxy for market | E25: 13284 | F25: 13284
A26: City of Brantford | B26: Brantford Power Inc. | C26: Records Management | D26: Cost-based with mark-up as a proxy for market | E26: 18728.52 | F26: 18728.52
A27: City of Brantford | B27: Brantford Power Inc. | C27: Mail Services | D27: Cost-based with mark-up as a proxy for market | E27: 3752.99 | F27: 3752.99
A28: City of Brantford | B28: Brantford Power Inc. | C28: Insurance and Risk Management | D28: Market-based [premiums], Cost-based [Administration] | E28: 106862.43 | F28: 106862.43
A29: City of Brantford | B29: Brantford Power Inc. | C29: Customer Services | D29: Cost-based with mark-up as a proxy for market | E29: 1146388.1 | F29: 1146388.1
A30: City of Brantford | B30: Brantford Power Inc. | C30: Telephone Services | D30: Cost-based with mark-up as a proxy for market | E30: 44808.73 | F30: 44808.73
A31: City of Brantford | B31: Brantford Power Inc. | C31: Utilities Accounting | D31: Cost-based with mark-up as a proxy for market | E31: 406951.4 | F31: 406951.4
A32: City of Brantford | B32: Brantford Power Inc. | C32: Treasury, Purchasing | D32: Cost-based with mark-up as a proxy for market | E32: 157154.44 | F32: 157154.44
A33: City of Brantford | B33: Brantford Power Inc. | C33: Inventory Management | D33: Cost-based with mark-up as a proxy for market | E33: 268025.47 | F33: 268025.47
A34: City of Brantford | B34: Brantford Power Inc. | C34: IT Services | D34: Cost-based with mark-up as a proxy for market | E34: 887476.71 | F34: 887476.71
A35: City of Brantford | B35: Brantford Power Inc. | C35: Facilities | D35: Cost-based with mark-up as a proxy for market | E35: 674953.47 | F35: 674953.47
A36: City of Brantford | B36: Brantford Power Inc. | C36: Legal Services | D36: Cost-based with mark-up as a proxy for market | E36: 59417.58 | F36: 59417.58
A37: City of Brantford | B37: Brantford Power Inc. | C37: Human Resources | D37: Cost-based with mark-up as a proxy for market | E37: 72536.04 | F37: 72536.04
A38: City of Brantford | B38: Brantford Power Inc. | C38: Forestry | D38: Market-based [third-party services]; Cost-based [Administration] | E38: 384069.06 | F38: 384069.06
A39: City of Brantford | B39: Brantford Power Inc. | C39: Senior Management | D39: Cost-based with mark-up as a proxy for market | E39: 37205.64 | F39: 37205.64
A41: Total - Shared Services that BPI continues to purchase in 2013 under renegotiated Service Level Agreement | E41: =+E26+E27+E28+E30+E32+E34+E35+E36+E37+E38+E39 -> 2446965.61 | F41: =+F26+F27+F28+F30+F32+F34+F35+F36+F37+F38+F39 -> 2446965.61
A43: Corporate Cost Allocation
A45: Name of Company | C45: Service Offered | D45: Pricing Methdology | E45: % of Corporate Costs Allocated | F45: Amount Allocated
A46: From | B46: To
E47: % | F47: $
A48: City of Brantford | B48: Brantford Power Inc. | C48: Meeting Management Services | D48: % of time contracted | E48: 33 | F48: =+F25 -> 13284
A49: City of Brantford | B49: Brantford Hydro/Generation Inc. | E49: 33
A50: City of Brantford | B50: Brantford Energy Corporation | E50: 33
A51: City of Brantford | B51: Brantford Power Inc. | C51: Records Management | D51: % of total assets | E51: 90 | F51: =+F26 -> 18728.52
A52: City of Brantford | B52: Brantford Hydro/Generation Inc. | E52: 5
A53: City of Brantford | B53: Brantford Energy Corporation | E53: 5
A54: City of Brantford | B54: Brantford Power Inc. | C54: General Mail Services | D54: Estimate of time | E54: 85 | F54: =+F27 -> 3752.99
A55: City of Brantford | B55: Brantford Hydro/Generation Inc. | E55: 10
A56: City of Brantford | B56: Brantford Energy Corporation | E56: 5
A57: City of Brantford | B57: Brantford Power Inc. | C57: Insurance and Risk Management Services | D57: % of total assets | E57: 90 | F57: =+F28 -> 106862.43
A58: City of Brantford | B58: Brantford Hydro/Generation Inc. | E58: 5
A59: City of Brantford | B59: Brantford Energy Corporation | E59: 5
A60: City of Brantford | B60: Brantford Power Inc. | C60: Customer Services | D60: Estimate of time | E60: 96 | F60: =+F29 -> 1146388.1
A61: City of Brantford | B61: Brantford Hydro/Generation Inc. | E61: 4
A62: City of Brantford | B62: Brantford Energy Corporation | E62: 0
A63: City of Brantford | B63: Brantford Power Inc. | C63: Telephone Services | D63: % of total assets | E63: 90 | F63: =+F30 -> 44808.73
A64: City of Brantford | B64: Brantford Hydro/Generation Inc. | E64: 5
A65: City of Brantford | B65: Brantford Energy Corporation | E65: 5
A66: City of Brantford | B66: Brantford Power Inc. | C66: Treasury, Purchasing | D66: % of total assets | E66: 90 | F66: =+F32 -> 157154.44
A67: City of Brantford | B67: Brantford Hydro/Generation Inc. | E67: 5
A68: City of Brantford | B68: Brantford Energy Corporation | E68: 5
A69: City of Brantford | B69: Brantford Power Inc. | C69: Utilities Accounting Services - CFO | D69: % of time contracted | E69: 65 | F69: See Row 74
A70: City of Brantford | B70: Brantford Hydro/Generation Inc. | E70: 30
A71: City of Brantford | B71: Brantford Energy Corporation | E71: 5
A72: City of Brantford | B72: Brantford Power Inc. | C72: Utilities Accounting Services - Other | D72: Estimate of time | E72: 60 | F72: See Row 74
A73: City of Brantford | B73: Brantford Hydro/Generation Inc. | E73: 35
A74: City of Brantford | B74: Brantford Energy Corporation | E74: 5
A75: City of Brantford | B75: Brantford Power Inc. | C75: Utility Accounting Services - Total | F75: =+F31 -> 406951.4
A76: City of Brantford | B76: Brantford Power Inc. | C76: Inventory Management | D76: % of total assets | E76: 90 | F76: =+F33 -> 268025.47
A77: City of Brantford | B77: Brantford Hydro/Generation Inc. | E77: 5
A78: City of Brantford | B78: Brantford Energy Corporation | E78: 5
A79: City of Brantford | B79: Brantford Power Inc. | C79: Property Management - 84 Market Street | D79: % of square footage utilized | E79: 75 | F79: See Row 90
A80: City of Brantford | B80: Brantford Hydro/Generation Inc. | E80: 20
A81: City of Brantford | B81: Brantford Energy Corporation | E81: 5
A82: City of Brantford | B82: Brantford Power Inc. | C82: Property Management - 400 Grand River Avenue | E82: 95 | F82: See Row 90
A83: City of Brantford | B83: Brantford Hydro/Generation Inc. | E83: 5
A84: City of Brantford | B84: Brantford Energy Corporation | E84: 0
A85: City of Brantford | B85: Brantford Power Inc. | C85: Property Management - Vehicle Storage - 400 Grand River Avenue | E85: 98.4 | F85: See Row 90
A86: City of Brantford | B86: Brantford Hydro/Generation Inc. | E86: 1.6
A87: City of Brantford | B87: Brantford Energy Corporation | E87: 0
A88: City of Brantford | B88: Brantford Power Inc. | C88: Property Management - 220 Colborne Street | D88: % of total assets | E88: 90 | F88: See Row 90
A89: City of Brantford | B89: Brantford Hydro/Generation Inc. | E89: 5
A90: City of Brantford | B90: Brantford Energy Corporation | E90: 5
A91: City of Brantford | B91: Brantford Power Inc. | C91: Facilities - Total | F91: =+F35 -> 674953.47
A92: City of Brantford | B92: Brantford Power Inc. | C92: Legal Services | D92: % of total assets | E92: 90 | F92: =+F36 -> 59417.58
A93: City of Brantford | B93: Brantford Hydro/Generation Inc. | E93: 5
A94: City of Brantford | B94: Brantford Energy Corporation | E94: 5
A95: City of Brantford | B95: Brantford Power Inc. | C95: Human Resources | D95: % of total assets | E95: 90 | F95: =+F37 -> 72536.04
A96: City of Brantford | B96: Brantford Hydro/Generation Inc. | E96: 5
A97: City of Brantford | B97: Brantford Energy Corporation | E97: 5
A98: City of Brantford | B98: Brantford Power Inc. | C98: IT Services - Network | D98: % of total assets | E98: 90 | F98: See Row 103
A99: City of Brantford | B99: Brantford Hydro/Generation Inc. | E99: 5
A100: City of Brantford | B100: Brantford Energy Corporation | E100: 5
A101: City of Brantford | B101: Brantford Power Inc. | C101: IT Services - Utility Specific | D101: Actual csts for materials and projects plus allocation of administrative costs | E101: N/A | F101: See Row 103
A102: City of Brantford | B102: Brantford Hydro/Generation Inc. | E102: N/A
A103: City of Brantford | B103: Brantford Energy Corporation | E103: N/A
A104: City of Brantford | B104: Brantford Power Inc. | C104: IT Services - Total | F104: =+F34 -> 887476.71
A105: City of Brantford | B105: Brantford Power Inc. | C105: Senior Management Services | D105: Estimate of time | E105: 80 | F105: =+F39 -> 37205.64
A106: City of Brantford | B106: Brantford Hydro/Generation Inc. | E106: 10
A107: City of Brantford | B107: Brantford Energy Corporation | E107: 10
A112: Note:
A113: 1 | B113: This appendix must be completed in relation to each service provided or received for the Historical (actuals), Bridge and Test years.
A116: NOTES | B116: Prior to the renegotiation of the Service Level Agreement between BPI and the City, costs were passed from the City of Brantford to the Energy group of companies and then allocated among the Energy group. The table above sets out the allocation percentages in place at that time.
B119: With the incorporation of Brantford Generation in 2010, which received operational services from Brantford Hydro Inc, costs previously allocated to Brantford Hydro were split between both Brantford Hydro and Brantford Generation

Sheet App.2-N_Corp_Cost_Alloc. 2011
F1: File Number: | G1: EB-2012-0109
F2: Exhibit: | G2: 4
F3: Tab:
F4: Schedule:
F5: Page: | G5: 31
F7: Date: | G7: July 17,2013
A9: Appendix 2-N
A10: Shared Services and Corporate Cost Allocation
B12: Year: | C12: 2011
A14: Shared Services
A16: Name of Company | C16: Service Offered | D16: Pricing Methdology | E16: Price for the Service | F16: Cost for the Service
A17: From | B17: To
E18: $ | F18: $
A19: City of Brantford | B19: Brantford Power Inc. | C19: Operations and Maintenance | D19: Cost-based | E19: 1315542.9 | F19: 1315542.9
A20: City of Brantford | B20: Brantford Power Inc. | C20: Vehicle Maintenance | D20: Cost-based | E20: 187121.12 | F20: 187121.12
A21: City of Brantford | B21: Brantford Power Inc. | C21: Engineering | D21: Cost-based | E21: 847245.82 | F21: 847245.82
A22: City of Brantford | B22: Brantford Power Inc. | C22: Metering & Settlement | D22: Cost-based | E22: 824579.41 | F22: 824579.41
A23: City of Brantford | B23: Brantford Power Inc. | C23: Line Locates | D23: Cost-based | E23: 97571.22 | F23: 97571.22
A24: City of Brantford | B24: Brantford Power Inc. | C24: Regulatory & Administration | D24: Cost-based | E24: 507703.34 | F24: 507703.34
A25: City of Brantford | B25: Brantford Power Inc. | C25: Meeting Management Services | D25: Cost-based | E25: 13284 | F25: 13284
A26: City of Brantford | B26: Brantford Power Inc. | C26: Records Management | D26: Cost-based | E26: 17025.96 | F26: 17025.96
A27: City of Brantford | B27: Brantford Power Inc. | C27: Mail Services | D27: Cost-based | E27: 2818.62 | F27: 2818.62
A28: City of Brantford | B28: Brantford Power Inc. | C28: Insurance and Risk Management | D28: Market-based [premiums], Cost-based [Administration] | E28: 130910.04 | F28: 130910.04
A29: City of Brantford | B29: Brantford Power Inc. | C29: Customer Services | D29: Cost-based | E29: 1066712.83 | F29: 1066712.83
A30: City of Brantford | B30: Brantford Power Inc. | C30: Telephone Services | D30: Cost-based | E30: 51754.99 | F30: 51754.99
A31: City of Brantford | B31: Brantford Power Inc. | C31: Utilities Accounting | D31: Cost-based | E31: 329721.16 | F31: 329721.16
A32: City of Brantford | B32: Brantford Power Inc. | C32: Treasury, Purchasing | D32: Cost-based | E32: 160253.09 | F32: 160253.09
A33: City of Brantford | B33: Brantford Power Inc. | C33: Inventory Management | D33: Cost-based | E33: 220971.65 | F33: 220971.65
A34: City of Brantford | B34: Brantford Power Inc. | C34: IT Services | D34: Cost-based | E34: 768301.83 | F34: 768301.83
A35: City of Brantford | B35: Brantford Power Inc. | C35: Facilities | D35: Cost-based | E35: 592494.9 | F35: 592494.9
A36: City of Brantford | B36: Brantford Power Inc. | C36: Legal Services | D36: Cost-based | E36: 65891.62 | F36: 65891.62
A37: City of Brantford | B37: Brantford Power Inc. | C37: Human Resources | D37: Cost-based | E37: 65437.83 | F37: 65437.83
A38: City of Brantford | B38: Brantford Power Inc. | C38: Forestry | D38: Market-based [third-party services]; Cost-based [Administration] | E38: 330240.65 | F38: 330240.65
A39: City of Brantford | B39: Brantford Power Inc. | C39: Senior Management | E39: 0 | F39: 0
A41: Total - Shared Services that BPI continues to purchase in 2013 under renegotiated Service Level Agreement | E41: =+E26+E27+E28+E30+E32+E34+E35+E36+E37+E38 -> 2185129.53 | F41: =+F26+F27+F28+F30+F32+F34+F35+F36+F37+F38 -> 2185129.53
A43: NOTES: | B43: The10% mark-up as a proxy for market that had been applied to costs was removed in 2011
B44: Costs for Senior Management Services were removed in 2011
A47: Corporate Cost Allocation
A49: Name of Company | C49: Service Offered | D49: Pricing Methdology | E49: % of Corporate Costs Allocated | F49: Amount Allocated
A50: From | B50: To
E51: % | F51: $
A52: City of Brantford | B52: Brantford Power Inc. | C52: Meeting Management Services | D52: % of time contracted | E52: 33 | F52: =+F25 -> 13284
A53: City of Brantford | B53: Brantford Hydro/Generation Inc. | E53: 33
A54: City of Brantford | B54: Brantford Energy Corporation | E54: 33
A55: City of Brantford | B55: Brantford Power Inc. | C55: Records Management | D55: % of total assets | E55: 90 | F55: =+F26 -> 17025.96
A56: City of Brantford | B56: Brantford Hydro/Generation Inc. | E56: 5
A57: City of Brantford | B57: Brantford Energy Corporation | E57: 5
A58: City of Brantford | B58: Brantford Power Inc. | C58: General Mail Services | D58: Estimate of time | E58: 85 | F58: =+F27 -> 2818.62
A59: City of Brantford | B59: Brantford Hydro/Generation Inc. | E59: 10
A60: City of Brantford | B60: Brantford Energy Corporation | E60: 5
A61: City of Brantford | B61: Brantford Power Inc. | C61: Insurance and Risk Management Services | D61: % of total assets | E61: 90 | F61: =+F28 -> 130910.04
A62: City of Brantford | B62: Brantford Hydro/Generation Inc. | E62: 5
A63: City of Brantford | B63: Brantford Energy Corporation | E63: 5
A64: City of Brantford | B64: Brantford Power Inc. | C64: Customer Services | D64: Estimate of time | E64: 90 | F64: =+F29 -> 1066712.83
A65: City of Brantford | B65: Brantford Hydro/Generation Inc. | E65: 10
A66: City of Brantford | B66: Brantford Energy Corporation | E66: 0
A67: City of Brantford | B67: Brantford Power Inc. | C67: Telephone Services | D67: % of total assets | E67: 90 | F67: =+F30 -> 51754.99
A68: City of Brantford | B68: Brantford Hydro/Generation Inc. | E68: 5
A69: City of Brantford | B69: Brantford Energy Corporation | E69: 5
A70: City of Brantford | B70: Brantford Power Inc. | C70: Treasury, Purchasing | D70: % of total assets | E70: 90 | F70: =+F32 -> 160253.09
A71: City of Brantford | B71: Brantford Hydro/Generation Inc. | E71: 5
A72: City of Brantford | B72: Brantford Energy Corporation | E72: 5
A73: City of Brantford | B73: Brantford Power Inc. | C73: Utilities Accounting Services - CFO | D73: % of time contracted | E73: 49 | F73: See Row 67
A74: City of Brantford | B74: Brantford Hydro/Generation Inc. | E74: 46
A75: City of Brantford | B75: Brantford Energy Corporation | E75: 5
A76: City of Brantford | B76: Brantford Power Inc. | C76: Utilities Accounting Services - Other | D76: Estimate of time | E76: 60 | F76: See Row 67
A77: City of Brantford | B77: Brantford Hydro/Generation Inc. | E77: 35
A78: City of Brantford | B78: Brantford Energy Corporation | E78: 5
A79: City of Brantford | B79: Brantford Power Inc. | C79: Utility Accounting Services - Total | F79: =+F31 -> 329721.16
A80: City of Brantford | B80: Brantford Power Inc. | C80: Inventory Management | D80: % of total assets | E80: 90 | F80: =+F33 -> 220971.65
A81: City of Brantford | B81: Brantford Hydro/Generation Inc. | E81: 5
A82: City of Brantford | B82: Brantford Energy Corporation | E82: 5
A83: City of Brantford | B83: Brantford Power Inc. | C83: Property Management - 84 Market Street | D83: % of square footage utilized | E83: 75 | F83: See Row 83
A84: City of Brantford | B84: Brantford Hydro/Generation Inc. | E84: 20
A85: City of Brantford | B85: Brantford Energy Corporation | E85: 5
A86: City of Brantford | B86: Brantford Power Inc. | C86: Property Management - 400 Grand River Avenue | E86: 95 | F86: See Row 83
A87: City of Brantford | B87: Brantford Hydro/Generation Inc. | E87: 5
A88: City of Brantford | B88: Brantford Energy Corporation | E88: 0
A89: City of Brantford | B89: Brantford Power Inc. | C89: Property Management - Vehicle Storage - 400 Grand River Avenue | E89: 98.4 | F89: See Row 83
A90: City of Brantford | B90: Brantford Hydro/Generation Inc. | E90: 1.6
A91: City of Brantford | B91: Brantford Energy Corporation | E91: 0
A92: City of Brantford | B92: Brantford Power Inc. | C92: Property Management - 220 Colborne Street | D92: % of total assets | E92: 90 | F92: See Row 83
A93: City of Brantford | B93: Brantford Hydro/Generation Inc. | E93: 5
A94: City of Brantford | B94: Brantford Energy Corporation | E94: 5
A95: City of Brantford | B95: Brantford Power Inc. | C95: Facilities - Total | F95: =+F35 -> 592494.9
A96: City of Brantford | B96: Brantford Power Inc. | C96: Legal Services | D96: % of total assets | E96: 90 | F96: =+F36 -> 65891.62
A97: City of Brantford | B97: Brantford Hydro/Generation Inc. | E97: 5
A98: City of Brantford | B98: Brantford Energy Corporation | E98: 5
A99: City of Brantford | B99: Brantford Power Inc. | C99: Human Resources | D99: % of total assets | E99: 90 | F99: =+F37 -> 65437.83
A100: City of Brantford | B100: Brantford Hydro/Generation Inc. | E100: 5
A101: City of Brantford | B101: Brantford Energy Corporation | E101: 5
A102: City of Brantford | B102: Brantford Power Inc. | C102: IT Services - Network | D102: % of total assets | E102: 90 | F102: See Row 96
A103: City of Brantford | B103: Brantford Hydro/Generation Inc. | E103: 5
A104: City of Brantford | B104: Brantford Energy Corporation | E104: 5
A105: City of Brantford | B105: Brantford Power Inc. | C105: IT Services - Utility Specific | D105: Actual csts for materials and projects plus allocation of administrative costs | E105: N/A | F105: See Row 96
A106: City of Brantford | B106: Brantford Hydro/Generation Inc. | E106: N/A
A107: City of Brantford | B107: Brantford Energy Corporation | E107: N/A
A108: City of Brantford | B108: Brantford Power Inc. | C108: IT Services - Total | F108: =+F34 -> 768301.83
A109: City of Brantford | B109: Brantford Power Inc. | C109: Senior Management Services | D109: Estimate of time | E109: 80 | F109: =+F39 -> 0
A110: City of Brantford | B110: Brantford Hydro/Generation Inc. | E110: 10
A111: City of Brantford | B111: Brantford Energy Corporation | E111: 10
A116: Note:
A117: 1 | B117: This appendix must be completed in relation to each service provided or received for the Historical (actuals), Bridge and Test years.
A120: NOTES | B120: Prior to the renegotiation of the Service Level Agreement between BPI and the City, costs were passed from the City of Brantford to the Energy group of companies and then allocated among the Energy group. The table above sets out the allocation percentages in place at that time.
B123: Allocation of costs for Customer Services between Brantford Power Inc. and Brantford Hydro Inc. were changed in 2011 from a 96/4 split to a 90/10 split

Sheet App.2-N_Corp_Cost_Alloc. 2012
F1: File Number: | G1: EB-2012-0109
F2: Exhibit: | G2: 4
F3: Tab:
F4: Schedule:
F5: Page: | G5: 32
F7: Date: | G7: July 17,2013
A9: Appendix 2-N
A10: Shared Services and Corporate Cost Allocation
B12: Year: | C12: 2012
A14: Shared Services
A16: Name of Company | C16: Service Offered | D16: Pricing Methdology | E16: Price for the Service | F16: Cost for the Service
A17: From | B17: To
E18: $ | F18: $
A19: City of Brantford | B19: Brantford Power Inc. | C19: Operations and Maintenance | D19: Cost-based (from January 1 to March 31, 2012) | E19: 349418.81 | F19: 349418.81
A20: City of Brantford | B20: Brantford Power Inc. | C20: Vehicle Maintenance | D20: Cost-based | E20: 170005.92 | F20: 170005.92
A21: City of Brantford | B21: Brantford Power Inc. | C21: Engineering | D21: Cost-based (from January 1 to March 31, 2012) | E21: 206368.01 | F21: 206368.01
A22: City of Brantford | B22: Brantford Power Inc. | C22: Metering & Settlement | D22: Cost-based (from January 1 to March 31, 2012) | E22: 174520.1 | F22: 174520.1
A23: City of Brantford | B23: Brantford Power Inc. | C23: Line Locates | D23: Cost-based (from January 1 to March 31, 2012) | E23: 97321.82 | F23: 97321.82
A24: City of Brantford | B24: Brantford Power Inc. | C24: Regulatory & Administration | D24: Cost-based (from January 1 to March 31, 2012) | E24: 220207.42 | F24: 220207.42
A25: City of Brantford | B25: Brantford Power Inc. | C25: Meeting Management Services | D25: Cost-based | E25: 3321 | F25: 3321
A26: City of Brantford | B26: Brantford Power Inc. | C26: Records Management | D26: Cost-based | E26: 17025.96 | F26: 17025.96
A27: City of Brantford | B27: Brantford Power Inc. | C27: Mail Services | D27: Cost-based | E27: 3459.68 | F27: 3459.68
A28: City of Brantford | B28: Brantford Power Inc. | C28: Insurance and Risk Management | D28: Market-based [premiums], Cost-based [Administration] | E28: 133664.04 | F28: 133664.04
A29: City of Brantford | B29: Brantford Power Inc. | C29: Customer Services | D29: Cost-based | E29: 493021.06 | F29: 493021.06
A30: City of Brantford | B30: Brantford Power Inc. | C30: Telephone Services | D30: Cost-based | E30: 46207.5 | F30: 46207.5
A31: City of Brantford | B31: Brantford Power Inc. | C31: Utilities Accounting | D31: Cost-based | E31: 88765.38 | F31: 88765.38
A32: City of Brantford | B32: Brantford Power Inc. | C32: Treasury, Purchasing | D32: Cost-based | E32: 173340 | F32: 173340
A33: City of Brantford | B33: Brantford Power Inc. | C33: Inventory Management | D33: Cost-based | E33: 60818.09 | F33: 60818.09
A34: City of Brantford | B34: Brantford Power Inc. | C34: IT Services | D34: Cost-based | E34: 913049.15 | F34: 913049.15
A35: City of Brantford | B35: Brantford Power Inc. | C35: Facilities | D35: Cost-based | E35: 606801.86 | F35: 606801.86
A36: City of Brantford | B36: Brantford Power Inc. | C36: Legal Services | D36: Cost-based | E36: 112093.2 | F36: 112093.2
A37: City of Brantford | B37: Brantford Power Inc. | C37: Human Resources | D37: Cost-based | E37: 69458.44 | F37: 69458.44
A38: City of Brantford | B38: Brantford Power Inc. | C38: Forestry | D38: Market-based [third-party services]; Cost-based [Administration] | E38: 400651.16 | F38: 400651.16
A39: Brantford Power Inc. | B39: City of Brantford | C39: Street Light Maintenance | D39: Cost-based | E39: =139082.5*1.13 -> 157163.225 | F39: =139082.5*1.13 -> 157163.225
A40: Brantford Power Inc. | B40: Brantford Hydro Inc. | C40: Sentinel Light Maintenance | D40: Cost-based | E40: =8983.82*1.13 -> 10151.7166 | F40: =8983.82*1.13 -> 10151.7166
A42: Total - Shared Services that BPI continues to purchase in 2013 under renegotiated Service Level Agreement | E42: =+E26+E27+E28+E30+E32+E34+E35+E36+E37+E38 -> 2475750.99 | F42: =+F26+F27+F28+F30+F32+F34+F35+F36+F37+F38 -> 2475750.99
A44: NOTES: | B44: Employees providing Operations and Maintenance, Engineering, Metering and Settlement, Regualtory and Adminsitration, Meeting Management, Customer Services and Utilities Acccounting functions were transferred to BPI on April 1, 2012
B45: Vehicle Maintenance Services are no longer included in the Service Level Agreement with the City
B46: Line locates services have been outsourced through the provincial One-Call system.
B48: Prior to the transfer of employees to BPI at April 1, 2012, employees of the City's Brantford Power Department rather than BPI provided Streetlighting and Sentinel Maintenance services to the City; that is, this was a transaction internal to the City's operations.
A51: Corporate Cost Allocation
A53: Name of Company | C53: Service Offered | D53: Pricing Methdology | E53: % of Corporate Costs Allocated | F53: Amount Allocated
A54: From | B54: To
E55: % | F55: $
A56: City of Brantford | B56: Brantford Power Inc. | C56: Meeting Management Services | D56: % of time contracted | E56: 33 | F56: =+F25 -> 3321
A57: City of Brantford | B57: Brantford Hydro/Generation Inc. | E57: 33
A58: City of Brantford | B58: Brantford Energy Corporation | E58: 33
A59: City of Brantford | B59: Brantford Power Inc. | C59: Records Management | D59: % of total assets | E59: 90 | F59: =+F26 -> 17025.96
A60: City of Brantford | B60: Brantford Hydro/Generation Inc. | E60: 5
A61: City of Brantford | B61: Brantford Energy Corporation | E61: 5
A62: City of Brantford | B62: Brantford Power Inc. | C62: General Mail Services | D62: Estimate of time | E62: 85 | F62: =+F27 -> 3459.68
A63: City of Brantford | B63: Brantford Hydro/Generation Inc. | E63: 10
A64: City of Brantford | B64: Brantford Energy Corporation | E64: 5
A65: City of Brantford | B65: Brantford Power Inc. | C65: Insurance and Risk Management Services | D65: % of total assets | E65: 90 | F65: =+F28 -> 133664.04
A66: City of Brantford | B66: Brantford Hydro/Generation Inc. | E66: 5
A67: City of Brantford | B67: Brantford Energy Corporation | E67: 5
A68: City of Brantford | B68: Brantford Power Inc. | C68: Customer Services | D68: Estimate of time | E68: 90 | F68: =+F29 -> 493021.06
A69: City of Brantford | B69: Brantford Hydro/Generation Inc. | E69: 10
A70: City of Brantford | B70: Brantford Energy Corporation | E70: 0
A71: City of Brantford | B71: Brantford Power Inc. | C71: Telephone Services | D71: % of total assets | E71: 90 | F71: =+F30 -> 46207.5
A72: City of Brantford | B72: Brantford Hydro/Generation Inc. | E72: 5
A73: City of Brantford | B73: Brantford Energy Corporation | E73: 5
A74: City of Brantford | B74: Brantford Power Inc. | C74: Treasury, Purchasing | D74: % of total assets | E74: 90 | F74: =+F32 -> 173340
A75: City of Brantford | B75: Brantford Hydro/Generation Inc. | E75: 5
A76: City of Brantford | B76: Brantford Energy Corporation | E76: 5
A77: City of Brantford | B77: Brantford Power Inc. | C77: Utilities Accounting Services - CFO | D77: % of time contracted | E77: 70 | F77: See Row 82
A78: City of Brantford | B78: Brantford Hydro/Generation Inc. | E78: 30
A79: City of Brantford | B79: Brantford Energy Corporation | E79: 5
A80: City of Brantford | B80: Brantford Power Inc. | C80: Utilities Accounting Services - Other | D80: Estimate of time | E80: 60 | F80: See Row 82
A81: City of Brantford | B81: Brantford Hydro/Generation Inc. | E81: 35
A82: City of Brantford | B82: Brantford Energy Corporation | E82: 5
A83: City of Brantford | B83: Brantford Power Inc. | C83: Utility Accounting Services - Total | F83: =+F31 -> 88765.38
A84: City of Brantford | B84: Brantford Power Inc. | C84: Inventory Management | D84: % of total assets | E84: 90 | F84: =+F33 -> 60818.09
A85: City of Brantford | B85: Brantford Hydro/Generation Inc. | E85: 5
A86: City of Brantford | B86: Brantford Energy Corporation | E86: 5
A87: City of Brantford | B87: Brantford Power Inc. | C87: Property Management - 84 Market Street | D87: % of square footage utilized | E87: 75 | F87: See Row 98
A88: City of Brantford | B88: Brantford Hydro/Generation Inc. | E88: 20
A89: City of Brantford | B89: Brantford Energy Corporation | E89: 5
A90: City of Brantford | B90: Brantford Power Inc. | C90: Property Management - 400 Grand River Avenue | E90: 95 | F90: See Row 98
A91: City of Brantford | B91: Brantford Hydro/Generation Inc. | E91: 5
A92: City of Brantford | B92: Brantford Energy Corporation | E92: 0
A93: City of Brantford | B93: Brantford Power Inc. | C93: Property Management - Vehicle Storage - 400 Grand River Avenue | E93: 98.4 | F93: See Row 98
A94: City of Brantford | B94: Brantford Hydro/Generation Inc. | E94: 1.6
A95: City of Brantford | B95: Brantford Energy Corporation | E95: 0
A96: City of Brantford | B96: Brantford Power Inc. | C96: Property Management - 220 Colborne Street | D96: % of total assets | E96: 90 | F96: See Row 98
A97: City of Brantford | B97: Brantford Hydro/Generation Inc. | E97: 5
A98: City of Brantford | B98: Brantford Energy Corporation | E98: 5
A99: City of Brantford | B99: Brantford Power Inc. | C99: Facilities - Total | F99: =+F35 -> 606801.86
A100: City of Brantford | B100: Brantford Power Inc. | C100: Legal Services | D100: % of total assets | E100: 90 | F100: =+F36 -> 112093.2
A101: City of Brantford | B101: Brantford Hydro/Generation Inc. | E101: 5
A102: City of Brantford | B102: Brantford Energy Corporation | E102: 5
A103: City of Brantford | B103: Brantford Power Inc. | C103: Human Resources | D103: % of total assets | E103: 90 | F103: =+F37 -> 69458.44
A104: City of Brantford | B104: Brantford Hydro/Generation Inc. | E104: 5
A105: City of Brantford | B105: Brantford Energy Corporation | E105: 5
A106: City of Brantford | B106: Brantford Power Inc. | C106: IT Services - Network | D106: % of total assets | E106: 90 | F106: See Row 101
A107: City of Brantford | B107: Brantford Hydro/Generation Inc. | E107: 5
A108: City of Brantford | B108: Brantford Energy Corporation | E108: 5
A109: City of Brantford | B109: Brantford Power Inc. | C109: IT Services - Utility Specific | D109: Actual csts for materials and projects plus allocation of administrative costs | E109: N/A | F109: See Row 101
A110: City of Brantford | B110: Brantford Hydro/Generation Inc. | E110: N/A
A111: City of Brantford | B111: Brantford Energy Corporation | E111: N/A
A112: City of Brantford | B112: Brantford Power Inc. | C112: IT Services - Total | F112: =+F34 -> 913049.15
A113: City of Brantford | B113: Brantford Power Inc. | C113: Senior Management Services | D113: Estimate of time | E113: 80 | F113: 0
A114: City of Brantford | B114: Brantford Hydro/Generation Inc. | E114: 10
A115: City of Brantford | B115: Brantford Energy Corporation | E115: 10
A120: Note:
A121: 1 | B121: This appendix must be completed in relation to each service provided or received for the Historical (actuals), Bridge and Test years.
A124: NOTES | B124: Prior to the renegotiation of the Service Level Agreement between BPI and the City, costs were passed from the City of Brantford to the Energy group of companies and then allocated among the Energy group. The table above sets out the allocation percentages in place at that time.

Sheet App.2-N_Corp_Cost_Alloc. 2013
F1: File Number: | G1: EB-2012-0109
F2: Exhibit: | G2: 4
F3: Tab:
F4: Schedule:
F5: Page: | G5: 32
F7: Date: | G7: July 17,2013
A9: Appendix 2-N
A10: Shared Services and Corporate Cost Allocation
B12: Year: | C12: 2013
A14: Shared Services
A16: Name of Company | C16: Service Offered | D16: Pricing Methdology | E16: Price for the Service | F16: Cost for the Service
A17: From | B17: To
E18: $ | F18: $
A19: City of Brantford | B19: Brantford Power Inc. | C19: Records Management | D19: Market-based | E19: 17000 | F19: Not available
A20: City of Brantford | B20: Brantford Power Inc. | C20: Mail Services | D20: Market-based | E20: 14927 | F20: Not available
A21: City of Brantford | B21: Brantford Power Inc. | C21: Insurance and Risk Management | D21: Market-based [premiums], Cost-based [Administration] | E21: 143133 | F21: 143133
A22: City of Brantford | B22: Brantford Power Inc. | C22: Telephone Services | D22: Cost-based | E22: 21124 | F22: 21124
A23: City of Brantford | B23: Brantford Power Inc. | C23: Treasury [Accounts Payables, Payroll] | D23: Cost-based | E23: 59053 | F23: 59053
A24: City of Brantford | B24: Brantford Power Inc. | C24: Purchasing | D24: Cost-based | E24: 75000 | F24: 75000
A25: City of Brantford | B25: Brantford Power Inc. | C25: IT Services | D25: Cost-based | E25: 911700 | F25: 911700
A26: City of Brantford | B26: Brantford Power Inc. | C26: Facilities | D26: Market-based [for rent]; Cost-based [Repairs and Maintenance; Administration] | E26: 538098 | F26: Not available
A27: City of Brantford | B27: Brantford Power Inc. | C27: Legal Services | D27: Cost-based | E27: 55000 | F27: 55000
A28: City of Brantford | B28: Brantford Power Inc. | C28: Human Resources | D28: Cost-based | E28: 64639 | F28: 64639
A29: City of Brantford | B29: Brantford Power Inc. | C29: Forestry | D29: Market-based [third-party services]; Cost-based [Administration] | E29: 472409 | F29: 472409
A30: Brantford Power Inc. | B30: City of Brantford | C30: Street Light Maintenance | D30: Cost-based | E30: 150000 | F30: 150000
A31: Brantford Power Inc. | B31: Brantford Hydro Inc. | C31: Sentinel Light Maintenance | D31: Cost-based | E31: 10000 | F31: 10000
A33: Total - Shared Services that BPI continues to purchase in 2013 under renegotiated Service Level Agreement | E33: =SUM(E19:E29) -> 2372083
A36: NOTES | B36: Pricing methodologies and costs for services purchased from the City were renegotiated January 1, 2013 and set out in a new Service Level Agreement effective January 1, 2013
A38: Corporate Cost Allocation
A40: Name of Company | C40: Service Offered | D40: Pricing Methdology | E40: % of Corporate Costs Allocated | F40: Amount Allocated
A41: From | B41: To
E42: % | F42: $
A43: City of Brantford | B43: Brantford Power Inc. | C43: Records Management | D43: Market-based | E43: Not Applicable
A44: City of Brantford | B44: Brantford Power Inc. | C44: Mail Services | D44: Market-based | E44: Not Applicable
A45: City of Brantford | B45: Brantford Power Inc. | C45: Insurance and Risk Management - Administration only | D45: Cost-based | E45: 0.0615 | F45: 15654
A46: City of Brantford | B46: Brantford Power Inc. | C46: Telephone Services excluding out-of-pocket expenses | D46: Cost-based | E46: 0.1511 | F46: 16124
A47: City of Brantford | B47: Brantford Power Inc. | C47: Treasury -Accounts Payables only | D47: Cost-based | E47: 0.144 | F47: 48718
C48: Treasury - Payroll only | D48: Cost-based | E48: 0.0408 | F48: 10335
A49: City of Brantford | B49: Brantford Power Inc. | C49: Purchasing | D49: Cost-based using # of hours of service provided | E49: Not Applicable
A50: City of Brantford | B50: Brantford Power Inc. | C50: IT Services - Core Network Services | D50: Cost-based | E50: 0.09 | F50: 328899
A51: City of Brantford | B51: Brantford Power Inc. | C51: IT Services - Financial Information System Services | D51: Cost-based | E51: 0.06
A52: City of Brantford | B52: Brantford Power Inc. | C52: IT Services - Supervision | D52: Cost-based | E52: 0.25
A53: City of Brantford | B53: Brantford Power Inc. | C53: IT Services - Information Systems exclusive to BPI | D53: Cost-based | E53: 1 | F53: 582801
A54: City of Brantford | B54: Brantford Power Inc. | C54: Facilities - Administration only at 84 Market Street, 220 Colborne Street and 400 Grand River Avenue | D54: Cost-based | E54: 0.0252 | F54: 19649
A55: City of Brantford | B55: Brantford Power Inc. | C55: Facilities - Repairs and Maintenance only - 84 Market Street | D55: Cost-based | E55: 0.386 | F55: 66508
A56: City of Brantford | B56: Brantford Power Inc. | C56: Facilities - Repairs and Maintenance only - 220 Colborne Street | D56: Cost-based | E56: 0.025 | F56: 10013
A57: City of Brantford | B57: Brantford Power Inc. | C57: Facilities - Repairs and Maintenance only - 400 Grand River Avenue | D57: Cost-based | E57: various | F57: 105307
A58: City of Brantford | B58: Brantford Power Inc. | C58: Facilities - Rent at all locations | D58: Market-based | E58: Not applicable
A59: City of Brantford | B59: Brantford Power Inc. | C59: Legal and Real Estate Services | D59: Cost-based using # of hours of service provided | E59: Not applicable
A60: City of Brantford | B60: Brantford Power Inc. | C60: Human Resources - Administration and Health and Safety Services | D60: Cost-based | E60: 0.0408 | F60: 39639
A61: City of Brantford | B61: Brantford Power Inc. | C61: Human Resources - Employment Services and Labour Relations | D61: Cost-based using # of hours of service provided | E61: Not Applicable
A62: City of Brantford | B62: Brantford Power Inc. | C62: Forestry | D62: Market-based [third-party services]; Cost-based [Administration] | E62: 0.48 | F62: 472409
A63: Brantford Power Inc. | B63: City of Brantford | C63: Street Light Maintenance | D63: Cost-based using # of hours to provide service | E63: Not applicable
A64: Brantford Power Inc. | B64: Brantford Hydro Inc. | C64: Sentinel Light Maintenance | D64: Cost-based using # of hours to provide service | E64: Not applicable
A66: Note:
A67: 1 | B67: This appendix must be completed in relation to each service provided or received for the Historical (actuals), Bridge and Test years.

Sheet App.2-OA Capital Structure 2008
K1: File Number: | O1: EB-2012-0109
K2: Exhibit: | O2: 5
K3: Tab: | O3: 1
K4: Schedule: | O4: 1
K5: Page: | O5: 33
K7: Date: | O7: July 17,2013
C10: Appendix 2-OA
C11: Capital Structure and Cost of Capital
A13: This table must be completed for the required years of all historical years, the bridge year and the test year.
A15: Line No.
C16: Particulars | E16: Capitalization Ratio | K16: Cost Rate | O16: Return
C19: Application
E20: (%) | I20: ($) | K20: (%) | O20: ($)
C21: Debt
A22: 1 | C22: Long-term Debt | E22: 0.493 | I22: =$I$31*E22 -> 34331468.59 | K22: 0.05879361832 | O22: =K22*I22 -> 2018471.261
A23: 2 | C23: Short-term Debt | E23: 0.04 | G23: (1) | I23: =$I$31*E23 -> 2785514.693 | K23: 0.0447 | O23: =K23*I23 -> 124512.5068
A24: 3 | C24: Total Debt | E24: =SUM(E22:E23) -> 0.533 | I24: =SUM(I22:I23) -> 37116983.28 | K24: =IF(E24=0,0,SUMPRODUCT(E22:E23,K22:K23)/E24) -> 0.0577359359 | O24: =SUM(O22:O23) -> 2142983.767
C26: Equity
A27: 4 | C27: Common Equity | E27: 0.467 | I27: =$I$31*E27 -> 32520884.04 | K27: 0.0857 | O27: =K27*I27 -> 2787039.762
A28: 5 | C28: Preferred Shares | I28: =$I$31*E28 -> 0 | O28: =K28*I28 -> 0
A29: 6 | C29: Total Equity | E29: =SUM(E27:E28) -> 0.467 | I29: =SUM(I27:I28) -> 32520884.04 | K29: =IF(E29=0,0,SUMPRODUCT(E27:E28,K27:K28)/E29) -> 0.0857 | O29: =SUM(O27:O28) -> 2787039.762
A31: 7 | C31: Total | E31: 1 | I31: 69637867.32 | K31: =(K24*E24)+(K29*E29) -> 0.07079515383 | O31: =O24+O29 -> 4930023.529
A34: Notes
A35: (1) | C35: 4.0% unless an applicant has proposed or been approved for a different amount.

Sheet App.2-OA Capital Structure 2009
K1: File Number: | O1: EB-2012-0109
K2: Exhibit: | O2: 5
K3: Tab: | O3: 1
K4: Schedule: | O4: 1
K5: Page: | O5: 34
K7: Date: | O7: July 17,2013
C10: Appendix 2-OA
C11: Capital Structure and Cost of Capital
A13: This table must be completed for the required years of all historical years, the bridge year and the test year.
A15: Line No.
C16: Particulars | E16: Capitalization Ratio | K16: Cost Rate | O16: Return
C19: Application
E20: (%) | I20: ($) | K20: (%) | O20: ($)
C21: Debt
A22: 1 | C22: Long-term Debt | E22: 0.527 | I22: =$I$31*E22 -> 37462432.8 | K22: 0.05402718935 | O22: =K22*I22 -> 2023989.95
A23: 2 | C23: Short-term Debt | E23: 0.04 | G23: (1) | I23: =$I$31*E23 -> 2843448.41 | K23: 0.0447 | O23: =K23*I23 -> 127102.1439
A24: 3 | C24: Total Debt | E24: =SUM(E22:E23) -> 0.567 | I24: =SUM(I22:I23) -> 40305881.21 | K24: =IF(E24=0,0,SUMPRODUCT(E22:E23,K22:K23)/E24) -> 0.05336918657 | O24: =SUM(O22:O23) -> 2151092.094
C26: Equity
A27: 4 | C27: Common Equity | E27: 0.433 | I27: =$I$31*E27 -> 30780329.04 | K27: 0.0857 | O27: =K27*I27 -> 2637874.198
A28: 5 | C28: Preferred Shares | I28: =$I$31*E28 -> 0 | O28: =K28*I28 -> 0
A29: 6 | C29: Total Equity | E29: =SUM(E27:E28) -> 0.433 | I29: =SUM(I27:I28) -> 30780329.04 | K29: =IF(E29=0,0,SUMPRODUCT(E27:E28,K27:K28)/E29) -> 0.0857 | O29: =SUM(O27:O28) -> 2637874.198
A31: 7 | C31: Total | E31: =+E29+E24 -> 1 | I31: 71086210.24 | K31: =(K24*E24)+(K29*E29) -> 0.06736842879 | O31: =O24+O29 -> 4788966.293
A34: Notes
A35: (1) | C35: 4.0% unless an applicant has proposed or been approved for a different amount.

Sheet App.2-OA Capital Structure 2010
K1: File Number: | O1: EB-2012-0109
K2: Exhibit: | O2: 5
K3: Tab: | O3: 1
K4: Schedule: | O4: 1
K5: Page: | O5: 35
K7: Date: | O7: July 17,2013
C10: Appendix 2-OA
C11: Capital Structure and Cost of Capital
A13: This table must be completed for the required years of all historical years, the bridge year and the test year.
A15: Line No.
C16: Particulars | E16: Capitalization Ratio | K16: Cost Rate | O16: Return
C19: Application
E20: (%) | I20: ($) | K20: (%) | O20: ($)
C21: Debt
A22: 1 | C22: Long-term Debt | E22: 0.56 | I22: =$I$31*E22 -> 41280071.76 | K22: 0.05300533781 | O22: =K22*I22 -> 2188064.148
A23: 2 | C23: Short-term Debt | E23: 0.04 | G23: (1) | I23: =$I$31*E23 -> 2948576.554 | K23: 0.0447 | O23: =K23*I23 -> 131801.372
A24: 3 | C24: Total Debt | E24: =SUM(E22:E23) -> 0.6 | I24: =SUM(I22:I23) -> 44228648.31 | K24: =IF(E24=0,0,SUMPRODUCT(E22:E23,K22:K23)/E24) -> 0.05245164862 | O24: =SUM(O22:O23) -> 2319865.52
C26: Equity
A27: 4 | C27: Common Equity | E27: 0.4 | I27: =$I$31*E27 -> 29485765.54 | K27: 0.0857 | O27: =K27*I27 -> 2526930.107
A28: 5 | C28: Preferred Shares | I28: =$I$31*E28 -> 0 | O28: =K28*I28 -> 0
A29: 6 | C29: Total Equity | E29: =SUM(E27:E28) -> 0.4 | I29: =SUM(I27:I28) -> 29485765.54 | K29: =IF(E29=0,0,SUMPRODUCT(E27:E28,K27:K28)/E29) -> 0.0857 | O29: =SUM(O27:O28) -> 2526930.107
A31: 7 | C31: Total | E31: 1 | I31: 73714413.86 | K31: =(K24*E24)+(K29*E29) -> 0.06575098917 | O31: =O24+O29 -> 4846795.627
A34: Notes
A35: (1) | C35: 4.0% unless an applicant has proposed or been approved for a different amount.

Sheet App.2-OA Capital Structure 2011
K1: File Number: | O1: EB-2012-0109
K2: Exhibit: | O2: 5
K3: Tab: | O3: 1
K4: Schedule: | O4: 1
K5: Page: | O5: 36
K7: Date: | O7: July 17,2013
C10: Appendix 2-OA
C11: Capital Structure and Cost of Capital
A13: This table must be completed for the required years of all historical years, the bridge year and the test year.
A15: Line No.
C16: Particulars | E16: Capitalization Ratio | K16: Cost Rate | O16: Return
C19: Application
E20: (%) | I20: ($) | K20: (%) | O20: ($)
C21: Debt
A22: 1 | C22: Long-term Debt | E22: 0.56 | I22: =$I$31*E22 -> 42333493.11 | K22: 0.05062624272 | O22: =K22*I22 -> 2143185.697
A23: 2 | C23: Short-term Debt | E23: 0.04 | G23: (1) | I23: =$I$31*E23 -> 3023820.936 | K23: 0.0447 | O23: =K23*I23 -> 135164.7958
A24: 3 | C24: Total Debt | E24: =SUM(E22:E23) -> 0.6 | I24: =SUM(I22:I23) -> 45357314.04 | K24: =IF(E24=0,0,SUMPRODUCT(E22:E23,K22:K23)/E24) -> 0.05023115987 | O24: =SUM(O22:O23) -> 2278350.493
C26: Equity
A27: 4 | C27: Common Equity | E27: 0.4 | I27: =$I$31*E27 -> 30238209.36 | K27: 0.0857 | O27: =K27*I27 -> 2591414.542
A28: 5 | C28: Preferred Shares | I28: =$I$31*E28 -> 0 | O28: =K28*I28 -> 0
A29: 6 | C29: Total Equity | E29: =SUM(E27:E28) -> 0.4 | I29: =SUM(I27:I28) -> 30238209.36 | K29: =IF(E29=0,0,SUMPRODUCT(E27:E28,K27:K28)/E29) -> 0.0857 | O29: =SUM(O27:O28) -> 2591414.542
A31: 7 | C31: Total | E31: 1 | I31: 75595523.41 | K31: =(K24*E24)+(K29*E29) -> 0.06441869592 | O31: =O24+O29 -> 4869765.036
A34: Notes
A35: (1) | C35: 4.0% unless an applicant has proposed or been approved for a different amount.

Sheet App.2-OA Capital Structure 2012
K1: File Number: | O1: EB-2012-0109
K2: Exhibit: | O2: 5
K3: Tab: | O3: 1
K4: Schedule: | O4: 1
K5: Page: | O5: 37
K7: Date: | O7: July 17,2013
C10: Appendix 2-OA
C11: Capital Structure and Cost of Capital
A13: This table must be completed for the required years of all historical years, the bridge year and the test year.
A15: Line No.
C16: Particulars | E16: Capitalization Ratio | K16: Cost Rate | O16: Return
C19: Application
E20: (%) | I20: ($) | K20: (%) | O20: ($)
C21: Debt
A22: 1 | C22: Long-term Debt | E22: 0.56 | I22: =$I$31*E22 -> 42568494.8 | K22: 0.05085878776 | O22: =K22*I22 -> 2164982.042
A23: 2 | C23: Short-term Debt | E23: 0.04 | G23: (1) | I23: =$I$31*E23 -> 3040606.771 | K23: 0.0447 | O23: =K23*I23 -> 135915.1227
A24: 3 | C24: Total Debt | E24: =SUM(E22:E23) -> 0.6 | I24: =SUM(I22:I23) -> 45609101.57 | K24: =IF(E24=0,0,SUMPRODUCT(E22:E23,K22:K23)/E24) -> 0.05044820191 | O24: =SUM(O22:O23) -> 2300897.165
C26: Equity
A27: 4 | C27: Common Equity | E27: 0.4 | I27: =$I$31*E27 -> 30406067.71 | K27: 0.0857 | O27: =K27*I27 -> 2605800.003
A28: 5 | C28: Preferred Shares | I28: =$I$31*E28 -> 0 | O28: =K28*I28 -> 0
A29: 6 | C29: Total Equity | E29: =SUM(E27:E28) -> 0.4 | I29: =SUM(I27:I28) -> 30406067.71 | K29: =IF(E29=0,0,SUMPRODUCT(E27:E28,K27:K28)/E29) -> 0.0857 | O29: =SUM(O27:O28) -> 2605800.003
A31: 7 | C31: Total | E31: 1 | I31: 76015169.28 | K31: =(K24*E24)+(K29*E29) -> 0.06454892114 | O31: =O24+O29 -> 4906697.168
A34: Notes
A35: (1) | C35: 4.0% unless an applicant has proposed or been approved for a different amount.

Sheet App.2-OA Capital Structure 2013
K1: File Number: | O1: EB-2012-0109
K2: Exhibit: | O2: 5
K3: Tab: | O3: 1
K4: Schedule: | O4: 1
K5: Page: | O5: 38
K7: Date: | O7: July 17,2013
C10: Appendix 2-OA
C11: Capital Structure and Cost of Capital
A13: This table must be completed for the required years of all historical years, the bridge year and the test year.
A15: Line No.
C16: Particulars | E16: Capitalization Ratio | K16: Cost Rate | O16: Return
C19: Application
E20: (%) | I20: ($) | K20: (%) | O20: ($)
C21: Debt
A22: 1 | C22: Long-term Debt | E22: 0.56 | I22: =$I$31*E22 -> 44123570.57 | K22: 0.05173113956 | O22: =K22*I22 -> 2282562.587
A23: 2 | C23: Short-term Debt | E23: 0.04 | G23: (1) | I23: =$I$31*E23 -> 3151683.612 | K23: 0.0207 | O23: =K23*I23 -> 65239.85077
A24: 3 | C24: Total Debt | E24: =SUM(E22:E23) -> 0.6 | I24: =SUM(I22:I23) -> 47275254.18 | K24: =IF(E24=0,0,SUMPRODUCT(E22:E23,K22:K23)/E24) -> 0.04966239692 | O24: =SUM(O22:O23) -> 2347802.438
C26: Equity
A27: 4 | C27: Common Equity | E27: 0.4 | I27: =$I$31*E27 -> 31516836.12 | K27: 0.0898 | O27: =K27*I27 -> 2830211.884
A28: 5 | C28: Preferred Shares | I28: =$I$31*E28 -> 0 | O28: =K28*I28 -> 0
A29: 6 | C29: Total Equity | E29: =SUM(E27:E28) -> 0.4 | I29: =SUM(I27:I28) -> 31516836.12 | K29: =IF(E29=0,0,SUMPRODUCT(E27:E28,K27:K28)/E29) -> 0.0898 | O29: =SUM(O27:O28) -> 2830211.884
A31: 7 | C31: Total | E31: 1 | I31: 78792090.3 | K31: =(K24*E24)+(K29*E29) -> 0.06571743815 | O31: =O24+O29 -> 5178014.321
A34: Notes
A35: (1) | C35: 4.0% unless an applicant has proposed or been approved for a different amount.

Sheet App.2-OB_Debt Instruments 2008
J1: File Number: | K1: EB-2012-0109
J2: Exhibit: | K2: 5
J3: Tab: | K3: 1
J4: Schedule: | K4: 1
J5: Page: | K5: 39
J7: Date: | K7: July 17,2013
A10: Appendix 2-OB
A11: Debt Instruments
A13: This table must be completed for the required years of all historical years, the bridge year and the test year.
D14: Year | E14: 2008
A16: Row | B16: Description | C16: Lender | D16: Affiliated or Third-Party Debt? | E16: Fixed or Variable-Rate? | F16: Start Date | G16: Term (years) | H16: Principal ($) | I16: Rate (%) (Note 2) | J16: Interest ($) (Note 1)
A17: 1 | B17: Promissory note | C17: The Corporation of the City of Brantford | D17: Affiliated | E17: Fixed Rate | F17: 2006-02-01 | G17: 5 | H17: 24189168 | I17: 0.0625 | J17: =H17*I17 -> 1511823
A18: 2 | B18: Powerline Municipal Transformer Station Borrowings | C18: Royal Bank | D18: Third-Party | E18: Fixed Rate | F18: 2006-01-31 | G18: 15 | H18: 5381000 | I18: 0.0471 | J18: 253445.1
A19: 3 | B19: Tier 2 Capital Project Borrowing | C19: Royal Bank | D19: Third-Party | E19: Fixed Rate | F19: 2006-06-13 | G19: 10 | H19: 1012000 | I19: 0.0497 | J19: 50296.4
A20: 4 | B20: General borrowings | C20: Ontario Infrastructure & Lands Corporation | D20: Third-Party | E20: Fixed Rate | F20: 2007-12-03 | G20: 25 | H20: 2370718.41 | I20: 0.0514 | J20: 121854.9263
A21: 5 | J21: 0
A22: 6 | J22: 0
A23: 7 | J23: 0
A24: 8 | J24: 0
A25: 9 | J25: 0
A26: 10 | J26: 0
A27: 11 | J27: 0
A28: 12 | J28: 0
A30: Total | H30: =SUM(H17:H28) -> 32952886.41 | I30: =IF(H30=0,"",J30/H30) -> 0.05879361832 | J30: =SUM(J17:J28) -> 1937419.426
A32: Notes
A34: 1 | B34: If financing is in place only part of the year, calculate the pro-rated interest and input in the cell.
A35: 2 | B35: Input actual or deemed long-term debt rate in accordance with the guidelines in The Report of the Board on the Cost of Capital for Ontario's Regulated Utilities, issued December 11, 2009
A36: 3 | B36: Add more lines above row 12 if necessary.

Sheet App.2-OB_Debt Instruments 2009
J1: File Number: | K1: EB-2012-0109
J2: Exhibit: | K2: 5
J3: Tab: | K3: 1
J4: Schedule: | K4: 1
J5: Page: | K5: 40
J7: Date: | K7: July 17,2013
A10: Appendix 2-OB
A11: Debt Instruments
A13: This table must be completed for the required years of all historical years, the bridge year and the test year.
D14: Year | E14: 2009
A16: Row | B16: Description | C16: Lender | D16: Affiliated or Third-Party Debt? | E16: Fixed or Variable-Rate? | F16: Start Date | G16: Term (years) | H16: Principal ($) | I16: Rate (%) (Note 2) | J16: Interest ($) (Note 1)
A17: 1 | B17: Promissory note | C17: The Corporation of the City of Brantford | D17: Affiliated | E17: Fixed Rate | F17: 2006-02-01 | G17: 5 | H17: 24189168 | I17: 0.0625 | J17: =H17*I17 -> 1511823
A18: 2 | B18: Powerline Municipal Transformer Station Borrowings | C18: Royal Bank | D18: Third-Party | E18: Fixed Rate | F18: 2006-01-31 | G18: 15 | H18: 5061000 | I18: 0.0471 | J18: 238373.1
A19: 3 | B19: Tier 2 Capital Project Borrowing | C19: Royal Bank | D19: Third-Party | E19: Fixed Rate | F19: 2006-06-13 | G19: 10 | H19: 909000 | I19: 0.0497 | J19: 45177.3
A20: 4 | B20: General borrowings | C20: Ontario Infrastructure & Lands Corporation | D20: Third-Party | E20: Fixed Rate | F20: 2007-12-03 | G20: 25 | H20: 2318871.19 | I20: 0.0514 | J20: 119189.9792
A21: 5 | B21: General borrowings | C21: Ontario Infrastructure & Lands Corporation | D21: Third-Party | E21: Fixed Rate | F21: 2010-12-01 | G21: 25 | H21: 2400000 | I21: 0.0095 | J21: 22800
A22: 6 | B22: Smart meter borrowings | C22: Ontario Infrastructure & Lands Corporation | D22: Third-Party | E22: Fixed Rate | F22: 2009-11-18 | G22: 15 | H22: 1451000 | I22: 0.0175 | J22: 25392.5
A23: 7 | J23: 0
A24: 8 | J24: 0
A25: 9 | J25: 0
A26: 10 | J26: 0
A27: 11 | J27: 0
A28: 12 | J28: 0
A30: Total | H30: =SUM(H17:H28) -> 36329039.19 | I30: =IF(H30=0,"",J30/H30) -> 0.05402718935 | J30: =SUM(J17:J28) -> 1962755.879
A32: Notes
A34: 1 | B34: If financing is in place only part of the year, calculate the pro-rated interest and input in the cell.
A35: 2 | B35: Input actual or deemed long-term debt rate in accordance with the guidelines in The Report of the Board on the Cost of Capital for Ontario's Regulated Utilities, issued December 11, 2009
A36: 3 | B36: Add more lines above row 12 if necessary.

Sheet App.2-OB_Debt Instruments 2010
J1: File Number: | K1: EB-2012-0109
J2: Exhibit: | K2: 5
J3: Tab: | K3: 1
J4: Schedule: | K4: 1
J5: Page: | K5: 41
J7: Date: | K7: July 17,2013
A10: Appendix 2-OB
A11: Debt Instruments
A13: This table must be completed for the required years of all historical years, the bridge year and the test year.
D14: Year | E14: 2010
A16: Row | B16: Description | C16: Lender | D16: Affiliated or Third-Party Debt? | E16: Fixed or Variable-Rate? | F16: Start Date | G16: Term (years) | H16: Principal ($) | I16: Rate (%) (Note 2) | J16: Interest ($) (Note 1)
A17: 1 | B17: Promissory note | C17: The Corporation of the City of Brantford | D17: Affiliated | E17: Fixed Rate | F17: 2006-02-01 | G17: 5 | H17: 24189168 | I17: 0.0625 | J17: =H17*I17 -> 1511823
A18: 2 | B18: Powerline Municipal Transformer Station Borrowings | C18: Royal Bank | D18: Third-Party | E18: Fixed Rate | F18: 2006-01-31 | G18: 15 | H18: 4724000 | I18: 0.0471 | J18: =H18*I18 -> 222500.4
A19: 3 | B19: Tier 2 Capital Project Borrowing | C19: Royal Bank | D19: Third-Party | E19: Fixed Rate | F19: 2006-06-13 | G19: 10 | H19: 801000 | I19: 0.0497 | J19: =H19*I19 -> 39809.7
A20: 4 | B20: General borrowings | C20: Ontario Infrastructure & Lands Corporation | D20: Third-Party | E20: Fixed Rate | F20: 2007-12-03 | G20: 25 | H20: 2264324.78 | I20: 0.0514 | J20: =H20*I20 -> 116386.2937
A21: 5 | B21: General borrowings | C21: Ontario Infrastructure & Lands Corporation | D21: Third-Party | E21: Fixed Rate | F21: 2010-12-01 | G21: 40 | H21: 4800000 | I21: 0.0495 | J21: =H21*I21 -> 237600
